Workbook

Sheet 1. Information Sheet
U1: a
M12: Version | N12: 2
E14: Utility Name | F14: Energy+ Inc.
E16: Service Territory | F16: For Former Cambridge and North Dumfries Hydro Service Area
E18: Assigned EB Number | F18: EB-2018-0028
E20: Name of Contact and Title | F20: Sarah Hughes, Chief Financial Officer, Finance
E22: Phone Number | F22: 519-621-8405 ext 2638
E24: Email Address | F24: shughes@energyplus.ca
E26: We are applying for rates effective | F26: 2019-01-01
E28: Rate-Setting Method | F28: Cost of Service
A30: Please indicate in which Rate Year the Group 1 accounts were last cleared1 | F30: 2016
A32: Please indicate the last Cost of Service Re-Basing Year | F32: 2014
B35: Notes
C37: Pale green cells represent input cells.
C39: Pale blue cells represent drop-down lists. The applicant should select the appropriate item from the drop-down list.
C41: White cells contain fixed values, automatically generated values or formulae.
A44: Note: 1. Rate year of application

Sheet Sheet1 (hidden)
A1: 1. Information Sheet
A2: Sheet1 | B2: X
A3: 2.2-TSC Current Tariff Schedule | B3: X | C3: X
A4: 2016 List | B4: X
A5: 3. Regulatory Charges | B5: X | C5: X
A6: 4.2-TS Tariff Schedule | B6: X
A7: 4.2-TS Tariff Schedule | B7: X | C7: X
A8: 5. 2-W Bill Impacts | B8: X | C8: X
A9: 20. HIDDEN | B9: X
A10: 20. Bill Impacts hidden | B10: X
A11: 2.1.7 Filing | B11: X
A12: 2 1 5 TotalConsumptionData_Dist | B12: X
A13: 212_Total_Connection_RollUp | B13: X
A14: 2016 Database | B14: X
A15: lists | B15: X
A16: Sheet2 | B16: X

Sheet 2.2-TSC Current Tariff Schedule
AZ1: TRUE
B3: Macro has been activated
B12: Energy+ Inc. | F12: X | G12: Energy+ Inc.-For Former Cambridge and North Dumfries Hydro Service Area_Start | H12: Energy+ Inc.
B13: For Former Cambridge and North Dumfries Hydro Service Area
B14: TARIFF OF RATES AND CHARGES
B15: Effective and Implementation Date May 1, 2018 | P15: 2018-05-01
B16: This schedule supersedes and replaces all previously
B17: approved schedules of Rates, Charges and Loss Factors
B18: EB-2017-0030 | H18: EB-2017-0030 | AA18: EB-2017-0030 | AS18: X
B19: RESIDENTIAL SERVICE CLASSIFICATION | H19: 1_RESIDENTIAL SERVICE CLASSIFICATION | AA19: RESIDENTIAL SERVICE CLASSIFICATION
B20: Residential refers to the supply of electrical energy to detached, semi-detached and row-housing units (freehold or condominium). This classification typically refers to an account taking electricity at 750 volts or less where electricity is used exclusively in a separate metered living accommodation. Customers shall be residing in single-dwelling units that consist of a detached house or one unit of a semi-detached, duplex, triplex, or quadruplex house, with a residential zoning. Separate metered dwellings within a town house complex, condominium, or apartment building also qualify as residential customers. Class B consumers are defined in accordance with O. Reg. 429/04. Further servicing details are available in the distributor's Conditions of Service. | H20: 1_RESIDENTIAL SERVICE CLASSIFICATION | AA20: Residential refers to the supply of electrical energy to detached, semi-detached and row-housing units (freehold or condominium). This classification typically refers to an account taking electricity at 750 volts or less where electricity is used exclusively in a separate metered living accommodation. Customers shall be residing in single-dwelling units that consist of a detached house or one unit of a semi-detached, duplex, triplex, or quadruplex house, with a residential zoning. Separate metered dwellings within a town house complex, condominium, or apartment building also qualify as residential customers. Class B consumers are defined in accordance with O. Reg. 429/04. Further servicing details are available in the distributor's Conditions of Service.
B22: APPLICATION | H22: 1_APPLICATION | AA22: APPLICATION
B24: The application of these rates and charges shall be in accordance with the Licence of the Distributor and any Code or Order of the Ontario Energy Board, and amendments thereto as approved by the Ontario Energy Board, which may be applicable to the administration of this schedule. | H24: 1_RESIDENTIAL SERVICE CLASSIFICATION | AA24: The application of these rates and charges shall be in accordance with the Licence of the Distributor and any Code or Order of the Ontario Energy Board, and amendments thereto as approved by the Ontario Energy Board, which may be applicable to the administration of this schedule.
B26: No rates and charges for the distribution of electricity and charges to meet the costs of any work or service done or furnished for the purpose of the distribution of electricity shall be made except as permitted by this schedule, unless required by the Distributor’s Licence or a Code or Order of the Ontario Energy Board, and amendments thereto as approved by the Ontario Energy Board, or as specified herein. | H26: 1_RESIDENTIAL SERVICE CLASSIFICATION | AA26: No rates and charges for the distribution of electricity and charges to meet the costs of any work or service done or furnished for the purpose of the distribution of electricity shall be made except as permitted by this schedule, unless required by the Distributor’s Licence or a Code or Order of the Ontario Energy Board, and amendments thereto as approved by the Ontario Energy Board, or as specified herein.
B28: Unless specifically noted, this schedule does not contain any charges for the electricity commodity, be it under the Regulated Price Plan, a contract with a retailer or the wholesale market price, as applicable. In addition, the charges in the MONTHLY RATES AND CHARGES - Regulatory Component of this schedule do not apply to a customer that is an embedded wholesale market participant. | H28: 1_RESIDENTIAL SERVICE CLASSIFICATION | AA28: Unless specifically noted, this schedule does not contain any charges for the electricity commodity, be it under the Regulated Price Plan, a contract with a retailer or the wholesale market price, as applicable. In addition, the charges in the MONTHLY RATES AND CHARGES - Regulatory Component of this schedule do not apply to a customer that is an embedded wholesale market participant.
B30: The rate rider for the disposition of WMS - Sub-account CBR Class B is not applicable to wholesale market participants (WMP), customers that transitioned between Class A and Class B during the variance account accumulation period, or to customers that were in Class A for the entire period. Customers who transitioned are to be charged or refunded their share of the variance disposed through customer specific billing adjustments. This rate rider is to be consistently applied for the entire period to the sunset date of the rate rider. In addition, this rate rider is applicable to all new Class B customers. | H30: 1_RESIDENTIAL SERVICE CLASSIFICATION | AA30: The rate rider for the disposition of WMS - Sub-account CBR Class B is not applicable to wholesale market participants (WMP), customers that transitioned between Class A and Class B during the variance account accumulation period, or to customers that were in Class A for the entire period. Customers who transitioned are to be charged or refunded their share of the variance disposed through customer specific billing adjustments. This rate rider is to be consistently applied for the entire period to the sunset date of the rate rider. In addition, this rate rider is applicable to all new Class B customers.
B31: It should be noted that this schedule does not list any charges, assessments, or credits that are required by law to be invoiced by a distributor and that are not subject to Ontario Energy Board approval, such as the Debt Retirement Charge, the Global Adjustment and the HST. | H31: 1_RESIDENTIAL SERVICE CLASSIFICATION | AA31: It should be noted that this schedule does not list any charges, assessments, or credits that are required by law to be invoiced by a distributor and that are not subject to Ontario Energy Board approval, such as the Debt Retirement Charge, the Global Adjustment and the HST.
B33: MONTHLY RATES AND CHARGES - Delivery Component | H33: 1_MRC_Del | AA33: MONTHLY RATES AND CHARGES - Delivery Component
B35: Service Charge | D35: $ | E35: 21.35044 | H35: 1_RESIDENTIAL SERVICE CLASSIFICATION | I35: A | M35: 1_RESIDENTIAL SERVICE CLASSIFICATION_MSC | Z35: Service Charge
B36: Rate Rider for Smart Metering Entity Charge - effective until December 31, 2022 | D36: $ | E36: 0.57 | H36: 1_RESIDENTIAL SERVICE CLASSIFICATION | I36: B | M36: 1_RESIDENTIAL SERVICE CLASSIFICATION_SME | Q36: 2022-12-31 | Z36: Rate Rider for Smart Metering Entity Charge - effective until December 31, 2022
B37: Distribution Volumetric Rate | D37: $/kWh | E37: 0.0046414 | H37: 1_RESIDENTIAL SERVICE CLASSIFICATION | I37: A | M37: 1_RESIDENTIAL SERVICE CLASSIFICATION_DVC | Z37: Distribution Volumetric Rate
B38: Low Voltage Service Rate | D38: $/kWh | E38: 0.0001 | H38: 1_RESIDENTIAL SERVICE CLASSIFICATION | I38: B | M38: 1_RESIDENTIAL SERVICE CLASSIFICATION_LV | Z38: Low Voltage Service Rate
B39: Rate Rider for Disposition of Global Adjustment Account (2018) - effective until April 30, 2019 Applicable only for Non-RPP Customers | D39: $/kWh | E39: 0.0033 | H39: 1_RESIDENTIAL SERVICE CLASSIFICATION | I39: B | M39: 1_RESIDENTIAL SERVICE CLASSIFICATION_GA_kwh | Q39: 2019-04-30 | Z39: Rate Rider for Disposition of Global Adjustment Account (2019) - effective until April 30, 2019 Applicable only for Non-RPP Customers
B40: Rate Rider for Disposition of Deferral/Variance Accounts (2018) - effective until April 30, 2019 | D40: $/kWh | E40: -0.006268366589 | H40: 1_RESIDENTIAL SERVICE CLASSIFICATION | I40: B | M40: 1_RESIDENTIAL SERVICE CLASSIFICATION_DEFVAR_ALL | Q40: 2019-04-30 | Z40: Rate Rider for Disposition of Deferral/Variance Accounts (2019) - effective until April 30, 2019
B41: Rate Rider for Disposition of Capacity Based Recovery Account (2018) - effective until April 30, 2019 Applicable only for Class B Customers | D41: $/kWh | E41: 0.0004 | H41: 1_RESIDENTIAL SERVICE CLASSIFICATION | I41: B | M41: 1_RESIDENTIAL SERVICE CLASSIFICATION_VR_RR_15 | Q41: 2019-04-30 | Z41: Rate Rider for Disposition of Capacity Based Recovery Account (2019) - effective until April 30, 2019 Applicable only for Class B Customers
B42: Retail Transmission Rate - Network Service Rate | D42: $/kWh | E42: 0.0059 | H42: 1_RESIDENTIAL SERVICE CLASSIFICATION | I42: C | M42: 1_RESIDENTIAL SERVICE CLASSIFICATION_Retail Transmission Rate - Network Service Rate | Z42: Retail Transmission Rate - Network Service Rate
B43: Retail Transmission Rate - Line and Transformation Connection Service Rate | D43: $/kWh | E43: 0.0044 | H43: 1_RESIDENTIAL SERVICE CLASSIFICATION | I43: C | M43: 1_RESIDENTIAL SERVICE CLASSIFICATION_Retail Transmission Rate - Line and Transformation Connection Service Rate | Z43: Retail Transmission Rate - Line and Transformation Connection Service Rate
B45: MONTHLY RATES AND CHARGES - Regulatory Component | H45: 1_MRC_Reg | Z45: MONTHLY RATES AND CHARGES - Regulatory Component
B47: Wholesale Market Service Rate (WMS) - not including CBR | D47: $/kWh | E47: 0.0032 | H47: 1_RESIDENTIAL SERVICE CLASSIFICATION | M47: 1_RESIDENTIAL SERVICE CLASSIFICATION_WMSR | Z47: Wholesale Market Service Rate (WMS) - not including CBR
B48: Capacity Based Recovery (CBR) - Applicable for Class B Customers | D48: $/kWh | E48: 0.0004 | H48: 1_RESIDENTIAL SERVICE CLASSIFICATION | Z48: Capacity Based Recovery (CBR) - Applicable for Class B Customers
B49: Rural or Remote Electricity Rate Protection Charge (RRRP) | D49: $/kWh | E49: 0.0003 | H49: 1_RESIDENTIAL SERVICE CLASSIFICATION | I49: T | M49: 1_RESIDENTIAL SERVICE CLASSIFICATION_RRRP | Z49: Rural or Remote Electricity Rate Protection Charge (RRRP)
B50: Standard Supply Service - Administrative Charge (if applicable) | D50: $ | E50: 0.25 | H50: 1_RESIDENTIAL SERVICE CLASSIFICATION | I50: T | M50: 1_RESIDENTIAL SERVICE CLASSIFICATION_SSS | Z50: Standard Supply Service - Administrative Charge (if applicable) | AS50: X
B51: GENERAL SERVICE LESS THAN 50 KW SERVICE CLASSIFICATION | H51: 2_GENERAL SERVICE LESS THAN 50 kW SERVICE CLASSIFICATION | AA51: GENERAL SERVICE LESS THAN 50 KW SERVICE CLASSIFICATION
B52: General Service refers to the supply of electrical energy to business customers, to bulk-metered residential buildings and to combined residential and business or residential and agricultural buildings. Apartment buildings that are bulk metered will be billed at the appropriate General Service rate. This classification refers to a non-residential account taking electricity at 750 volts or less whose average monthly peak demand is less than, or is forecast to be less than, 50 kW. Class B consumers are defined in accordance with O. Reg. 429/04. Further servicing details are available in the distributor's Conditions of Service. | H52: 2_GENERAL SERVICE LESS THAN 50 kW SERVICE CLASSIFICATION | AA52: General Service refers to the supply of electrical energy to business customers, to bulk-metered residential buildings and to combined residential and business or residential and agricultural buildings. Apartment buildings that are bulk metered will be billed at the appropriate General Service rate. This classification refers to a non-residential account taking electricity at 750 volts or less whose average monthly peak demand is less than, or is forecast to be less than, 50 kW. Class B consumers are defined in accordance with O. Reg. 429/04. Further servicing details are available in the distributor's Conditions of Service.
B54: APPLICATION | H54: 2_APPLICATION | AA54: APPLICATION
B56: The application of these rates and charges shall be in accordance with the Licence of the Distributor and any Code or Order of the Ontario Energy Board, and amendments thereto as approved by the Ontario Energy Board, which may be applicable to the administration of this schedule. | H56: 2_GENERAL SERVICE LESS THAN 50 kW SERVICE CLASSIFICATION | AA56: The application of these rates and charges shall be in accordance with the Licence of the Distributor and any Code or Order of the Ontario Energy Board, and amendments thereto as approved by the Ontario Energy Board, which may be applicable to the administration of this schedule.
B58: No rates and charges for the distribution of electricity and charges to meet the costs of any work or service done or furnished for the purpose of the distribution of electricity shall be made except as permitted by this schedule, unless required by the Distributor’s Licence or a Code or Order of the Ontario Energy Board, and amendments thereto as approved by the Ontario Energy Board, or as specified herein. | H58: 2_GENERAL SERVICE LESS THAN 50 kW SERVICE CLASSIFICATION | AA58: No rates and charges for the distribution of electricity and charges to meet the costs of any work or service done or furnished for the purpose of the distribution of electricity shall be made except as permitted by this schedule, unless required by the Distributor’s Licence or a Code or Order of the Ontario Energy Board, and amendments thereto as approved by the Ontario Energy Board, or as specified herein.
B60: Unless specifically noted, this schedule does not contain any charges for the electricity commodity, be it under the Regulated Price Plan, a contract with a retailer or the wholesale market price, as applicable. In addition, the charges in the MONTHLY RATES AND CHARGES - Regulatory Component of this schedule do not apply to a customer that is an embedded wholesale market participant. | H60: 2_GENERAL SERVICE LESS THAN 50 kW SERVICE CLASSIFICATION | AA60: Unless specifically noted, this schedule does not contain any charges for the electricity commodity, be it under the Regulated Price Plan, a contract with a retailer or the wholesale market price, as applicable. In addition, the charges in the MONTHLY RATES AND CHARGES - Regulatory Component of this schedule do not apply to a customer that is an embedded wholesale market participant.
B62: The rate rider for the disposition of WMS - Sub-account CBR Class B is not applicable to wholesale market participants (WMP), customers that transitioned between Class A and Class B during the variance account accumulation period, or to customers that were in Class A for the entire period. Customers who transitioned are to be charged or refunded their share of the variance disposed through customer specific billing adjustments. This rate rider is to be consistently applied for the entire period to the sunset date of the rate rider. In addition, this rate rider is applicable to all new Class B customers. | H62: 2_GENERAL SERVICE LESS THAN 50 kW SERVICE CLASSIFICATION | AA62: The rate rider for the disposition of WMS - Sub-account CBR Class B is not applicable to wholesale market participants (WMP), customers that transitioned between Class A and Class B during the variance account accumulation period, or to customers that were in Class A for the entire period. Customers who transitioned are to be charged or refunded their share of the variance disposed through customer specific billing adjustments. This rate rider is to be consistently applied for the entire period to the sunset date of the rate rider. In addition, this rate rider is applicable to all new Class B customers.
B63: It should be noted that this schedule does not list any charges, assessments, or credits that are required by law to be invoiced by a distributor and that are not subject to Ontario Energy Board approval, such as the Debt Retirement Charge, the Global Adjustment and the HST. | H63: 2_GENERAL SERVICE LESS THAN 50 kW SERVICE CLASSIFICATION | AA63: It should be noted that this schedule does not list any charges, assessments, or credits that are required by law to be invoiced by a distributor and that are not subject to Ontario Energy Board approval, such as the Debt Retirement Charge, the Global Adjustment and the HST.
B65: MONTHLY RATES AND CHARGES - Delivery Component | H65: 2_MRC_Del | AA65: MONTHLY RATES AND CHARGES - Delivery Component
B67: Service Charge | D67: $ | E67: 13.74258 | H67: 2_GENERAL SERVICE LESS THAN 50 kW SERVICE CLASSIFICATION | I67: A | M67: 2_GENERAL SERVICE LESS THAN 50 kW SERVICE CLASSIFICATION_MSC | Z67: Service Charge
B68: Rate Rider for Smart Metering Entity Charge - effective until December 31, 2022 | D68: $ | E68: 0.57 | H68: 2_GENERAL SERVICE LESS THAN 50 kW SERVICE CLASSIFICATION | I68: B | M68: 2_GENERAL SERVICE LESS THAN 50 kW SERVICE CLASSIFICATION_SME | Q68: 2022-12-31 | Z68: Rate Rider for Smart Metering Entity Charge - effective until December 31, 2022
B69: Distribution Volumetric Rate | D69: $/kWh | E69: 0.0147314 | H69: 2_GENERAL SERVICE LESS THAN 50 kW SERVICE CLASSIFICATION | I69: A | M69: 2_GENERAL SERVICE LESS THAN 50 kW SERVICE CLASSIFICATION_DVC | Z69: Distribution Volumetric Rate
B70: Low Voltage Service Rate | D70: $/kWh | E70: 0.0001 | H70: 2_GENERAL SERVICE LESS THAN 50 kW SERVICE CLASSIFICATION | I70: B | M70: 2_GENERAL SERVICE LESS THAN 50 kW SERVICE CLASSIFICATION_LV | Z70: Low Voltage Service Rate
B71: Rate Rider for Disposition of Global Adjustment Account (2018) - effective until April 30, 2019 Applicable only for Non-RPP Customers | D71: $/kWh | E71: 0.0033 | H71: 2_GENERAL SERVICE LESS THAN 50 kW SERVICE CLASSIFICATION | I71: B | M71: 2_GENERAL SERVICE LESS THAN 50 kW SERVICE CLASSIFICATION_GA_kwh | Q71: 2019-04-30 | Z71: Rate Rider for Disposition of Global Adjustment Account (2019) - effective until April 30, 2019 Applicable only for Non-RPP Customers
B72: Rate Rider for Disposition of Deferral/Variance Accounts (2018) - effective until April 30, 2019 | D72: $/kWh | E72: -0.00621939142 | H72: 2_GENERAL SERVICE LESS THAN 50 kW SERVICE CLASSIFICATION | I72: B | M72: 2_GENERAL SERVICE LESS THAN 50 kW SERVICE CLASSIFICATION_DEFVAR_ALL | Q72: 2019-04-30 | Z72: Rate Rider for Disposition of Deferral/Variance Accounts (2019) - effective until April 30, 2019
B73: Rate Rider for Disposition of Capacity Based Recovery Account (2018) - effective until April 30, 2019 Applicable only for Class B Customers | D73: $/kWh | E73: 0.0004 | H73: 2_GENERAL SERVICE LESS THAN 50 kW SERVICE CLASSIFICATION | I73: B | M73: 2_GENERAL SERVICE LESS THAN 50 kW SERVICE CLASSIFICATION_VR_RR_18 | Q73: 2019-04-30 | Z73: Rate Rider for Disposition of Capacity Based Recovery Account (2019) - effective until April 30, 2019 Applicable only for Class B Customers
B74: Retail Transmission Rate - Network Service Rate | D74: $/kWh | E74: 0.0052 | H74: 2_GENERAL SERVICE LESS THAN 50 kW SERVICE CLASSIFICATION | I74: C | M74: 2_GENERAL SERVICE LESS THAN 50 kW SERVICE CLASSIFICATION_Retail Transmission Rate - Network Service Rate | Z74: Retail Transmission Rate - Network Service Rate
B75: Retail Transmission Rate - Line and Transformation Connection Service Rate | D75: $/kWh | E75: 0.0041 | H75: 2_GENERAL SERVICE LESS THAN 50 kW SERVICE CLASSIFICATION | I75: C | M75: 2_GENERAL SERVICE LESS THAN 50 kW SERVICE CLASSIFICATION_Retail Transmission Rate - Line and Transformation Connection Service Rate | Z75: Retail Transmission Rate - Line and Transformation Connection Service Rate
B77: MONTHLY RATES AND CHARGES - Regulatory Component | H77: 2_MRC_Reg | Z77: MONTHLY RATES AND CHARGES - Regulatory Component
B79: Wholesale Market Service Rate (WMS) - not including CBR | D79: $/kWh | E79: 0.0032 | H79: 2_GENERAL SERVICE LESS THAN 50 kW SERVICE CLASSIFICATION | M79: 2_GENERAL SERVICE LESS THAN 50 kW SERVICE CLASSIFICATION_WMSR | Z79: Wholesale Market Service Rate (WMS) - not including CBR
B80: Capacity Based Recovery (CBR) - Applicable for Class B Customers | D80: $/kWh | E80: 0.0004 | H80: 2_GENERAL SERVICE LESS THAN 50 kW SERVICE CLASSIFICATION | Z80: Capacity Based Recovery (CBR) - Applicable for Class B Customers
B81: Rural or Remote Electricity Rate Protection Charge (RRRP) | D81: $/kWh | E81: 0.0003 | H81: 2_GENERAL SERVICE LESS THAN 50 kW SERVICE CLASSIFICATION | I81: T | M81: 2_GENERAL SERVICE LESS THAN 50 kW SERVICE CLASSIFICATION_RRRP | Z81: Rural or Remote Electricity Rate Protection Charge (RRRP)
B82: Standard Supply Service - Administrative Charge (if applicable) | D82: $ | E82: 0.25 | H82: 2_GENERAL SERVICE LESS THAN 50 kW SERVICE CLASSIFICATION | I82: T | M82: 2_GENERAL SERVICE LESS THAN 50 kW SERVICE CLASSIFICATION_SSS | Z82: Standard Supply Service - Administrative Charge (if applicable) | AS82: X
B83: GENERAL SERVICE 50 TO 999 KW SERVICE CLASSIFICATION | H83: 3_GENERAL SERVICE 50 to 999 kW SERVICE CLASSIFICATION | AA83: GENERAL SERVICE 50 TO 999 KW SERVICE CLASSIFICATION
B84: General Service refers to the supply of electrical energy to business customers, to bulk-metered residential buildings and to combined residential and business or residential and agricultural buildings. Apartment buildings that are bulk metered will be billed at the appropriate General Service rate. This classification refers to a non-residential account whose average monthly peak demand is equal to or greater than, or is forecast to be equal to or greater than, 50 kW but less than 1,000 kW. Class B consumers are defined in accordance with O.Reg. 429/04. Further servicing details are available in the distributor's Conditions of Service. | H84: 3_GENERAL SERVICE 50 to 999 kW SERVICE CLASSIFICATION | AA84: General Service refers to the supply of electrical energy to business customers, to bulk-metered residential buildings and to combined residential and business or residential and agricultural buildings. Apartment buildings that are bulk metered will be billed at the appropriate General Service rate. This classification refers to a non-residential account whose average monthly peak demand is equal to or greater than, or is forecast to be equal to or greater than, 50 kW but less than 1,000 kW. Class B consumers are defined in accordance with O.Reg. 429/04. Further servicing details are available in the distributor's Conditions of Service.
B86: APPLICATION | H86: 3_APPLICATION | AA86: APPLICATION
B88: The application of these rates and charges shall be in accordance with the Licence of the Distributor and any Code or Order of the Ontario Energy Board, and amendments thereto as approved by the Ontario Energy Board, which may be applicable to the administration of this schedule. | H88: 3_GENERAL SERVICE 50 to 999 kW SERVICE CLASSIFICATION | AA88: The application of these rates and charges shall be in accordance with the Licence of the Distributor and any Code or Order of the Ontario Energy Board, and amendments thereto as approved by the Ontario Energy Board, which may be applicable to the administration of this schedule.
B90: No rates and charges for the distribution of electricity and charges to meet the costs of any work or service done or furnished for the purpose of the distribution of electricity shall be made except as permitted by this schedule, unless required by the Distributor’s Licence or a Code or Order of the Ontario Energy Board, and amendments thereto as approved by the Ontario Energy Board, or as specified herein. | H90: 3_GENERAL SERVICE 50 to 999 kW SERVICE CLASSIFICATION | AA90: No rates and charges for the distribution of electricity and charges to meet the costs of any work or service done or furnished for the purpose of the distribution of electricity shall be made except as permitted by this schedule, unless required by the Distributor’s Licence or a Code or Order of the Ontario Energy Board, and amendments thereto as approved by the Ontario Energy Board, or as specified herein.
B92: Unless specifically noted, this schedule does not contain any charges for the electricity commodity, be it under the Regulated Price Plan, a contract with a retailer or the wholesale market price, as applicable. In addition, the charges in the MONTHLY RATES AND CHARGES - Regulatory Component of this schedule do not apply to a customer that is an embedded wholesale market participant. | H92: 3_GENERAL SERVICE 50 to 999 kW SERVICE CLASSIFICATION | AA92: Unless specifically noted, this schedule does not contain any charges for the electricity commodity, be it under the Regulated Price Plan, a contract with a retailer or the wholesale market price, as applicable. In addition, the charges in the MONTHLY RATES AND CHARGES - Regulatory Component of this schedule do not apply to a customer that is an embedded wholesale market participant.
B94: The rate rider for the disposition of WMS - Sub-account CBR Class B is not applicable to wholesale market participants (WMP), customers that transitioned between Class A and Class B during the variance account accumulation period, or to customers that were in Class A for the entire period. Customers who transitioned are to be charged or refunded their share of the variance disposed through customer specific billing adjustments. This rate rider is to be consistently applied for the entire period to the sunset date of the rate rider. In addition, this rate rider is applicable to all new Class B customers. | H94: 3_GENERAL SERVICE 50 to 999 kW SERVICE CLASSIFICATION | AA94: The rate rider for the disposition of WMS - Sub-account CBR Class B is not applicable to wholesale market participants (WMP), customers that transitioned between Class A and Class B during the variance account accumulation period, or to customers that were in Class A for the entire period. Customers who transitioned are to be charged or refunded their share of the variance disposed through customer specific billing adjustments. This rate rider is to be consistently applied for the entire period to the sunset date of the rate rider. In addition, this rate rider is applicable to all new Class B customers.
B95: It should be noted that this schedule does not list any charges, assessments, or credits that are required by law to be invoiced by a distributor and that are not subject to Ontario Energy Board approval, such as the Debt Retirement Charge, the Global Adjustment and the HST. | H95: 3_GENERAL SERVICE 50 to 999 kW SERVICE CLASSIFICATION | AA95: It should be noted that this schedule does not list any charges, assessments, or credits that are required by law to be invoiced by a distributor and that are not subject to Ontario Energy Board approval, such as the Debt Retirement Charge, the Global Adjustment and the HST.
B97: MONTHLY RATES AND CHARGES - Delivery Component | H97: 3_MRC_Del | AA97: MONTHLY RATES AND CHARGES - Delivery Component
B99: Service Charge | D99: $ | E99: 115.59104 | H99: 3_GENERAL SERVICE 50 to 999 kW SERVICE CLASSIFICATION | I99: A | M99: 3_GENERAL SERVICE 50 to 999 kW SERVICE CLASSIFICATION_MSC | Z99: Service Charge
B100: Distribution Volumetric Rate | D100: $/kW | E100: 4.2076309 | H100: 3_GENERAL SERVICE 50 to 999 kW SERVICE CLASSIFICATION | I100: A | M100: 3_GENERAL SERVICE 50 to 999 kW SERVICE CLASSIFICATION_DVC | Z100: Distribution Volumetric Rate
B101: Low Voltage Service Rate | D101: $/kW | E101: 0.0537 | H101: 3_GENERAL SERVICE 50 to 999 kW SERVICE CLASSIFICATION | I101: B | M101: 3_GENERAL SERVICE 50 to 999 kW SERVICE CLASSIFICATION_LV | Z101: Low Voltage Service Rate
B102: Rate Rider for Disposition of Global Adjustment Account (2018) - effective until April 30, 2019 Applicable only for Non-RPP Customers | D102: $/kWh | E102: 0.0033 | H102: 3_GENERAL SERVICE 50 to 999 kW SERVICE CLASSIFICATION | I102: B | M102: 3_GENERAL SERVICE 50 to 999 kW SERVICE CLASSIFICATION_GA_kwh | Q102: 2019-04-30 | Z102: Rate Rider for Disposition of Global Adjustment Account (2019) - effective until April 30, 2019 Applicable only for Non-RPP Customers
B103: Rate Rider for Disposition of Deferral/Variance Accounts (2018) - effective until April 30, 2019 Applicable only for Non-Wholesale Market Participants | D103: $/kW | E103: -1.717694818 | H103: 3_GENERAL SERVICE 50 to 999 kW SERVICE CLASSIFICATION | I103: B | M103: 3_GENERAL SERVICE 50 to 999 kW SERVICE CLASSIFICATION_DEFVAR_ALL | Q103: 2019-04-30 | Z103: Rate Rider for Disposition of Deferral/Variance Accounts (2019) - effective until April 30, 2019 Applicable only for Non-Wholesale Market Participants
B104: Rate Rider for Disposition of Deferral/Variance Accounts (2018) - effective until April 30, 2019 | D104: $/kW | E104: -0.2975443189 | H104: 3_GENERAL SERVICE 50 to 999 kW SERVICE CLASSIFICATION | I104: B | M104: 3_GENERAL SERVICE 50 to 999 kW SERVICE CLASSIFICATION_DEFVAR_ALL | Q104: 2019-04-30 | Z104: Rate Rider for Disposition of Deferral/Variance Accounts (2019) - effective until April 30, 2019
B105: Rate Rider for Disposition of Capacity Based Recovery Account (2018) - effective until April 30, 2019 Applicable only for Class B Customers | D105: $/kW | E105: 0.1375 | H105: 3_GENERAL SERVICE 50 to 999 kW SERVICE CLASSIFICATION | I105: B | M105: 3_GENERAL SERVICE 50 to 999 kW SERVICE CLASSIFICATION_VR_RR_22 | Q105: 2019-04-30 | Z105: Rate Rider for Disposition of Capacity Based Recovery Account (2019) - effective until April 30, 2019 Applicable only for Class B Customers
B106: Retail Transmission Rate - Network Service Rate | D106: $/kW | E106: 3.3563 | H106: 3_GENERAL SERVICE 50 to 999 kW SERVICE CLASSIFICATION | I106: C | M106: 3_GENERAL SERVICE 50 to 999 kW SERVICE CLASSIFICATION_Retail Transmission Rate - Network Service Rate | Z106: Retail Transmission Rate - Network Service Rate
B107: Retail Transmission Rate - Line and Transformation Connection Service Rate | D107: $/kW | E107: 2.4847 | H107: 3_GENERAL SERVICE 50 to 999 kW SERVICE CLASSIFICATION | I107: C | M107: 3_GENERAL SERVICE 50 to 999 kW SERVICE CLASSIFICATION_Retail Transmission Rate - Line and Transformation Connection Service Rate | Z107: Retail Transmission Rate - Line and Transformation Connection Service Rate
B109: MONTHLY RATES AND CHARGES - Regulatory Component | H109: 3_MRC_Reg | Z109: MONTHLY RATES AND CHARGES - Regulatory Component
B111: Wholesale Market Service Rate (WMS) - not including CBR | D111: $/kWh | E111: 0.0032 | H111: 3_GENERAL SERVICE 50 to 999 kW SERVICE CLASSIFICATION | M111: 3_GENERAL SERVICE 50 to 999 kW SERVICE CLASSIFICATION_WMSR | Z111: Wholesale Market Service Rate (WMS) - not including CBR
B112: Capacity Based Recovery (CBR) - Applicable for Class B Customers | D112: $/kWh | E112: 0.0004 | H112: 3_GENERAL SERVICE 50 to 999 kW SERVICE CLASSIFICATION | Z112: Capacity Based Recovery (CBR) - Applicable for Class B Customers
B113: Rural or Remote Electricity Rate Protection Charge (RRRP) | D113: $/kWh | E113: 0.0003 | H113: 3_GENERAL SERVICE 50 to 999 kW SERVICE CLASSIFICATION | I113: T | M113: 3_GENERAL SERVICE 50 to 999 kW SERVICE CLASSIFICATION_RRRP | Z113: Rural or Remote Electricity Rate Protection Charge (RRRP)
B114: Standard Supply Service - Administrative Charge (if applicable) | D114: $ | E114: 0.25 | H114: 3_GENERAL SERVICE 50 to 999 kW SERVICE CLASSIFICATION | I114: T | M114: 3_GENERAL SERVICE 50 to 999 kW SERVICE CLASSIFICATION_SSS | Z114: Standard Supply Service - Administrative Charge (if applicable) | AS114: X
B115: GENERAL SERVICE 1,000 TO 4,999 KW SERVICE CLASSIFICATION | H115: 4_GENERAL SERVICE 1,000 to 4,999 kW SERVICE CLASSIFICATION | AA115: GENERAL SERVICE 1,000 TO 4,999 KW SERVICE CLASSIFICATION
B116: General Service refers to the supply of electrical energy to business customers, to bulk-metered residential buildings and to combined residential and business or residential and agricultural buildings. Apartment buildings that are bulk metered will be billed at the appropriate General Service rate. This classification refers to a non-residential account whose average monthly peak demand is equal to or greater than, or is forecast to be equal to or greater than, 1,000 kW but less than 5,000 kW. Class A and Class B consumers are defined in accordance with O. Reg. 429/04. Further servicing details are available in the distributor's Conditions of Service. | H116: 4_GENERAL SERVICE 1,000 to 4,999 kW SERVICE CLASSIFICATION | AA116: General Service refers to the supply of electrical energy to business customers, to bulk-metered residential buildings and to combined residential and business or residential and agricultural buildings. Apartment buildings that are bulk metered will be billed at the appropriate General Service rate. This classification refers to a non-residential account whose average monthly peak demand is equal to or greater than, or is forecast to be equal to or greater than, 1,000 kW but less than 5,000 kW. Class A and Class B consumers are defined in accordance with O. Reg. 429/04. Further servicing details are available in the distributor's Conditions of Service.
B118: APPLICATION | H118: 4_APPLICATION | AA118: APPLICATION
B120: The application of these rates and charges shall be in accordance with the Licence of the Distributor and any Code or Order of the Ontario Energy Board, and amendments thereto as approved by the Ontario Energy Board, which may be applicable to the administration of this schedule. | H120: 4_GENERAL SERVICE 1,000 to 4,999 kW SERVICE CLASSIFICATION | AA120: The application of these rates and charges shall be in accordance with the Licence of the Distributor and any Code or Order of the Ontario Energy Board, and amendments thereto as approved by the Ontario Energy Board, which may be applicable to the administration of this schedule.
B122: No rates and charges for the distribution of electricity and charges to meet the costs of any work or service done or furnished for the purpose of the distribution of electricity shall be made except as permitted by this schedule, unless required by the Distributor’s Licence or a Code or Order of the Ontario Energy Board, and amendments thereto as approved by the Ontario Energy Board, or as specified herein. | H122: 4_GENERAL SERVICE 1,000 to 4,999 kW SERVICE CLASSIFICATION | AA122: No rates and charges for the distribution of electricity and charges to meet the costs of any work or service done or furnished for the purpose of the distribution of electricity shall be made except as permitted by this schedule, unless required by the Distributor’s Licence or a Code or Order of the Ontario Energy Board, and amendments thereto as approved by the Ontario Energy Board, or as specified herein.
B124: Unless specifically noted, this schedule does not contain any charges for the electricity commodity, be it under the Regulated Price Plan, a contract with a retailer or the wholesale market price, as applicable. In addition, the charges in the MONTHLY RATES AND CHARGES - Regulatory Component of this schedule do not apply to a customer that is an embedded wholesale market participant. | H124: 4_GENERAL SERVICE 1,000 to 4,999 kW SERVICE CLASSIFICATION | AA124: Unless specifically noted, this schedule does not contain any charges for the electricity commodity, be it under the Regulated Price Plan, a contract with a retailer or the wholesale market price, as applicable. In addition, the charges in the MONTHLY RATES AND CHARGES - Regulatory Component of this schedule do not apply to a customer that is an embedded wholesale market participant.
B126: The rate rider for the disposition of Global Adjustment is only applicable to non-RPP Class B customers. It is not applicable to Wholesale Market Participant (WMP), customers that transitioned between Class A and Class B during the variance account accumulation period, or to customers that were in Class A for the entire period. Customers who transitioned are to be charged or refunded their share of the variance disposed through customer specific billing adjustments. This rate rider is to be consistently applied for the entire period to the sunset date of the rate rider. In addition, this rate rider is applicable to all new non-RPP Class B customers. | H126: 4_GENERAL SERVICE 1,000 to 4,999 kW SERVICE CLASSIFICATION | AA126: The rate rider for the disposition of Global Adjustment is only applicable to non-RPP Class B customers. It is not applicable to Wholesale Market Participant (WMP), customers that transitioned between Class A and Class B during the variance account accumulation period, or to customers that were in Class A for the entire period. Customers who transitioned are to be charged or refunded their share of the variance disposed through customer specific billing adjustments. This rate rider is to be consistently applied for the entire period to the sunset date of the rate rider. In addition, this rate rider is applicable to all new non-RPP Class B customers.
B127: The rate rider for the disposition of WMS - Sub-account CBR Class B is not applicable to wholesale market participants (WMP), customers that transitioned between Class A and Class B during the variance account accumulation period, or to customers that were in Class A for the entire period. Customers who transitioned are to be charged or refunded their share of the variance disposed through customer specific billing adjustments. This rate rider is to be consistently applied for the entire period to the sunset date of the rate rider. In addition, this rate rider is applicable to all new Class B customers. | H127: 4_GENERAL SERVICE 1,000 to 4,999 kW SERVICE CLASSIFICATION | AA127: The rate rider for the disposition of WMS - Sub-account CBR Class B is not applicable to wholesale market participants (WMP), customers that transitioned between Class A and Class B during the variance account accumulation period, or to customers that were in Class A for the entire period. Customers who transitioned are to be charged or refunded their share of the variance disposed through customer specific billing adjustments. This rate rider is to be consistently applied for the entire period to the sunset date of the rate rider. In addition, this rate rider is applicable to all new Class B customers.
B128: It should be noted that this schedule does not list any charges, assessments, or credits that are required by law to be invoiced by a distributor and that are not subject to Ontario Energy Board approval, such as the Debt Retirement Charge, the Global Adjustment and the HST. | H128: 4_GENERAL SERVICE 1,000 to 4,999 kW SERVICE CLASSIFICATION | AA128: It should be noted that this schedule does not list any charges, assessments, or credits that are required by law to be invoiced by a distributor and that are not subject to Ontario Energy Board approval, such as the Debt Retirement Charge, the Global Adjustment and the HST.
B130: MONTHLY RATES AND CHARGES - Delivery Component | H130: 4_MRC_Del | AA130: MONTHLY RATES AND CHARGES - Delivery Component
B132: Service Charge | D132: $ | E132: 1047.76578 | H132: 4_GENERAL SERVICE 1,000 to 4,999 kW SERVICE CLASSIFICATION | I132: A | M132: 4_GENERAL SERVICE 1,000 to 4,999 kW SERVICE CLASSIFICATION_MSC | Z132: Service Charge
B133: Distribution Volumetric Rate | D133: $/kW | E133: 3.6470305 | H133: 4_GENERAL SERVICE 1,000 to 4,999 kW SERVICE CLASSIFICATION | I133: A | M133: 4_GENERAL SERVICE 1,000 to 4,999 kW SERVICE CLASSIFICATION_DVC | Z133: Distribution Volumetric Rate
B134: Low Voltage Service Rate | D134: $/kW | E134: 0.0421 | H134: 4_GENERAL SERVICE 1,000 to 4,999 kW SERVICE CLASSIFICATION | I134: B | M134: 4_GENERAL SERVICE 1,000 to 4,999 kW SERVICE CLASSIFICATION_LV | Z134: Low Voltage Service Rate
B135: Rate Rider for Disposition of Global Adjustment Account (2018) - effective until April 30, 2019 Applicable only for Non-RPP Customers | D135: $/kWh | E135: 0.0033 | H135: 4_GENERAL SERVICE 1,000 to 4,999 kW SERVICE CLASSIFICATION | I135: B | M135: 4_GENERAL SERVICE 1,000 to 4,999 kW SERVICE CLASSIFICATION_GA_kwh | Q135: 2019-04-30 | Z135: Rate Rider for Disposition of Global Adjustment Account (2019) - effective until April 30, 2019 Applicable only for Non-RPP Customers
B136: Rate Rider for Disposition of Deferral/Variance Accounts (2018) - effective until April 30, 2019 Applicable only for Non-Wholesale Market Participants | D136: $/kW | E136: -2.235399761 | H136: 4_GENERAL SERVICE 1,000 to 4,999 kW SERVICE CLASSIFICATION | I136: B | M136: 4_GENERAL SERVICE 1,000 to 4,999 kW SERVICE CLASSIFICATION_DEFVAR_ALL | Q136: 2019-04-30 | Z136: Rate Rider for Disposition of Deferral/Variance Accounts (2019) - effective until April 30, 2019 Applicable only for Non-Wholesale Market Participants
B137: Rate Rider for Disposition of Deferral/Variance Accounts (2018) - effective until April 30, 2019 | D137: $/kW | E137: -0.3984210716 | H137: 4_GENERAL SERVICE 1,000 to 4,999 kW SERVICE CLASSIFICATION | I137: B | M137: 4_GENERAL SERVICE 1,000 to 4,999 kW SERVICE CLASSIFICATION_DEFVAR_ALL | Q137: 2019-04-30 | Z137: Rate Rider for Disposition of Deferral/Variance Accounts (2019) - effective until April 30, 2019
B138: Rate Rider for Disposition of Capacity Based Recovery Account (2018) - effective until April 30, 2019 Applicable only for Class B Customers | D138: $/kW | E138: 0.1709 | H138: 4_GENERAL SERVICE 1,000 to 4,999 kW SERVICE CLASSIFICATION | I138: B | M138: 4_GENERAL SERVICE 1,000 to 4,999 kW SERVICE CLASSIFICATION_VR_RR_26 | Q138: 2019-04-30 | Z138: Rate Rider for Disposition of Capacity Based Recovery Account (2019) - effective until April 30, 2019 Applicable only for Class B Customers
B139: Retail Transmission Rate - Network Service Rate | D139: $/kW | E139: 2.5491 | H139: 4_GENERAL SERVICE 1,000 to 4,999 kW SERVICE CLASSIFICATION | I139: C | M139: 4_GENERAL SERVICE 1,000 to 4,999 kW SERVICE CLASSIFICATION_Retail Transmission Rate - Network Service Rate | Z139: Retail Transmission Rate - Network Service Rate
B140: Retail Transmission Rate - Line and Transformation Connection Service Rate | D140: $/kW | E140: 1.9499 | H140: 4_GENERAL SERVICE 1,000 to 4,999 kW SERVICE CLASSIFICATION | I140: C | M140: 4_GENERAL SERVICE 1,000 to 4,999 kW SERVICE CLASSIFICATION_Retail Transmission Rate - Line and Transformation Connection Service Rate | Z140: Retail Transmission Rate - Line and Transformation Connection Service Rate
B142: MONTHLY RATES AND CHARGES - Regulatory Component | H142: 4_MRC_Reg | Z142: MONTHLY RATES AND CHARGES - Regulatory Component
B144: Wholesale Market Service Rate (WMS) - not including CBR | D144: $/kWh | E144: 0.0032 | H144: 4_GENERAL SERVICE 1,000 to 4,999 kW SERVICE CLASSIFICATION | M144: 4_GENERAL SERVICE 1,000 to 4,999 kW SERVICE CLASSIFICATION_WMSR | Z144: Wholesale Market Service Rate (WMS) - not including CBR
B145: Capacity Based Recovery (CBR) - Applicable for Class B Customers | D145: $/kWh | E145: 0.0004 | H145: 4_GENERAL SERVICE 1,000 to 4,999 kW SERVICE CLASSIFICATION | Z145: Capacity Based Recovery (CBR) - Applicable for Class B Customers
B146: Rural or Remote Electricity Rate Protection Charge (RRRP) | D146: $/kWh | E146: 0.0003 | H146: 4_GENERAL SERVICE 1,000 to 4,999 kW SERVICE CLASSIFICATION | I146: T | M146: 4_GENERAL SERVICE 1,000 to 4,999 kW SERVICE CLASSIFICATION_RRRP | Z146: Rural or Remote Electricity Rate Protection Charge (RRRP)
B147: Standard Supply Service - Administrative Charge (if applicable) | D147: $ | E147: 0.25 | H147: 4_GENERAL SERVICE 1,000 to 4,999 kW SERVICE CLASSIFICATION | I147: T | M147: 4_GENERAL SERVICE 1,000 to 4,999 kW SERVICE CLASSIFICATION_SSS | Z147: Standard Supply Service - Administrative Charge (if applicable) | AS147: X
B148: LARGE USE SERVICE CLASSIFICATION | H148: 5_LARGE USE SERVICE CLASSIFICATION | AA148: LARGE USE SERVICE CLASSIFICATION
B149: General Service refers to the supply of electrical energy to business customers, to bulk-metered residential buildings and to combined residential and business or residential and agricultural buildings. Apartment buildings that are bulk metered will be billed at the appropriate General Service rate. This classification refers to an account whose average monthly peak demand is equal to or greater than, or is forecast to be equal to or greater than, 5,000 kW. Class A and Class B consumers are defined in accordance with O. Reg. 429/04.Further servicing details are available in the distributor's Conditions of Service. | H149: 5_LARGE USE SERVICE CLASSIFICATION | AA149: General Service refers to the supply of electrical energy to business customers, to bulk-metered residential buildings and to combined residential and business or residential and agricultural buildings. Apartment buildings that are bulk metered will be billed at the appropriate General Service rate. This classification refers to an account whose average monthly peak demand is equal to or greater than, or is forecast to be equal to or greater than, 5,000 kW. Class A and Class B consumers are defined in accordance with O. Reg. 429/04.Further servicing details are available in the distributor's Conditions of Service.
B151: APPLICATION | H151: 5_APPLICATION | AA151: APPLICATION
B153: The application of these rates and charges shall be in accordance with the Licence of the Distributor and any Code or Order of the Ontario Energy Board, and amendments thereto as approved by the Ontario Energy Board, which may be applicable to the administration of this schedule. | H153: 5_LARGE USE SERVICE CLASSIFICATION | AA153: The application of these rates and charges shall be in accordance with the Licence of the Distributor and any Code or Order of the Ontario Energy Board, and amendments thereto as approved by the Ontario Energy Board, which may be applicable to the administration of this schedule.
B155: No rates and charges for the distribution of electricity and charges to meet the costs of any work or service done or furnished for the purpose of the distribution of electricity shall be made except as permitted by this schedule, unless required by the Distributor’s Licence or a Code or Order of the Ontario Energy Board, and amendments thereto as approved by the Ontario Energy Board, or as specified herein. | H155: 5_LARGE USE SERVICE CLASSIFICATION | AA155: No rates and charges for the distribution of electricity and charges to meet the costs of any work or service done or furnished for the purpose of the distribution of electricity shall be made except as permitted by this schedule, unless required by the Distributor’s Licence or a Code or Order of the Ontario Energy Board, and amendments thereto as approved by the Ontario Energy Board, or as specified herein.
B157: Unless specifically noted, this schedule does not contain any charges for the electricity commodity, be it under the Regulated Price Plan, a contract with a retailer or the wholesale market price, as applicable. In addition, the charges in the MONTHLY RATES AND CHARGES - Regulatory Component of this schedule do not apply to a customer that is an embedded wholesale market participant. | H157: 5_LARGE USE SERVICE CLASSIFICATION | AA157: Unless specifically noted, this schedule does not contain any charges for the electricity commodity, be it under the Regulated Price Plan, a contract with a retailer or the wholesale market price, as applicable. In addition, the charges in the MONTHLY RATES AND CHARGES - Regulatory Component of this schedule do not apply to a customer that is an embedded wholesale market participant.
B159: The rate rider for the disposition of Global Adjustment is only applicable to non-RPP Class B customers. It is not applicable to Wholesale Market Participant (WMP), customers that transitioned between Class A and Class B during the variance account accumulation period, or to customers that were in Class A for the entire period. Customers who transitioned are to be charged or refunded their share of the variance disposed through customer specific billing adjustments. This rate rider is to be consistently applied for the entire period to the sunset date of the rate rider. In addition, this rate rider is applicable to all new non-RPP Class B customers. | H159: 5_LARGE USE SERVICE CLASSIFICATION | AA159: The rate rider for the disposition of Global Adjustment is only applicable to non-RPP Class B customers. It is not applicable to Wholesale Market Participant (WMP), customers that transitioned between Class A and Class B during the variance account accumulation period, or to customers that were in Class A for the entire period. Customers who transitioned are to be charged or refunded their share of the variance disposed through customer specific billing adjustments. This rate rider is to be consistently applied for the entire period to the sunset date of the rate rider. In addition, this rate rider is applicable to all new non-RPP Class B customers.
B160: The rate rider for the disposition of WMS - Sub-account CBR Class B is not applicable to wholesale market participants (WMP), customers that transitioned between Class A and Class B during the variance account accumulation period, or to customers that were in Class A for the entire period. Customers who transitioned are to be charged or refunded their share of the variance disposed through customer specific billing adjustments. This rate rider is to be consistently applied for the entire period to the sunset date of the rate rider. In addition, this rate rider is applicable to all new Class B customers. | H160: 5_LARGE USE SERVICE CLASSIFICATION | AA160: The rate rider for the disposition of WMS - Sub-account CBR Class B is not applicable to wholesale market participants (WMP), customers that transitioned between Class A and Class B during the variance account accumulation period, or to customers that were in Class A for the entire period. Customers who transitioned are to be charged or refunded their share of the variance disposed through customer specific billing adjustments. This rate rider is to be consistently applied for the entire period to the sunset date of the rate rider. In addition, this rate rider is applicable to all new Class B customers.
B161: It should be noted that this schedule does not list any charges, assessments, or credits that are required by law to be invoiced by a distributor and that are not subject to Ontario Energy Board approval, such as the Debt Retirement Charge, the Global Adjustment and the HST. | H161: 5_LARGE USE SERVICE CLASSIFICATION | AA161: It should be noted that this schedule does not list any charges, assessments, or credits that are required by law to be invoiced by a distributor and that are not subject to Ontario Energy Board approval, such as the Debt Retirement Charge, the Global Adjustment and the HST.
B163: MONTHLY RATES AND CHARGES - Delivery Component | H163: 5_MRC_Del | AA163: MONTHLY RATES AND CHARGES - Delivery Component
B165: Service Charge | D165: $ | E165: 8976.064 | H165: 5_LARGE USE SERVICE CLASSIFICATION | I165: A | M165: 5_LARGE USE SERVICE CLASSIFICATION_MSC | Z165: Service Charge
B166: Distribution Volumetric Rate | D166: $/kW | E166: 2.4926336 | H166: 5_LARGE USE SERVICE CLASSIFICATION | I166: A | M166: 5_LARGE USE SERVICE CLASSIFICATION_DVC | Z166: Distribution Volumetric Rate
B167: Low Voltage Service Rate | D167: $/kW | E167: 0.0421 | H167: 5_LARGE USE SERVICE CLASSIFICATION | I167: B | M167: 5_LARGE USE SERVICE CLASSIFICATION_LV | Z167: Low Voltage Service Rate
B168: Rate Rider for Disposition of Deferral/Variance Accounts (2018) - effective until April 30, 2019 | D168: $/kW | E168: -2.535733921 | H168: 5_LARGE USE SERVICE CLASSIFICATION | I168: B | M168: 5_LARGE USE SERVICE CLASSIFICATION_DEFVAR_ALL | Q168: 2019-04-30 | Z168: Rate Rider for Disposition of Deferral/Variance Accounts (2019) - effective until April 30, 2019
B169: Retail Transmission Rate - Network Service Rate | D169: $/kW | E169: 2.4156 | H169: 5_LARGE USE SERVICE CLASSIFICATION | I169: C | M169: 5_LARGE USE SERVICE CLASSIFICATION_Retail Transmission Rate - Network Service Rate | Z169: Retail Transmission Rate - Network Service Rate
B170: Retail Transmission Rate - Line and Transformation Connection Service Rate | D170: $/kW | E170: 1.9849 | H170: 5_LARGE USE SERVICE CLASSIFICATION | I170: C | M170: 5_LARGE USE SERVICE CLASSIFICATION_Retail Transmission Rate - Line and Transformation Connection Service Rate | Z170: Retail Transmission Rate - Line and Transformation Connection Service Rate
B172: MONTHLY RATES AND CHARGES - Regulatory Component | H172: 5_MRC_Reg | Z172: MONTHLY RATES AND CHARGES - Regulatory Component
B174: Wholesale Market Service Rate (WMS) - not including CBR | D174: $/kWh | E174: 0.0032 | H174: 5_LARGE USE SERVICE CLASSIFICATION | M174: 5_LARGE USE SERVICE CLASSIFICATION_WMSR | Z174: Wholesale Market Service Rate (WMS) - not including CBR
B175: Capacity Based Recovery (CBR) - Applicable for Class B Customers | D175: $/kWh | E175: 0.0004 | H175: 5_LARGE USE SERVICE CLASSIFICATION | Z175: Capacity Based Recovery (CBR) - Applicable for Class B Customers
B176: Rural or Remote Electricity Rate Protection Charge (RRRP) | D176: $/kWh | E176: 0.0003 | H176: 5_LARGE USE SERVICE CLASSIFICATION | I176: T | M176: 5_LARGE USE SERVICE CLASSIFICATION_RRRP | Z176: Rural or Remote Electricity Rate Protection Charge (RRRP)
B177: Standard Supply Service - Administrative Charge (if applicable) | D177: $ | E177: 0.25 | H177: 5_LARGE USE SERVICE CLASSIFICATION | I177: T | M177: 5_LARGE USE SERVICE CLASSIFICATION_SSS | Z177: Standard Supply Service - Administrative Charge (if applicable) | AS177: X
B178: UNMETERED SCATTERED LOAD SERVICE CLASSIFICATION | H178: 6_UNMETERED SCATTERED LOAD SERVICE CLASSIFICATION | AA178: UNMETERED SCATTERED LOAD SERVICE CLASSIFICATION
B179: This classification refers to an account taking electricity at 750 volts or less whose average monthly peak demand is less than, or is forecast to be less than, 50kW and the consumption is unmetered. Such connections include cable TV power packs, bus shelters, telephone booths, traffic lights, railway crossings, etc. The customer will provide detailed manufacturer information/documentation with regard to electrical demand/consumption of the proposed unmetered load. Class B consumers are defined in accordance with O. Reg. 429/04. Further servicing details are available in the distributor's Conditions of Service. | H179: 6_UNMETERED SCATTERED LOAD SERVICE CLASSIFICATION | AA179: This classification refers to an account taking electricity at 750 volts or less whose average monthly peak demand is less than, or is forecast to be less than, 50kW and the consumption is unmetered. Such connections include cable TV power packs, bus shelters, telephone booths, traffic lights, railway crossings, etc. The customer will provide detailed manufacturer information/documentation with regard to electrical demand/consumption of the proposed unmetered load. Class B consumers are defined in accordance with O. Reg. 429/04. Further servicing details are available in the distributor's Conditions of Service.
B181: APPLICATION | H181: 6_APPLICATION | AA181: APPLICATION
B183: The application of these rates and charges shall be in accordance with the Licence of the Distributor and any Code or Order of the Ontario Energy Board, and amendments thereto as approved by the Ontario Energy Board, which may be applicable to the administration of this schedule. | H183: 6_UNMETERED SCATTERED LOAD SERVICE CLASSIFICATION | AA183: The application of these rates and charges shall be in accordance with the Licence of the Distributor and any Code or Order of the Ontario Energy Board, and amendments thereto as approved by the Ontario Energy Board, which may be applicable to the administration of this schedule.
B185: No rates and charges for the distribution of electricity and charges to meet the costs of any work or service done or furnished for the purpose of the distribution of electricity shall be made except as permitted by this schedule, unless required by the Distributor’s Licence or a Code or Order of the Ontario Energy Board, and amendments thereto as approved by the Ontario Energy Board, or as specified herein. | H185: 6_UNMETERED SCATTERED LOAD SERVICE CLASSIFICATION | AA185: No rates and charges for the distribution of electricity and charges to meet the costs of any work or service done or furnished for the purpose of the distribution of electricity shall be made except as permitted by this schedule, unless required by the Distributor’s Licence or a Code or Order of the Ontario Energy Board, and amendments thereto as approved by the Ontario Energy Board, or as specified herein.
B187: Unless specifically noted, this schedule does not contain any charges for the electricity commodity, be it under the Regulated Price Plan, a contract with a retailer or the wholesale market price, as applicable. In addition, the charges in the MONTHLY RATES AND CHARGES - Regulatory Component of this schedule do not apply to a customer that is an embedded wholesale market participant. | H187: 6_UNMETERED SCATTERED LOAD SERVICE CLASSIFICATION | AA187: Unless specifically noted, this schedule does not contain any charges for the electricity commodity, be it under the Regulated Price Plan, a contract with a retailer or the wholesale market price, as applicable. In addition, the charges in the MONTHLY RATES AND CHARGES - Regulatory Component of this schedule do not apply to a customer that is an embedded wholesale market participant.
B189: The rate rider for the disposition of WMS - Sub-account CBR Class B is not applicable to wholesale market participants (WMP), customers that transitioned between Class A and Class B during the variance account accumulation period, or to customers that were in Class A for the entire period. Customers who transitioned are to be charged or refunded their share of the variance disposed through customer specific billing adjustments. This rate rider is to be consistently applied for the entire period to the sunset date of the rate rider. In addition, this rate rider is applicable to all new Class B customers. | H189: 6_UNMETERED SCATTERED LOAD SERVICE CLASSIFICATION | AA189: The rate rider for the disposition of WMS - Sub-account CBR Class B is not applicable to wholesale market participants (WMP), customers that transitioned between Class A and Class B during the variance account accumulation period, or to customers that were in Class A for the entire period. Customers who transitioned are to be charged or refunded their share of the variance disposed through customer specific billing adjustments. This rate rider is to be consistently applied for the entire period to the sunset date of the rate rider. In addition, this rate rider is applicable to all new Class B customers.
B190: It should be noted that this schedule does not list any charges, assessments, or credits that are required by law to be invoiced by a distributor and that are not subject to Ontario Energy Board approval, such as the Debt Retirement Charge, the Global Adjustment and the HST. | H190: 6_UNMETERED SCATTERED LOAD SERVICE CLASSIFICATION | AA190: It should be noted that this schedule does not list any charges, assessments, or credits that are required by law to be invoiced by a distributor and that are not subject to Ontario Energy Board approval, such as the Debt Retirement Charge, the Global Adjustment and the HST.
B192: MONTHLY RATES AND CHARGES - Delivery Component | H192: 6_MRC_Del | AA192: MONTHLY RATES AND CHARGES - Delivery Component
B194: Service Charge (per connection) | D194: $ | E194: 5.89256 | H194: 6_UNMETERED SCATTERED LOAD SERVICE CLASSIFICATION | I194: A | M194: 6_UNMETERED SCATTERED LOAD SERVICE CLASSIFICATION_MSC | Z194: Service Charge (per connection)
B195: Distribution Volumetric Rate | D195: $/kWh | E195: 0.0126125 | H195: 6_UNMETERED SCATTERED LOAD SERVICE CLASSIFICATION | I195: A | M195: 6_UNMETERED SCATTERED LOAD SERVICE CLASSIFICATION_DVC | Z195: Distribution Volumetric Rate
B196: Low Voltage Service Rate | D196: $/kWh | E196: 0.0001 | H196: 6_UNMETERED SCATTERED LOAD SERVICE CLASSIFICATION | I196: B | M196: 6_UNMETERED SCATTERED LOAD SERVICE CLASSIFICATION_LV | Z196: Low Voltage Service Rate
B197: Rate Rider for Disposition of Global Adjustment Account (2018) - effective until April 30, 2019 Applicable only for Non-RPP Customers | D197: $/kWh | E197: 0.0032 | H197: 6_UNMETERED SCATTERED LOAD SERVICE CLASSIFICATION | I197: B | M197: 6_UNMETERED SCATTERED LOAD SERVICE CLASSIFICATION_GA_kwh | Q197: 2019-04-30 | Z197: Rate Rider for Disposition of Global Adjustment Account (2019) - effective until April 30, 2019 Applicable only for Non-RPP Customers
B198: Rate Rider for Disposition of Deferral/Variance Accounts (2018) - effective until April 30, 2019 | D198: $/kWh | E198: -0.006202260836 | H198: 6_UNMETERED SCATTERED LOAD SERVICE CLASSIFICATION | I198: B | M198: 6_UNMETERED SCATTERED LOAD SERVICE CLASSIFICATION_DEFVAR_ALL | Q198: 2019-04-30 | Z198: Rate Rider for Disposition of Deferral/Variance Accounts (2019) - effective until April 30, 2019
B199: Rate Rider for Disposition of Capacity Based Recovery Account (2018) - effective until April 30, 2019 Applicable only for Class B Customers | D199: $/kWh | E199: 0.0004 | H199: 6_UNMETERED SCATTERED LOAD SERVICE CLASSIFICATION | I199: B | M199: 6_UNMETERED SCATTERED LOAD SERVICE CLASSIFICATION_VR_RR_30 | Q199: 2019-04-30 | Z199: Rate Rider for Disposition of Capacity Based Recovery Account (2019) - effective until April 30, 2019 Applicable only for Class B Customers
B200: Retail Transmission Rate - Network Service Rate | D200: $/kWh | E200: 0.0052 | H200: 6_UNMETERED SCATTERED LOAD SERVICE CLASSIFICATION | I200: C | M200: 6_UNMETERED SCATTERED LOAD SERVICE CLASSIFICATION_Retail Transmission Rate - Network Service Rate | Z200: Retail Transmission Rate - Network Service Rate
B201: Retail Transmission Rate - Line and Transformation Connection Service Rate | D201: $/kWh | E201: 0.0041 | H201: 6_UNMETERED SCATTERED LOAD SERVICE CLASSIFICATION | I201: C | M201: 6_UNMETERED SCATTERED LOAD SERVICE CLASSIFICATION_Retail Transmission Rate - Line and Transformation Connection Service Rate | Z201: Retail Transmission Rate - Line and Transformation Connection Service Rate
B203: MONTHLY RATES AND CHARGES - Regulatory Component | H203: 6_MRC_Reg | Z203: MONTHLY RATES AND CHARGES - Regulatory Component
B205: Wholesale Market Service Rate (WMS) - not including CBR | D205: $/kWh | E205: 0.0032 | H205: 6_UNMETERED SCATTERED LOAD SERVICE CLASSIFICATION | M205: 6_UNMETERED SCATTERED LOAD SERVICE CLASSIFICATION_WMSR | Z205: Wholesale Market Service Rate (WMS) - not including CBR
B206: Capacity Based Recovery (CBR) - Applicable for Class B Customers | D206: $/kWh | E206: 0.0004 | H206: 6_UNMETERED SCATTERED LOAD SERVICE CLASSIFICATION | Z206: Capacity Based Recovery (CBR) - Applicable for Class B Customers
B207: Rural or Remote Electricity Rate Protection Charge (RRRP) | D207: $/kWh | E207: 0.0003 | H207: 6_UNMETERED SCATTERED LOAD SERVICE CLASSIFICATION | I207: T | M207: 6_UNMETERED SCATTERED LOAD SERVICE CLASSIFICATION_RRRP | Z207: Rural or Remote Electricity Rate Protection Charge (RRRP)
B208: Standard Supply Service - Administrative Charge (if applicable) | D208: $ | E208: 0.25 | H208: 6_UNMETERED SCATTERED LOAD SERVICE CLASSIFICATION | I208: T | M208: 6_UNMETERED SCATTERED LOAD SERVICE CLASSIFICATION_SSS | Z208: Standard Supply Service - Administrative Charge (if applicable) | AS208: X
B209: STREET LIGHTING SERVICE CLASSIFICATION | H209: 7_STREET LIGHTING SERVICE CLASSIFICATION | AA209: STREET LIGHTING SERVICE CLASSIFICATION
B210: This classification refers to an account for roadway lighting with a Municipality, Regional Municipality, Ministry of Transportation and private roadway lighting operation, controlled by photo cells. The consumption for these customers will be based on the calculated connected load times the required lighting times established in the approved Ontario Energy Board street lighting load shape template. Class B consumers are defined in accordance with O. Reg. 429/04. Further servicing details are available in the distributor's Conditions of Service. | H210: 7_STREET LIGHTING SERVICE CLASSIFICATION | AA210: This classification refers to an account for roadway lighting with a Municipality, Regional Municipality, Ministry of Transportation and private roadway lighting operation, controlled by photo cells. The consumption for these customers will be based on the calculated connected load times the required lighting times established in the approved Ontario Energy Board street lighting load shape template. Class B consumers are defined in accordance with O. Reg. 429/04. Further servicing details are available in the distributor's Conditions of Service.
B212: APPLICATION | H212: 7_APPLICATION | AA212: APPLICATION
B214: The application of these rates and charges shall be in accordance with the Licence of the Distributor and any Code or Order of the Ontario Energy Board, and amendments thereto as approved by the Ontario Energy Board, which may be applicable to the administration of this schedule. | H214: 7_STREET LIGHTING SERVICE CLASSIFICATION | AA214: The application of these rates and charges shall be in accordance with the Licence of the Distributor and any Code or Order of the Ontario Energy Board, and amendments thereto as approved by the Ontario Energy Board, which may be applicable to the administration of this schedule.
B216: No rates and charges for the distribution of electricity and charges to meet the costs of any work or service done or furnished for the purpose of the distribution of electricity shall be made except as permitted by this schedule, unless required by the Distributor’s Licence or a Code or Order of the Ontario Energy Board, and amendments thereto as approved by the Ontario Energy Board, or as specified herein. | H216: 7_STREET LIGHTING SERVICE CLASSIFICATION | AA216: No rates and charges for the distribution of electricity and charges to meet the costs of any work or service done or furnished for the purpose of the distribution of electricity shall be made except as permitted by this schedule, unless required by the Distributor’s Licence or a Code or Order of the Ontario Energy Board, and amendments thereto as approved by the Ontario Energy Board, or as specified herein.
B218: Unless specifically noted, this schedule does not contain any charges for the electricity commodity, be it under the Regulated Price Plan, a contract with a retailer or the wholesale market price, as applicable. In addition, the charges in the MONTHLY RATES AND CHARGES - Regulatory Component of this schedule do not apply to a customer that is an embedded wholesale market participant. | H218: 7_STREET LIGHTING SERVICE CLASSIFICATION | AA218: Unless specifically noted, this schedule does not contain any charges for the electricity commodity, be it under the Regulated Price Plan, a contract with a retailer or the wholesale market price, as applicable. In addition, the charges in the MONTHLY RATES AND CHARGES - Regulatory Component of this schedule do not apply to a customer that is an embedded wholesale market participant.
B220: The rate rider for the disposition of WMS - Sub-account CBR Class B is not applicable to wholesale market participants (WMP), customers that transitioned between Class A and Class B during the variance account accumulation period, or to customers that were in Class A for the entire period. Customers who transitioned are to be charged or refunded their share of the variance disposed through customer specific billing adjustments. This rate rider is to be consistently applied for the entire period to the sunset date of the rate rider. In addition, this rate rider is applicable to all new Class B customers. | H220: 7_STREET LIGHTING SERVICE CLASSIFICATION | AA220: The rate rider for the disposition of WMS - Sub-account CBR Class B is not applicable to wholesale market participants (WMP), customers that transitioned between Class A and Class B during the variance account accumulation period, or to customers that were in Class A for the entire period. Customers who transitioned are to be charged or refunded their share of the variance disposed through customer specific billing adjustments. This rate rider is to be consistently applied for the entire period to the sunset date of the rate rider. In addition, this rate rider is applicable to all new Class B customers.
B221: It should be noted that this schedule does not list any charges, assessments, or credits that are required by law to be invoiced by a distributor and that are not subject to Ontario Energy Board approval, such as the Debt Retirement Charge, the Global Adjustment and the HST. | H221: 7_STREET LIGHTING SERVICE CLASSIFICATION | AA221: It should be noted that this schedule does not list any charges, assessments, or credits that are required by law to be invoiced by a distributor and that are not subject to Ontario Energy Board approval, such as the Debt Retirement Charge, the Global Adjustment and the HST.
B223: MONTHLY RATES AND CHARGES - Delivery Component | H223: 7_MRC_Del | AA223: MONTHLY RATES AND CHARGES - Delivery Component
B225: Service Charge (per connection) | D225: $ | E225: 2.56286 | H225: 7_STREET LIGHTING SERVICE CLASSIFICATION | I225: A | M225: 7_STREET LIGHTING SERVICE CLASSIFICATION_MSC | Z225: Service Charge (per connection)
B226: Distribution Volumetric Rate | D226: $/kW | E226: 16.3655764 | H226: 7_STREET LIGHTING SERVICE CLASSIFICATION | I226: A | M226: 7_STREET LIGHTING SERVICE CLASSIFICATION_DVC | Z226: Distribution Volumetric Rate
B227: Low Voltage Service Rate | D227: $/kW | E227: 0.027 | H227: 7_STREET LIGHTING SERVICE CLASSIFICATION | I227: B | M227: 7_STREET LIGHTING SERVICE CLASSIFICATION_LV | Z227: Low Voltage Service Rate
B228: Rate Rider for Disposition of Global Adjustment Account (2018) - effective until April 30, 2019 Applicable only for Non-RPP Customers | D228: $/kWh | E228: 0.0033 | H228: 7_STREET LIGHTING SERVICE CLASSIFICATION | I228: B | M228: 7_STREET LIGHTING SERVICE CLASSIFICATION_GA_kwh | Q228: 2019-04-30 | Z228: Rate Rider for Disposition of Global Adjustment Account (2019) - effective until April 30, 2019 Applicable only for Non-RPP Customers
B229: Rate Rider for Disposition of Deferral/Variance Accounts (2018) - effective until April 30, 2019 | D229: $/kW | E229: -2.240683154 | H229: 7_STREET LIGHTING SERVICE CLASSIFICATION | I229: B | M229: 7_STREET LIGHTING SERVICE CLASSIFICATION_DEFVAR_ALL | Q229: 2019-04-30 | Z229: Rate Rider for Disposition of Deferral/Variance Accounts (2019) - effective until April 30, 2019
B230: Rate Rider for Disposition of Capacity Based Recovery Account (2018) - effective until April 30, 2019 Applicable only for Class B Customers | D230: $/kW | E230: 0.1531 | H230: 7_STREET LIGHTING SERVICE CLASSIFICATION | I230: B | M230: 7_STREET LIGHTING SERVICE CLASSIFICATION_VR_RR_33 | Q230: 2019-04-30 | Z230: Rate Rider for Disposition of Capacity Based Recovery Account (2019) - effective until April 30, 2019 Applicable only for Class B Customers
B231: Retail Transmission Rate - Network Service Rate | D231: $/kW | E231: 1.6867 | H231: 7_STREET LIGHTING SERVICE CLASSIFICATION | I231: C | M231: 7_STREET LIGHTING SERVICE CLASSIFICATION_Retail Transmission Rate - Network Service Rate | Z231: Retail Transmission Rate - Network Service Rate
B232: Retail Transmission Rate - Line and Transformation Connection Service Rate | D232: $/kW | E232: 1.2486 | H232: 7_STREET LIGHTING SERVICE CLASSIFICATION | I232: C | M232: 7_STREET LIGHTING SERVICE CLASSIFICATION_Retail Transmission Rate - Line and Transformation Connection Service Rate | Z232: Retail Transmission Rate - Line and Transformation Connection Service Rate
B234: MONTHLY RATES AND CHARGES - Regulatory Component | H234: 7_MRC_Reg | Z234: MONTHLY RATES AND CHARGES - Regulatory Component
B236: Wholesale Market Service Rate (WMS) - not including CBR | D236: $/kWh | E236: 0.0032 | H236: 7_STREET LIGHTING SERVICE CLASSIFICATION | M236: 7_STREET LIGHTING SERVICE CLASSIFICATION_WMSR | Z236: Wholesale Market Service Rate (WMS) - not including CBR
B237: Capacity Based Recovery (CBR) - Applicable for Class B Customers | D237: $/kWh | E237: 0.0004 | H237: 7_STREET LIGHTING SERVICE CLASSIFICATION | Z237: Capacity Based Recovery (CBR) - Applicable for Class B Customers
B238: Rural or Remote Electricity Rate Protection Charge (RRRP) | D238: $/kWh | E238: 0.0003 | H238: 7_STREET LIGHTING SERVICE CLASSIFICATION | I238: T | M238: 7_STREET LIGHTING SERVICE CLASSIFICATION_RRRP | Z238: Rural or Remote Electricity Rate Protection Charge (RRRP)
B239: Standard Supply Service - Administrative Charge (if applicable) | D239: $ | E239: 0.25 | H239: 7_STREET LIGHTING SERVICE CLASSIFICATION | I239: T | M239: 7_STREET LIGHTING SERVICE CLASSIFICATION_SSS | Z239: Standard Supply Service - Administrative Charge (if applicable) | AS239: X
B240: EMBEDDED DISTRIBUTOR SERVICE CLASSIFICATION | H240: 8_EMBEDDED DISTRIBUTOR SERVICE CLASSIFICATION | AA240: EMBEDDED DISTRIBUTOR SERVICE CLASSIFICATION
B241: This classification applies to an electricity distributor licenced by the Ontario Energy Board, that is provided electricity by means of this distributor's facilities. Further servicing details are available in the distributor's Conditions of Service. | H241: 8_EMBEDDED DISTRIBUTOR SERVICE CLASSIFICATION | AA241: This classification applies to an electricity distributor licenced by the Ontario Energy Board, that is provided electricity by means of this distributor's facilities. Further servicing details are available in the distributor's Conditions of Service.
B243: APPLICATION | H243: 8_APPLICATION | AA243: APPLICATION
B245: The application of these rates and charges shall be in accordance with the Licence of the Distributor and any Code or Order of the Ontario Energy Board, and amendments thereto as approved by the Ontario Energy Board, which may be applicable to the administration of this schedule. | H245: 8_EMBEDDED DISTRIBUTOR SERVICE CLASSIFICATION | AA245: The application of these rates and charges shall be in accordance with the Licence of the Distributor and any Code or Order of the Ontario Energy Board, and amendments thereto as approved by the Ontario Energy Board, which may be applicable to the administration of this schedule.
B247: No rates and charges for the distribution of electricity and charges to meet the costs of any work or service done or furnished for the purpose of the distribution of electricity shall be made except as permitted by this schedule, unless required by the Distributor’s Licence or a Code or Order of the Ontario Energy Board, and amendments thereto as approved by the Ontario Energy Board, or as specified herein. | H247: 8_EMBEDDED DISTRIBUTOR SERVICE CLASSIFICATION | AA247: No rates and charges for the distribution of electricity and charges to meet the costs of any work or service done or furnished for the purpose of the distribution of electricity shall be made except as permitted by this schedule, unless required by the Distributor’s Licence or a Code or Order of the Ontario Energy Board, and amendments thereto as approved by the Ontario Energy Board, or as specified herein.
B249: Unless specifically noted, this schedule does not contain any charges for the electricity commodity, be it under the Regulated Price Plan, a contract with a retailer or the wholesale market price, as applicable. In addition, the charges in the MONTHLY RATES AND CHARGES - Regulatory Component of this schedule do not apply to a customer that is an embedded wholesale market participant. | H249: 8_EMBEDDED DISTRIBUTOR SERVICE CLASSIFICATION | AA249: Unless specifically noted, this schedule does not contain any charges for the electricity commodity, be it under the Regulated Price Plan, a contract with a retailer or the wholesale market price, as applicable. In addition, the charges in the MONTHLY RATES AND CHARGES - Regulatory Component of this schedule do not apply to a customer that is an embedded wholesale market participant.
B251: It should be noted that this schedule does not list any charges, assessments, or credits that are required by law to be invoiced by a distributor and that are not subject to Ontario Energy Board approval, such as the Debt Retirement Charge, the Global Adjustment and the HST. | H251: 8_EMBEDDED DISTRIBUTOR SERVICE CLASSIFICATION | AA251: It should be noted that this schedule does not list any charges, assessments, or credits that are required by law to be invoiced by a distributor and that are not subject to Ontario Energy Board approval, such as the Debt Retirement Charge, the Global Adjustment and the HST.
B253: MONTHLY RATES AND CHARGES - Delivery Component | H253: 8_MRC_Del | AA253: MONTHLY RATES AND CHARGES - Delivery Component
B255: Monthly Distribution Wheeling Service Rate - Waterloo North Hydro | D255: $/kW | E255: 1.9166964 | H255: 8_EMBEDDED DISTRIBUTOR SERVICE CLASSIFICATION | I255: A | M255: 8_EMBEDDED DISTRIBUTOR SERVICE CLASSIFICATION_DWSR | Z255: Monthly Distribution Wheeling Service Rate - Waterloo North Hydro
B256: Monthly Distribution Wheeling Service Rate - Hydro One Networks | D256: $/kW | E256: 2.0575528 | H256: 8_EMBEDDED DISTRIBUTOR SERVICE CLASSIFICATION | I256: A | M256: 8_EMBEDDED DISTRIBUTOR SERVICE CLASSIFICATION_DWSR | Z256: Monthly Distribution Wheeling Service Rate - Hydro One Networks
B257: Rate Rider for Disposition of Global Adjustment Account (2018) - effective until April 30, 2019 Applicable only for Non-RPP Customers | D257: $/kWh | E257: 0.0033
B258: Rate Rider for Disposition of Deferral/Variance Accounts (2018) - effective until April 30, 2019 | D258: $/kW | E258: -0.5388
B259: Rate Rider for Disposition of Capacity Based Recovery Account (2018) - effective until April 30, 2019 Applicable only for Class B Customers | D259: $/kW | E259: 0.0368
B260: Retail Transmission Rate - Network Service Rate | D260: $/kW | E260: 2.4156 | H260: 8_EMBEDDED DISTRIBUTOR SERVICE CLASSIFICATION | I260: C | M260: 8_EMBEDDED DISTRIBUTOR SERVICE CLASSIFICATION_Retail Transmission Rate - Network Service Rate | Z260: Retail Transmission Rate - Network Service Rate
B261: Retail Transmission Rate - Line and Transformation Connection Service Rate | D261: $/kW | E261: 1.9849 | H261: 8_EMBEDDED DISTRIBUTOR SERVICE CLASSIFICATION | I261: C | M261: 8_EMBEDDED DISTRIBUTOR SERVICE CLASSIFICATION_Retail Transmission Rate - Line and Transformation Connection Service Rate | Z261: Retail Transmission Rate - Line and Transformation Connection Service Rate
B263: MONTHLY RATES AND CHARGES - Regulatory Component | H263: 8_MRC_Reg | Z263: MONTHLY RATES AND CHARGES - Regulatory Component
B265: Wholesale Market Service Rate (WMS) - not including CBR | D265: $/kWh | E265: 0.0032 | H265: 8_EMBEDDED DISTRIBUTOR SERVICE CLASSIFICATION | M265: 8_EMBEDDED DISTRIBUTOR SERVICE CLASSIFICATION_WMSR | Z265: Wholesale Market Service Rate (WMS) - not including CBR
B266: Capacity Based Recovery (CBR) - Applicable for Class B Customers | D266: $/kWh | E266: 0.0004 | H266: 8_EMBEDDED DISTRIBUTOR SERVICE CLASSIFICATION | Z266: Capacity Based Recovery (CBR) - Applicable for Class B Customers
B267: Rural or Remote Electricity Rate Protection Charge (RRRP) | D267: $/kWh | E267: 0.0003 | H267: 8_EMBEDDED DISTRIBUTOR SERVICE CLASSIFICATION | I267: T | M267: 8_EMBEDDED DISTRIBUTOR SERVICE CLASSIFICATION_RRRP | Z267: Rural or Remote Electricity Rate Protection Charge (RRRP)
B268: Standard Supply Service - Administrative Charge (if applicable) | D268: $ | E268: 0.25 | H268: 8_EMBEDDED DISTRIBUTOR SERVICE CLASSIFICATION | I268: T | M268: 8_EMBEDDED DISTRIBUTOR SERVICE CLASSIFICATION_SSS | Z268: Standard Supply Service - Administrative Charge (if applicable) | AS268: X
B269: microFIT SERVICE CLASSIFICATION | H269: 9_microFIT SERVICE CLASSIFICATION | AA269: microFIT SERVICE CLASSIFICATION
B270: This classification applies to an electricity generation facility contracted under the Independent Electricity System Operator’s microFIT program and connected to the distributor's distribution system. Further servicing details are available in the distributor's Conditions of Service. | H270: 9_microFIT SERVICE CLASSIFICATION | AA270: This classification applies to an electricity generation facility contracted under the Independent Electricity System Operator’s microFIT program and connected to the distributor's distribution system. Further servicing details are available in the distributor's Conditions of Service.
B272: APPLICATION | H272: 9_APPLICATION | AA272: APPLICATION
B274: The application of these rates and charges shall be in accordance with the Licence of the Distributor and any Code or Order of the Ontario Energy Board, and amendments thereto as approved by the Ontario Energy Board, which may be applicable to the administration of this schedule. | H274: 9_microFIT SERVICE CLASSIFICATION | AA274: The application of these rates and charges shall be in accordance with the Licence of the Distributor and any Code or Order of the Ontario Energy Board, and amendments thereto as approved by the Ontario Energy Board, which may be applicable to the administration of this schedule.
B276: No rates and charges for the distribution of electricity and charges to meet the costs of any work or service done or furnished for the purpose of the distribution of electricity shall be made except as permitted by this schedule, unless required by the Distributor’s Licence or a Code or Order of the Ontario Energy Board, and amendments thereto as approved by the Ontario Energy Board, or as specified herein. | H276: 9_microFIT SERVICE CLASSIFICATION | AA276: No rates and charges for the distribution of electricity and charges to meet the costs of any work or service done or furnished for the purpose of the distribution of electricity shall be made except as permitted by this schedule, unless required by the Distributor’s Licence or a Code or Order of the Ontario Energy Board, and amendments thereto as approved by the Ontario Energy Board, or as specified herein.
B278: Unless specifically noted, this schedule does not contain any charges for the electricity commodity, be it under the Regulated Price Plan, a contract with a retailer or the wholesale market price, as applicable. | H278: 9_microFIT SERVICE CLASSIFICATION | AA278: Unless specifically noted, this schedule does not contain any charges for the electricity commodity, be it under the Regulated Price Plan, a contract with a retailer or the wholesale market price, as applicable.
B280: It should be noted that this schedule does not list any charges, assessments, or credits that are required by law to be invoiced by a distributor and that are not subject to Ontario Energy Board approval, such as the Debt Retirement Charge, the Global Adjustment and the HST. | H280: 9_microFIT SERVICE CLASSIFICATION | AA280: It should be noted that this schedule does not list any charges, assessments, or credits that are required by law to be invoiced by a distributor and that are not subject to Ontario Energy Board approval, such as the Debt Retirement Charge, the Global Adjustment and the HST.
B282: MONTHLY RATES AND CHARGES - Delivery Component | H282: 9_MRC_Del | AA282: MONTHLY RATES AND CHARGES - Delivery Component
B284: Service Charge | D284: $ | E284: 5.4 | H284: 9_microFIT SERVICE CLASSIFICATION | I284: A | M284: 9_microFIT SERVICE CLASSIFICATION_MSC | Z284: Service Charge
AS285: X
B286: ALLOWANCES | H286: Energy+ Inc._ALLOWANCES
B287: Transformer Allowance for Ownership - per kW of billing demand/month | D287: $/kW | E287: -0.6 | Z287: Transformer Allowance for Ownership - per kW of billing demand/month
B288: Primary Metering Allowance for Transformer Losses - applied to measured demand & energy | D288: % | E288: -1 | Z288: Primary Metering Allowance for Transformer Losses - applied to measured demand & energy | AS288: X
... 62 more rows

Sheet 2016 List (hidden)
A1: Algoma Power Inc. | B1: HHPNS717 | X1: 0 | Y1: 0
A2: Atikokan Hydro Inc. | B2: KSUYD122 | C2: Fort Erie Service Area | D2: X | AA2: Retail Transmission Rate - Line and Transformation Connection Service Rate
A3: Bluewater Power Distribution Corporation | B3: WKBSV849 | C3: Eastern Ontario Power Service Area | D3: X | AA3: Retail Transmission Rate - Line and Transformation Connection Service Rate - < 1,000 kW
A4: Brantford Power Inc. | B4: GQQHM388 | C4: Port Colborne Service Area | D4: X | AA4: Retail Transmission Rate - Line and Transformation Connection Service Rate - Interval Metered
A5: Burlington Hydro Inc. | B5: SFXZP935 | D5: X | AA5: Retail Transmission Rate - Line and Transformation Connection Service Rate - Interval Metered (1,000 to 4,999 kW)
A6: Canadian Niagara Power Inc. | B6: KQEEH473 | C6: Former Chatham-Kent Hydro Service Area | D6: X | AA6: Retail Transmission Rate - Line and Transformation Connection Service Rate - Interval Metered < 1,000 kW
A7: Centre Wellington Hydro Ltd. | B7: OARZC118 | C7: Strathroy, Mount Brydges & Parkhill Service Area | AA7: Retail Transmission Rate - Line and Transformation Connection Service Rate - Interval Metered > 1,000 kW
A8: Chapleau Public Utilities Corporation | B8: WKBSV849 | C8: Dutton Service Area | D8: X | AA8: Retail Transmission Rate - Line Connection Service Rate
A9: Collus PowerStream Corp. | B9: FUIJX538 | AA9: Retail Transmission Rate - Transformation Connection Service Rate
A10: Cooperative Hydro Embrun Inc. | B10: HJHBH994 | C10: Newbury Service Area | D10: X
A11: E.L.K. Energy Inc. | B11: NJYBW716
A12: Energy+ Inc. | B12: QXHJU641 | D12: X
A13: Enersource Hydro Mississauga Inc. | B13: AVXSO594 | C13: For Former Parry Sound Power Service Area | D13: X
A14: Entegrus Powerlines Inc. | B14: TVKSH414 | C14: Except for the Former Parry Sound Power Service Area | D14: X
A15: EnWin Utilities Ltd. | B15: DUISI693 | D15: X
A16: Erie Thames Powerlines Corporation | B16: JMNNR431 | C16: For Former Brant County Power Service Area
A17: Espanola Regional Hydro Distribution Corporation | B17: GQQHM388 | C17: For Former Cambridge and North Dumfries Hydro Service Area | D17: X
A18: Essex Powerlines Corporation | B18: QHCKN852
A19: Festival Hydro Inc. | B19: PWKJP953 | D19: X
A20: Fort Frances Power Corporation | B20: ADICB565 | C20: Former Haldimand County Hydro Inc. Service Area | AA20: Retail Transmission Rate - Network Service Rate
A21: Greater Sudbury Hydro Inc. | B21: YEOQG654 | C21: Former Norfolk Power Distribution Inc. Service Area | AA21: Retail Transmission Rate - Network Service Rate - < 1,000 kW
A22: Grimsby Power Incorporated | B22: LRECV427 | C22: Former Woodstock Hydro Services Inc. Service Area | AA22: Retail Transmission Rate - Network Service Rate - Interval Metered
A23: Guelph Hydro Electric Systems Inc. | B23: PQZCY963 | AA23: Retail Transmission Rate - Network Service Rate - Interval Metered (1,000 to 4,999 kW)
A24: Halton Hills Hydro Inc. | B24: KTCNY552 | D24: X | AA24: Retail Transmission Rate - Network Service Rate - Interval Metered < 1,000 kW
A25: Hearst Power Distribution Company Ltd. | B25: YEPCI143 | AA25: Retail Transmission Rate - Network Service Rate - Interval Metered > 1,000 kW
A26: Horizon Utilities Corporation | B26: GRHTW113
A27: Hydro 2000 Inc. | B27: GTLBW445
A28: Hydro Hawkesbury Inc. | B28: HHPNS717 | D28: X
A29: Hydro One Brampton Networks Inc. | B29: NJYBW716
A30: Hydro One Networks Inc. | B30: GMGHU415
A31: Hydro Ottawa Limited | B31: YTPWF351 | D31: X
A32: InnPower Corporation | B32: SFXZP935
A33: Kenora Hydro Electric Corporation Ltd. | B33: YCYKQ642 | D33: X
A34: Kingston Hydro Corporation | B34: ADZFM459 | D34: X
A35: Kitchener-Wilmot Hydro Inc. | B35: RVWKN794
A36: Lakefront Utilities Inc. | B36: XCFPH269
A37: Lakeland Power Distribution Ltd. | B37: KESKM585 | D37: X
A38: London Hydro Inc. | B38: MQFNL784 | D38: X
A39: Midland Power Utility Corporation | B39: JEGGW178
A40: Milton Hydro Distribution Inc. | B40: FNDHH648
A41: Newmarket - Tay Power Distribution Ltd. | B41: PTREM828
A42: Niagara Peninsula Energy Inc. | B42: TXKTT167
A43: Niagara-on-the-Lake Hydro Inc. | B43: UBBYF452
A44: North Bay Hydro Distribution Limited | B44: NSBED625 | D44: X
A45: Northern Ontario Wires Inc. | B45: CPEFQ593
A46: Oakville Hydro Electricity Distribution Inc. | B46: MLWYG784 | D46: X
A47: Orangeville Hydro Limited | B47: ZHKLA874 | D47: X
A48: Orillia Power Distribution Corporation | B48: YLJHT264 | D48: X
A49: Oshawa PUC Networks Inc. | B49: JKBZG525
A50: Ottawa River Power Corporation | B50: YLCEC559
A51: Peterborough Distribution Incorporated | B51: OARZC118 | D51: X
A52: PowerStream Inc. | B52: KQEEH473 | D52: X
A53: PUC Distribution Inc. | B53: NHKJF259
A54: Renfrew Hydro Inc. | B54: SLRXO177
A55: Rideau St. Lawrence Distribution Inc. | B55: SLRXO178
A56: Sioux Lookout Hydro Inc. | B56: UIFEM157 | D56: X
A57: St. Thomas Energy Inc. | B57: RUZIU984 | D57: X
A58: Thunder Bay Hydro Electricity Distribution Inc. | B58: HJHBH994 | D58: X
A59: Tillsonburg Hydro Inc. | B59: AMZEN437
A60: Toronto Hydro-Electric System Limited | B60: ACEVX242 | D60: X
A61: Veridian Connections Inc. | B61: PTLUC812
A62: Wasaga Distribution Inc. | B62: QDKIF127 | D62: X
A63: Waterloo North Hydro Inc. | B63: OLIUU862 | D63: X
A64: Welland Hydro-Electric System Corp. | B64: NIOJF461
A65: Wellington North Power Inc. | B65: ZYZFO848
A66: West Coast Huron Energy Inc. | B66: ASEGZ471
A67: Westario Power Inc. | B67: IOKHC383 | D67: X
A68: Whitby Hydro Electric Corporation | B68: DSPWZ318
D69: X
D72: X
D73: X

Sheet 3. Regulatory Charges
B12: Update the following rates if an OEB Decision has been issued at the time of completing this application
B13: Regulatory Charges | D13: Proposed
B14: Wholesale Market Service Rate (WMS) - not including CBR | C14: $/kWh | D14: 0.0032
B15: Capacity Based Recovery (CBR) - Applicable for Class B Customers | C15: $/kWh | D15: 0.0004
B16: Rural or Remote Electricity Rate Protection Charge (RRRP) | C16: $/kWh | D16: 0.0003
B17: Standard Supply Service - Administrative Charge (if applicable) | C17: $ | D17: 0.25
B18: Ontario Electricity Support Program (OESP) | C18: $/kWh | D18: 0
B21: Time-of-Use RPP Prices
B22: As of | C22: 2017-07-01
B23: Off-Peak | C23: $/kWh | D23: 0.065
B24: Mid-Peak | C24: $/kWh | D24: 0.095
B25: On-Peak | C25: $/kWh | D25: 0.132
B28: Debt Retirement Charge (DRC)
B29: Debt Retirement Charge (DRC) | C29: $/kWh | D29: 0.007 | E29: If your utility's DRC differs from the value in Cell D29, please update this value.

Sheet 4.2-TS Tariff Schedule
CQ1: ='1. Information Sheet'!F18 -> EB-2018-0028 | DA1: TRUE
E12: 9
B14: Identify Your Rate Classes in the Blue Cells below. Rate class names can be selected from the pull-dwon menu. Please ensure that a rate class is assigned to each shaded cell.
B15: List of Rate Classes | CD15: Linked to: | CG15: Add before:
B30: Energy+ Inc. | F30: X | G30: Energy+ Inc.-For Former Cambridge and North Dumfries Hydro Service Area_Start | H30: ENERGY+ INC. | V30: 12
B31: For Former Cambridge and North Dumfries Hydro Service Area | V31: 58
B32: TARIFF OF RATES AND CHARGES | V32: 27
B33: Effective and Implementation Date May 1, 2018 | P33: 2018-05-01 | V33: 45
B34: This schedule supersedes and replaces all previously | V34: 52
B35: approved schedules of Rates, Charges and Loss Factors | V35: 53
B36: ='1. Information Sheet'!F18 -> EB-2018-0028 | H36: EB-2018-0028 | V36: 12 | AA36: EB-2017-0030 | AS36: X
B37: RESIDENTIAL SERVICE CLASSIFICATION | H37: 1_RESIDENTIAL SERVICE CLASSIFICATION | V37: 34 | AA37: RESIDENTIAL SERVICE CLASSIFICATION
B38: Residential refers to the supply of electrical energy to detached, semi-detached and row-housing units (freehold or condominium). This classification typically refers to an account taking electricity at 750 volts or less where electricity is used exclusively in a separate metered living accommodation. Customers shall be residing in single-dwelling units that consist of a detached house or one unit of a semi-detached, duplex, triplex, or quadruplex house, with a residential zoning. Separate metered dwellings within a town house complex, condominium, or apartment building also qualify as residential customers. Class B consumers are defined in accordance with O. Reg. 429/04. Further servicing details are available in the distributor's Conditions of Service. | H38: 1_RESIDENTIAL SERVICE CLASSIFICATION | V38: 768 | AA38: Residential refers to the supply of electrical energy to detached, semi-detached and row-housing units (freehold or condominium). This classification typically refers to an account taking electricity at 750 volts or less where electricity is used exclusively in a separate metered living accommodation. Customers shall be residing in single-dwelling units that consist of a detached house or one unit of a semi-detached, duplex, triplex, or quadruplex house, with a residential zoning. Separate metered dwellings within a town house complex, condominium, or apartment building also qualify as residential customers. Class B consumers are defined in accordance with O. Reg. 429/04. Further servicing details are available in the distributor's Conditions of Service.
B39: APPLICATION | H39: 1_APPLICATION | V39: 11 | AA39: APPLICATION
B40: The application of these rates and charges shall be in accordance with the Licence of the Distributor and any Code or Order of the Ontario Energy Board, and amendments thereto as approved by the Ontario Energy Board, which may be applicable to the administration of this schedule. | H40: 1_RESIDENTIAL SERVICE CLASSIFICATION | V40: 280 | AA40: The application of these rates and charges shall be in accordance with the Licence of the Distributor and any Code or Order of the Ontario Energy Board, and amendments thereto as approved by the Ontario Energy Board, which may be applicable to the administration of this schedule.
B41: No rates and charges for the distribution of electricity and charges to meet the costs of any work or service done or furnished for the purpose of the distribution of electricity shall be made except as permitted by this schedule, unless required by the Distributor’s Licence or a Code or Order of the Ontario Energy Board, and amendments thereto as approved by the Ontario Energy Board, or as specified herein. | H41: 1_RESIDENTIAL SERVICE CLASSIFICATION | V41: 411 | AA41: No rates and charges for the distribution of electricity and charges to meet the costs of any work or service done or furnished for the purpose of the distribution of electricity shall be made except as permitted by this schedule, unless required by the Distributor’s Licence or a Code or Order of the Ontario Energy Board, and amendments thereto as approved by the Ontario Energy Board, or as specified herein.
B42: Unless specifically noted, this schedule does not contain any charges for the electricity commodity, be it under the Regulated Price Plan, a contract with a retailer or the wholesale market price, as applicable. In addition, the charges in the MONTHLY RATES AND CHARGES - Regulatory Component of this schedule do not apply to a customer that is an embedded wholesale market participant. | H42: 1_RESIDENTIAL SERVICE CLASSIFICATION | V42: 387 | AA42: Unless specifically noted, this schedule does not contain any charges for the electricity commodity, be it under the Regulated Price Plan, a contract with a retailer or the wholesale market price, as applicable. In addition, the charges in the MONTHLY RATES AND CHARGES - Regulatory Component of this schedule do not apply to a customer that is an embedded wholesale market participant.
B43: The rate rider for the disposition of WMS - Sub-account CBR Class B is not applicable to wholesale market participants (WMP), customers that transitioned between Class A and Class B during the variance account accumulation period, or to customers that were in Class A for the entire period. Customers who transitioned are to be charged or refunded their share of the variance disposed through customer specific billing adjustments. This rate rider is to be consistently applied for the entire period to the sunset date of the rate rider. In addition, this rate rider is applicable to all new Class B customers. | H43: 1_RESIDENTIAL SERVICE CLASSIFICATION | V43: 610 | AA43: The rate rider for the disposition of WMS - Sub-account CBR Class B is not applicable to wholesale market participants (WMP), customers that transitioned between Class A and Class B during the variance account accumulation period, or to customers that were in Class A for the entire period. Customers who transitioned are to be charged or refunded their share of the variance disposed through customer specific billing adjustments. This rate rider is to be consistently applied for the entire period to the sunset date of the rate rider. In addition, this rate rider is applicable to all new Class B customers.
B44: It should be noted that this schedule does not list any charges, assessments, or credits that are required by law to be invoiced by a distributor and that are not subject to Ontario Energy Board approval, such as the Debt Retirement Charge, the Global Adjustment and the HST. | H44: 1_RESIDENTIAL SERVICE CLASSIFICATION | V44: 275 | AA44: It should be noted that this schedule does not list any charges, assessments, or credits that are required by law to be invoiced by a distributor and that are not subject to Ontario Energy Board approval, such as the Debt Retirement Charge, the Global Adjustment and the HST.
B45: MONTHLY RATES AND CHARGES - Delivery Component | H45: 1_MRC_DEL | V45: 46 | AA45: MONTHLY RATES AND CHARGES - Delivery Component
B46: Service Charge | D46: $ | E46: 27.33 | H46: 1_RESIDENTIAL SERVICE CLASSIFICATION | I46: A | M46: 1_RESIDENTIAL SERVICE CLASSIFICATION_MSC | V46: 8 | Z46: Service Charge
B47: Rate Rider for Smart Metering Entity Charge - effective until December 31, 2022 | D47: $ | E47: 0.57 | H47: 1_RESIDENTIAL SERVICE CLASSIFICATION | I47: B | M47: 1_RESIDENTIAL SERVICE CLASSIFICATION_SME | Q47: 2022-12-31 | V47: 4 | Z47: Rate Rider for Smart Metering Entity Charge - effective until December 31, 2022
B48: Rate Rider for Smart Meter (Stranded Meters) - effective until Dec 31, 2019 | D48: $ | E48: 0.2599478973 | I48: B
B49: Rate Rider for Disposition of Account 1575 and 1576 - effective until Dec 31, 2019 | D49: $ | E49: -0.2126511496 | I49: B
B50: Rate Rider - Gain on Sale of Property | D50: $ | E50: -0.163235703 | I50: B
B51: Rate Rider for Disposition of Deferral/Variance Group 2 Accounts (2019) - effective until Dec 31, 2019 | D51: $ | E51: 0.6982609573 | H51: 1_RESIDENTIAL SERVICE CLASSIFICATION | I51: B | M51: 1_RESIDENTIAL SERVICE CLASSIFICATION_DEFVAR_ALL | Q51: 2019-04-30 | V51: 21 | Z51: Rate Rider for Disposition of Deferral/Variance Accounts (2019) - effective until April 30, 2019
B52: Low Voltage Service Rate | D52: $/kWh | E52: 0.0004 | H52: 1_RESIDENTIAL SERVICE CLASSIFICATION | I52: B | M52: 1_RESIDENTIAL SERVICE CLASSIFICATION_LV | V52: 6 | Z52: Low Voltage Service Rate
B53: Rate Rider for Disposition of Global Adjustment Account (2018) - effective until April 30, 2019 Applicable only for Non-RPP Customers | D53: $/kWh | E53: 0.0033 | H53: 1_RESIDENTIAL SERVICE CLASSIFICATION | I53: B | M53: 1_RESIDENTIAL SERVICE CLASSIFICATION_GA_kwh | Q53: 2019-04-30 | Z53: Rate Rider for Disposition of Global Adjustment Account (2019) - effective until April 30, 2019 Applicable only for Non-RPP Customers
B54: Rate Rider for Disposition of Deferral/Variance Accounts (2018) - effective until April 30, 2019 | D54: $/kWh | E54: -0.006268366589 | H54: 1_RESIDENTIAL SERVICE CLASSIFICATION | I54: B | M54: 1_RESIDENTIAL SERVICE CLASSIFICATION_DEFVAR_ALL | Q54: 2019-04-30 | Z54: Rate Rider for Disposition of Deferral/Variance Accounts (2019) - effective until April 30, 2019
B55: Rate Rider for Disposition of Global Adjustment Account (2019) - effective until Dec 31, 2019 Applicable only for Non-RPP Customers | D55: $/kWh | E55: 0.0003844918189 | H55: 1_RESIDENTIAL SERVICE CLASSIFICATION | I55: B | M55: 1_RESIDENTIAL SERVICE CLASSIFICATION_GA_kwh | Q55: 2019-04-30 | V55: 6 | Z55: Rate Rider for Disposition of Global Adjustment Account (2019) - effective until April 30, 2019 Applicable only for Non-RPP Customers
B56: Rate Rider for Disposition of Deferral/Variance Group 1 Accounts (2019) - effective until Dec 31, 2019 | D56: $/kWh | E56: -0.001700456209 | H56: 1_RESIDENTIAL SERVICE CLASSIFICATION | I56: B | M56: 1_RESIDENTIAL SERVICE CLASSIFICATION_DEFVAR_ALL | Q56: 2019-04-30 | V56: 21 | Z56: Rate Rider for Disposition of Deferral/Variance Accounts (2019) - effective until April 30, 2019
B57: Rate Rider for Disposition of Capacity Based Recovery Account (2018) - effective until Dec 31, 2019 Applicable only for Class B Customers | D57: $/kWh | E57: 0.0004 | H57: 1_RESIDENTIAL SERVICE CLASSIFICATION | I57: B | M57: 1_RESIDENTIAL SERVICE CLASSIFICATION_VR_RR_3 | Q57: 2019-04-30 | V57: 6 | Z57: Rate Rider for Disposition of Capacity Based Recovery Account (2019) - effective until April 30, 2019 Applicable only for Class B Customers
B58: Rate Rider for Disposition of Capacity Based Recovery Account (2019) - effective until Dec 31, 2019 Applicable only for Class B Customers | D58: $/kWh | E58: 4.956853384e-06 | H58: 1_RESIDENTIAL SERVICE CLASSIFICATION | I58: B
B59: Rate Rider for Disposition of Account 1568 (2019) - effective until Dec 31, 2019 | D59: $/kWh | E59: 6.197888019e-05 | I59: B
B60: Retail Transmission Rate - Network Service Rate | D60: $/kWh | E60: 0.005548116832 | H60: 1_RESIDENTIAL SERVICE CLASSIFICATION | I60: C | M60: 1_RESIDENTIAL SERVICE CLASSIFICATION_Retail Transmission Rate - Network Service Rate | V60: 6 | Z60: Retail Transmission Rate - Network Service Rate
B61: Retail Transmission Rate - Line and Transformation Connection Service Rate | D61: $/kWh | E61: 0.004137812915 | H61: 1_RESIDENTIAL SERVICE CLASSIFICATION | I61: C | M61: 1_RESIDENTIAL SERVICE CLASSIFICATION_Retail Transmission Rate - Line and Transformation Connection Service Rate | V61: 6 | Z61: Retail Transmission Rate - Line and Transformation Connection Service Rate
B62: MONTHLY RATES AND CHARGES - Regulatory Component | H62: 1_MRC_REG | V62: 48 | Z62: MONTHLY RATES AND CHARGES - Regulatory Component
B63: Wholesale Market Service Rate (WMS) - not including CBR | D63: $/kWh | E63: 0.0032 | H63: 1_RESIDENTIAL SERVICE CLASSIFICATION | M63: 1_RESIDENTIAL SERVICE CLASSIFICATION_WMSR | V63: 6 | Z63: Wholesale Market Service Rate (WMS) - not including CBR
B64: Capacity Based Recovery (CBR) - Applicable for Class B Customers | D64: $/kWh | E64: 0.0004 | H64: 1_RESIDENTIAL SERVICE CLASSIFICATION | V64: 6 | Z64: Capacity Based Recovery (CBR) - Applicable for Class B Customers
B65: Rural or Remote Electricity Rate Protection Charge (RRRP) | D65: $/kWh | E65: 0.0003 | H65: 3_GENERAL SERVICE 50 TO 999 KW SERVICE CLASSIFICATION | I65: T | V65: 6 | Z65: Rural or Remote Electricity Rate Protection Charge (RRRP)
B66: Standard Supply Service - Administrative Charge (if applicable) | D66: $ | E66: 0.25 | H66: 1_RESIDENTIAL SERVICE CLASSIFICATION | I66: T | M66: 1_RESIDENTIAL SERVICE CLASSIFICATION_SSS | V66: 4 | Z66: Standard Supply Service - Administrative Charge (if applicable) | AS66: X
B67: GENERAL SERVICE LESS THAN 50 KW SERVICE CLASSIFICATION | H67: 2_GENERAL SERVICE LESS THAN 50 KW SERVICE CLASSIFICATION | V67: 54 | AA67: GENERAL SERVICE LESS THAN 50 KW SERVICE CLASSIFICATION
B68: General Service refers to the supply of electrical energy to business customers, to bulk-metered residential buildings and to combined residential and business or residential and agricultural buildings. Apartment buildings that are bulk metered will be billed at the appropriate General Service rate. This classification refers to a non-residential account taking electricity at 750 volts or less whose average monthly peak demand is less than, or is forecast to be less than, 50 kW. Class B consumers are defined in accordance with O. Reg. 429/04. Further servicing details are available in the distributor's Conditions of Service. | H68: 2_GENERAL SERVICE LESS THAN 50 KW SERVICE CLASSIFICATION | V68: 634 | AA68: General Service refers to the supply of electrical energy to business customers, to bulk-metered residential buildings and to combined residential and business or residential and agricultural buildings. Apartment buildings that are bulk metered will be billed at the appropriate General Service rate. This classification refers to a non-residential account taking electricity at 750 volts or less whose average monthly peak demand is less than, or is forecast to be less than, 50 kW. Class B consumers are defined in accordance with O. Reg. 429/04. Further servicing details are available in the distributor's Conditions of Service.
B69: APPLICATION | H69: 2_APPLICATION | V69: 11 | AA69: APPLICATION
B70: The application of these rates and charges shall be in accordance with the Licence of the Distributor and any Code or Order of the Ontario Energy Board, and amendments thereto as approved by the Ontario Energy Board, which may be applicable to the administration of this schedule. | H70: 2_GENERAL SERVICE LESS THAN 50 KW SERVICE CLASSIFICATION | V70: 280 | AA70: The application of these rates and charges shall be in accordance with the Licence of the Distributor and any Code or Order of the Ontario Energy Board, and amendments thereto as approved by the Ontario Energy Board, which may be applicable to the administration of this schedule.
B71: No rates and charges for the distribution of electricity and charges to meet the costs of any work or service done or furnished for the purpose of the distribution of electricity shall be made except as permitted by this schedule, unless required by the Distributor’s Licence or a Code or Order of the Ontario Energy Board, and amendments thereto as approved by the Ontario Energy Board, or as specified herein. | H71: 2_GENERAL SERVICE LESS THAN 50 KW SERVICE CLASSIFICATION | V71: 411 | AA71: No rates and charges for the distribution of electricity and charges to meet the costs of any work or service done or furnished for the purpose of the distribution of electricity shall be made except as permitted by this schedule, unless required by the Distributor’s Licence or a Code or Order of the Ontario Energy Board, and amendments thereto as approved by the Ontario Energy Board, or as specified herein.
B72: Unless specifically noted, this schedule does not contain any charges for the electricity commodity, be it under the Regulated Price Plan, a contract with a retailer or the wholesale market price, as applicable. In addition, the charges in the MONTHLY RATES AND CHARGES - Regulatory Component of this schedule do not apply to a customer that is an embedded wholesale market participant. | H72: 2_GENERAL SERVICE LESS THAN 50 KW SERVICE CLASSIFICATION | V72: 387 | AA72: Unless specifically noted, this schedule does not contain any charges for the electricity commodity, be it under the Regulated Price Plan, a contract with a retailer or the wholesale market price, as applicable. In addition, the charges in the MONTHLY RATES AND CHARGES - Regulatory Component of this schedule do not apply to a customer that is an embedded wholesale market participant.
B73: The rate rider for the disposition of WMS - Sub-account CBR Class B is not applicable to wholesale market participants (WMP), customers that transitioned between Class A and Class B during the variance account accumulation period, or to customers that were in Class A for the entire period. Customers who transitioned are to be charged or refunded their share of the variance disposed through customer specific billing adjustments. This rate rider is to be consistently applied for the entire period to the sunset date of the rate rider. In addition, this rate rider is applicable to all new Class B customers. | H73: 2_GENERAL SERVICE LESS THAN 50 KW SERVICE CLASSIFICATION | V73: 610 | AA73: The rate rider for the disposition of WMS - Sub-account CBR Class B is not applicable to wholesale market participants (WMP), customers that transitioned between Class A and Class B during the variance account accumulation period, or to customers that were in Class A for the entire period. Customers who transitioned are to be charged or refunded their share of the variance disposed through customer specific billing adjustments. This rate rider is to be consistently applied for the entire period to the sunset date of the rate rider. In addition, this rate rider is applicable to all new Class B customers.
B74: It should be noted that this schedule does not list any charges, assessments, or credits that are required by law to be invoiced by a distributor and that are not subject to Ontario Energy Board approval, such as the Debt Retirement Charge, the Global Adjustment and the HST. | H74: 2_GENERAL SERVICE LESS THAN 50 KW SERVICE CLASSIFICATION | V74: 275 | AA74: It should be noted that this schedule does not list any charges, assessments, or credits that are required by law to be invoiced by a distributor and that are not subject to Ontario Energy Board approval, such as the Debt Retirement Charge, the Global Adjustment and the HST.
B75: MONTHLY RATES AND CHARGES - Delivery Component | H75: 2_MRC_DEL | V75: 46 | AA75: MONTHLY RATES AND CHARGES - Delivery Component
B76: Service Charge | D76: $ | E76: 15.18 | H76: 2_GENERAL SERVICE LESS THAN 50 KW SERVICE CLASSIFICATION | I76: A | M76: 2_GENERAL SERVICE LESS THAN 50 KW SERVICE CLASSIFICATION_MSC | V76: 8 | Z76: Service Charge
B77: Rate Rider for Smart Metering Entity Charge - effective until December 31, 2022 | D77: $ | E77: 0.57 | H77: 2_GENERAL SERVICE LESS THAN 50 KW SERVICE CLASSIFICATION | I77: B | M77: 2_GENERAL SERVICE LESS THAN 50 KW SERVICE CLASSIFICATION_SME | Q77: 2022-12-31 | V77: 4 | Z77: Rate Rider for Smart Metering Entity Charge - effective until December 31, 2022
B78: Rate Rider for Smart Meter (Stranded Meters) - effective until Dec 31, 2019 | D78: $ | E78: 0.2599478973 | I78: B
B79: Distribution Volumetric Rate | D79: $/kWh | E79: 0.0162 | H79: 2_GENERAL SERVICE LESS THAN 50 KW SERVICE CLASSIFICATION | I79: A | M79: 2_GENERAL SERVICE LESS THAN 50 KW SERVICE CLASSIFICATION_DVC | V79: 9 | Z79: Distribution Volumetric Rate
B80: Low Voltage Service Rate | D80: $/kWh | E80: 0.0004 | H80: 2_GENERAL SERVICE LESS THAN 50 KW SERVICE CLASSIFICATION | I80: B | M80: 2_GENERAL SERVICE LESS THAN 50 KW SERVICE CLASSIFICATION_LV | V80: 6 | Z80: Low Voltage Service Rate
B81: Rate Rider for Disposition of Global Adjustment Account (2018) - effective until April 30, 2019 Applicable only for Non-RPP Customers | D81: $/kWh | E81: 0.0033 | H81: 2_GENERAL SERVICE LESS THAN 50 kW SERVICE CLASSIFICATION | I81: B | M81: 2_GENERAL SERVICE LESS THAN 50 kW SERVICE CLASSIFICATION_GA_kwh | Q81: 2019-04-30 | Z81: Rate Rider for Disposition of Global Adjustment Account (2019) - effective until April 30, 2019 Applicable only for Non-RPP Customers
B82: Rate Rider for Disposition of Deferral/Variance Accounts (2018) - effective until April 30, 2019 | D82: $/kWh | E82: -0.00621939142 | H82: 2_GENERAL SERVICE LESS THAN 50 kW SERVICE CLASSIFICATION | I82: B | M82: 2_GENERAL SERVICE LESS THAN 50 kW SERVICE CLASSIFICATION_DEFVAR_ALL | Q82: 2019-04-30 | Z82: Rate Rider for Disposition of Deferral/Variance Accounts (2019) - effective until April 30, 2019
B83: Rate Rider for Disposition of Global Adjustment Account (2019) - effective until Dec 31, 2019 Applicable only for Non-RPP Customers | D83: $/kWh | E83: 0.0003844918189 | H83: 2_GENERAL SERVICE LESS THAN 50 KW SERVICE CLASSIFICATION | I83: B | M83: 2_GENERAL SERVICE LESS THAN 50 KW SERVICE CLASSIFICATION_GA_kwh | Q83: 2019-04-30 | V83: 6 | Z83: Rate Rider for Disposition of Global Adjustment Account (2019) - effective until April 30, 2019 Applicable only for Non-RPP Customers
B84: Rate Rider for Disposition of Deferral/Variance Accounts (2019) - effective until Dec 31, 2019 | D84: $/kWh | E84: -0.001168877162 | H84: 2_GENERAL SERVICE LESS THAN 50 KW SERVICE CLASSIFICATION | I84: B | M84: 2_GENERAL SERVICE LESS THAN 50 KW SERVICE CLASSIFICATION_DEFVAR_ALL | Q84: 2019-04-30 | V84: 21 | Z84: Rate Rider for Disposition of Deferral/Variance Accounts (2019) - effective until April 30, 2019
B85: Rate Rider for Disposition of Capacity Based Recovery Account (2018) - effective until April 30, 2019 Applicable only for Class B Customers | D85: $/kWh | E85: 0.0004 | H85: 2_GENERAL SERVICE LESS THAN 50 KW SERVICE CLASSIFICATION | I85: B | M85: 2_GENERAL SERVICE LESS THAN 50 KW SERVICE CLASSIFICATION_VR_RR_6 | Q85: 2019-04-30 | V85: 6 | Z85: Rate Rider for Disposition of Capacity Based Recovery Account (2019) - effective until April 30, 2019 Applicable only for Class B Customers
B86: Rate Rider for Disposition of Capacity Based Recovery Account (2019) - effective until Dec 31, 2019 Applicable only for Class B Customers | D86: $/kWh | E86: 4.956853384e-06 | H86: 2_GENERAL SERVICE LESS THAN 50 KW SERVICE CLASSIFICATION | I86: B
B87: Rate Rider for Disposition of Account 1568 (2019) - effective until Dec 31, 2019 | D87: $/kWh | E87: 0.0002073518347 | I87: B
B88: Rate Rider for Disposition of Account 1575 and 1576 - effective until Dec 31, 2019 | D88: $/kWh | E88: -0.0003212691524 | I88: B
B89: Rate Rider - Gain on Sale of Property | D89: $/kWh | E89: -0.0002466123126 | I89: B
B90: Retail Transmission Rate - Network Service Rate | D90: $/kWh | E90: 0.004936957689 | H90: 1_RESIDENTIAL SERVICE CLASSIFICATION | I90: C | M90: 1_RESIDENTIAL SERVICE CLASSIFICATION_Retail Transmission Rate - Network Service Rate | V90: 6 | Z90: Retail Transmission Rate - Network Service Rate
B91: Retail Transmission Rate - Line and Transformation Connection Service Rate | D91: $/kWh | E91: 0.003765124473 | H91: 2_GENERAL SERVICE LESS THAN 50 KW SERVICE CLASSIFICATION | I91: C | M91: 2_GENERAL SERVICE LESS THAN 50 KW SERVICE CLASSIFICATION_Retail Transmission Rate - Line and Transformation Connection Service Rate | V91: 6 | Z91: Retail Transmission Rate - Line and Transformation Connection Service Rate
B92: MONTHLY RATES AND CHARGES - Regulatory Component | H92: 2_MRC_REG | V92: 48 | Z92: MONTHLY RATES AND CHARGES - Regulatory Component
B93: Wholesale Market Service Rate (WMS) - not including CBR | D93: $/kWh | E93: 0.0032 | H93: 2_GENERAL SERVICE LESS THAN 50 KW SERVICE CLASSIFICATION | M93: 2_GENERAL SERVICE LESS THAN 50 KW SERVICE CLASSIFICATION_WMSR | V93: 6 | Z93: Wholesale Market Service Rate (WMS) - not including CBR
B94: Capacity Based Recovery (CBR) - Applicable for Class B Customers | D94: $/kWh | E94: 0.0004 | H94: 2_GENERAL SERVICE LESS THAN 50 KW SERVICE CLASSIFICATION | V94: 6 | Z94: Capacity Based Recovery (CBR) - Applicable for Class B Customers
B95: Rural or Remote Electricity Rate Protection Charge (RRRP) | D95: $/kWh | E95: 0.0003 | H95: 3_GENERAL SERVICE 50 TO 999 KW SERVICE CLASSIFICATION | I95: T | V95: 6 | Z95: Rural or Remote Electricity Rate Protection Charge (RRRP)
B96: Standard Supply Service - Administrative Charge (if applicable) | D96: $ | E96: 0.25 | H96: 2_GENERAL SERVICE LESS THAN 50 KW SERVICE CLASSIFICATION | I96: T | M96: 2_GENERAL SERVICE LESS THAN 50 KW SERVICE CLASSIFICATION_SSS | V96: 4 | Z96: Standard Supply Service - Administrative Charge (if applicable) | AS96: X
B97: GENERAL SERVICE 50 TO 999 KW SERVICE CLASSIFICATION | H97: 3_GENERAL SERVICE 50 TO 999 KW SERVICE CLASSIFICATION | V97: 51 | AA97: GENERAL SERVICE 50 TO 999 KW SERVICE CLASSIFICATION
B98: General Service refers to the supply of electrical energy to business customers, to bulk-metered residential buildings and to combined residential and business or residential and agricultural buildings. Apartment buildings that are bulk metered will be billed at the appropriate General Service rate. This classification refers to a non-residential account whose average monthly peak demand is equal to or greater than, or is forecast to be equal to or greater than, 50 kW but less than 1,000 kW. Class B consumers are defined in accordance with O.Reg. 429/04. Further servicing details are available in the distributor's Conditions of Service. | H98: 3_GENERAL SERVICE 50 TO 999 KW SERVICE CLASSIFICATION | V98: 647 | AA98: General Service refers to the supply of electrical energy to business customers, to bulk-metered residential buildings and to combined residential and business or residential and agricultural buildings. Apartment buildings that are bulk metered will be billed at the appropriate General Service rate. This classification refers to a non-residential account whose average monthly peak demand is equal to or greater than, or is forecast to be equal to or greater than, 50 kW but less than 1,000 kW. Class B consumers are defined in accordance with O.Reg. 429/04. Further servicing details are available in the distributor's Conditions of Service.
B99: APPLICATION | H99: 3_APPLICATION | V99: 11 | AA99: APPLICATION
B100: The application of these rates and charges shall be in accordance with the Licence of the Distributor and any Code or Order of the Ontario Energy Board, and amendments thereto as approved by the Ontario Energy Board, which may be applicable to the administration of this schedule. | H100: 3_GENERAL SERVICE 50 TO 999 KW SERVICE CLASSIFICATION | V100: 280 | AA100: The application of these rates and charges shall be in accordance with the Licence of the Distributor and any Code or Order of the Ontario Energy Board, and amendments thereto as approved by the Ontario Energy Board, which may be applicable to the administration of this schedule.
B101: No rates and charges for the distribution of electricity and charges to meet the costs of any work or service done or furnished for the purpose of the distribution of electricity shall be made except as permitted by this schedule, unless required by the Distributor’s Licence or a Code or Order of the Ontario Energy Board, and amendments thereto as approved by the Ontario Energy Board, or as specified herein. | H101: 3_GENERAL SERVICE 50 TO 999 KW SERVICE CLASSIFICATION | V101: 411 | AA101: No rates and charges for the distribution of electricity and charges to meet the costs of any work or service done or furnished for the purpose of the distribution of electricity shall be made except as permitted by this schedule, unless required by the Distributor’s Licence or a Code or Order of the Ontario Energy Board, and amendments thereto as approved by the Ontario Energy Board, or as specified herein.
B102: Unless specifically noted, this schedule does not contain any charges for the electricity commodity, be it under the Regulated Price Plan, a contract with a retailer or the wholesale market price, as applicable. In addition, the charges in the MONTHLY RATES AND CHARGES - Regulatory Component of this schedule do not apply to a customer that is an embedded wholesale market participant. | H102: 3_GENERAL SERVICE 50 TO 999 KW SERVICE CLASSIFICATION | V102: 387 | AA102: Unless specifically noted, this schedule does not contain any charges for the electricity commodity, be it under the Regulated Price Plan, a contract with a retailer or the wholesale market price, as applicable. In addition, the charges in the MONTHLY RATES AND CHARGES - Regulatory Component of this schedule do not apply to a customer that is an embedded wholesale market participant.
B103: The rate rider for the disposition of WMS - Sub-account CBR Class B is not applicable to wholesale market participants (WMP), customers that transitioned between Class A and Class B during the variance account accumulation period, or to customers that were in Class A for the entire period. Customers who transitioned are to be charged or refunded their share of the variance disposed through customer specific billing adjustments. This rate rider is to be consistently applied for the entire period to the sunset date of the rate rider. In addition, this rate rider is applicable to all new Class B customers. | H103: 3_GENERAL SERVICE 50 TO 999 KW SERVICE CLASSIFICATION | V103: 610 | AA103: The rate rider for the disposition of WMS - Sub-account CBR Class B is not applicable to wholesale market participants (WMP), customers that transitioned between Class A and Class B during the variance account accumulation period, or to customers that were in Class A for the entire period. Customers who transitioned are to be charged or refunded their share of the variance disposed through customer specific billing adjustments. This rate rider is to be consistently applied for the entire period to the sunset date of the rate rider. In addition, this rate rider is applicable to all new Class B customers.
B104: It should be noted that this schedule does not list any charges, assessments, or credits that are required by law to be invoiced by a distributor and that are not subject to Ontario Energy Board approval, such as the Debt Retirement Charge, the Global Adjustment and the HST. | H104: 3_GENERAL SERVICE 50 TO 999 KW SERVICE CLASSIFICATION | V104: 275 | AA104: It should be noted that this schedule does not list any charges, assessments, or credits that are required by law to be invoiced by a distributor and that are not subject to Ontario Energy Board approval, such as the Debt Retirement Charge, the Global Adjustment and the HST.
B105: MONTHLY RATES AND CHARGES - Delivery Component | H105: 3_MRC_DEL | V105: 46 | AA105: MONTHLY RATES AND CHARGES - Delivery Component
B106: Service Charge | D106: $ | E106: 111.18 | H106: 3_GENERAL SERVICE 50 TO 999 KW SERVICE CLASSIFICATION | I106: A | M106: 3_GENERAL SERVICE 50 TO 999 KW SERVICE CLASSIFICATION_MSC | V106: 9 | Z106: Service Charge
B107: Rate Rider for Smart Meter (Stranded Meters) - effective until Dec 31, 2019 | D107: $ | E107: 18.57898236 | I107: B
B108: Distribution Volumetric Rate | D108: $/kW | E108: 4.1019 | H108: 3_GENERAL SERVICE 50 TO 999 KW SERVICE CLASSIFICATION | I108: A | M108: 3_GENERAL SERVICE 50 TO 999 KW SERVICE CLASSIFICATION_DVC | V108: 9 | Z108: Distribution Volumetric Rate
B109: Low Voltage Service Rate | D109: $/kW | E109: 0.2305 | H109: 3_GENERAL SERVICE 50 TO 999 KW SERVICE CLASSIFICATION | I109: B | M109: 3_GENERAL SERVICE 50 TO 999 KW SERVICE CLASSIFICATION_LV | V109: 6 | Z109: Low Voltage Service Rate
B110: Rate Rider for Disposition of Global Adjustment Account (2018) - effective until April 30, 2019 Applicable only for Non-RPP Customers | D110: $/kWh | E110: 0.0033 | H110: 3_GENERAL SERVICE 50 to 999 kW SERVICE CLASSIFICATION | I110: B | M110: 3_GENERAL SERVICE 50 to 999 kW SERVICE CLASSIFICATION_GA_kwh | Q110: 2019-04-30 | Z110: Rate Rider for Disposition of Global Adjustment Account (2019) - effective until April 30, 2019 Applicable only for Non-RPP Customers
B111: Rate Rider for Disposition of Deferral/Variance Accounts (2018) - effective until April 30, 2019 Applicable only for Non-Wholesale Market Participants | D111: $/kW | E111: -1.717694818 | H111: 3_GENERAL SERVICE 50 to 999 kW SERVICE CLASSIFICATION | I111: B | M111: 3_GENERAL SERVICE 50 to 999 kW SERVICE CLASSIFICATION_DEFVAR_ALL | Q111: 2019-04-30 | Z111: Rate Rider for Disposition of Deferral/Variance Accounts (2019) - effective until April 30, 2019 Applicable only for Non-Wholesale Market Participants
B112: Rate Rider for Disposition of Deferral/Variance Accounts (2018) - effective until April 30, 2019 | D112: $/kW | E112: -0.2975443189 | H112: 3_GENERAL SERVICE 50 to 999 kW SERVICE CLASSIFICATION | I112: B | M112: 3_GENERAL SERVICE 50 to 999 kW SERVICE CLASSIFICATION_DEFVAR_ALL | Q112: 2019-04-30 | Z112: Rate Rider for Disposition of Deferral/Variance Accounts (2019) - effective until April 30, 2019
B113: Rate Rider for Disposition of Global Adjustment Account (2019) - effective until Dec 31, 2019 Applicable only for Non-RPP Customers | D113: $/kWh | E113: 0.0003844918189 | H113: 3_GENERAL SERVICE 50 TO 999 KW SERVICE CLASSIFICATION | I113: B | M113: 3_GENERAL SERVICE 50 TO 999 KW SERVICE CLASSIFICATION_GA_kwh | Q113: 2019-04-30 | V113: 6 | Z113: Rate Rider for Disposition of Global Adjustment Account (2019) - effective until April 30, 2019 Applicable only for Non-RPP Customers
B114: Rate Rider for Disposition of Deferral/Variance Accounts (2019) - effective until Dec 31, 2019 Applicable only for Non-Wholesale Market Participants | D114: $/kW | E114: -0.08678067628 | H114: 3_GENERAL SERVICE 50 TO 999 KW SERVICE CLASSIFICATION | I114: B | M114: 3_GENERAL SERVICE 50 TO 999 KW SERVICE CLASSIFICATION_DEFVAR_ALL | Q114: 2019-04-30 | V114: 17 | Z114: Rate Rider for Disposition of Deferral/Variance Accounts (2019) - effective until April 30, 2019 Applicable only for Non-Wholesale Market Participants
B115: Rate Rider for Disposition of Deferral/Variance Accounts (2019) - effective until Dec 31, 2019 | D115: $/kW | E115: -0.3504011812 | H115: 3_GENERAL SERVICE 50 TO 999 KW SERVICE CLASSIFICATION | I115: B | M115: 3_GENERAL SERVICE 50 TO 999 KW SERVICE CLASSIFICATION_DEFVAR_ALL | Q115: 2019-04-30 | V115: 18 | Z115: Rate Rider for Disposition of Deferral/Variance Accounts (2019) - effective until April 30, 2019
B116: Rate Rider for Disposition of Capacity Based Recovery Account (2018) - effective until April 30, 2019 Applicable only for Class B Customers | D116: $/kW | E116: 0.1375 | H116: 3_GENERAL SERVICE 50 TO 999 KW SERVICE CLASSIFICATION | I116: B | M116: 3_GENERAL SERVICE 50 TO 999 KW SERVICE CLASSIFICATION_VR_RR_10 | Q116: 2019-04-30 | V116: 6 | Z116: Rate Rider for Disposition of Capacity Based Recovery Account (2019) - effective until April 30, 2019 Applicable only for Class B Customers
B117: Rate Rider for Disposition of Capacity Based Recovery Account (2019) - effective until Dec 31, 2019 Applicable only for Class B Customers | D117: $/kW | E117: 0.00156258818 | H117: 2_GENERAL SERVICE LESS THAN 50 KW SERVICE CLASSIFICATION | I117: B
B118: Rate Rider for Disposition of Account 1568 (2019) - effective until Dec 31, 2019 | D118: $/kW | E118: 0.4554727233 | I118: B
B119: Rate Rider for Disposition of Account 1575 and 1576 - effective until Dec 31, 2019 | D119: $/kW | E119: -0.1027759642 | I119: B
B120: Rate Rider - Gain on Sale of Property | D120: $/kW | E120: -0.07889277982 | I120: B
B121: Retail Transmission Rate - Network Service Rate | D121: $/kW | E121: 3.039109007 | H121: 3_GENERAL SERVICE 50 TO 999 KW SERVICE CLASSIFICATION | I121: C | M121: 3_GENERAL SERVICE 50 TO 999 KW SERVICE CLASSIFICATION_Retail Transmission Rate - Network Service Rate | V121: 6 | Z121: Retail Transmission Rate - Network Service Rate
B122: Retail Transmission Rate - Line and Transformation Connection Service Rate | D122: $/kW | E122: 2.279472654 | H122: 3_GENERAL SERVICE 50 TO 999 KW SERVICE CLASSIFICATION | I122: C | M122: 3_GENERAL SERVICE 50 TO 999 KW SERVICE CLASSIFICATION_Retail Transmission Rate - Line and Transformation Connection Service Rate | V122: 6 | Z122: Retail Transmission Rate - Line and Transformation Connection Service Rate
B123: MONTHLY RATES AND CHARGES - Regulatory Component | H123: 3_MRC_REG | V123: 48 | Z123: MONTHLY RATES AND CHARGES - Regulatory Component
B124: Wholesale Market Service Rate (WMS) - not including CBR | D124: $/kWh | E124: 0.0032 | H124: 3_GENERAL SERVICE 50 TO 999 KW SERVICE CLASSIFICATION | M124: 3_GENERAL SERVICE 50 TO 999 KW SERVICE CLASSIFICATION_WMSR | V124: 6 | Z124: Wholesale Market Service Rate (WMS) - not including CBR
B125: Capacity Based Recovery (CBR) - Applicable for Class B Customers | D125: $/kWh | E125: 0.0004 | H125: 3_GENERAL SERVICE 50 TO 999 KW SERVICE CLASSIFICATION | V125: 6 | Z125: Capacity Based Recovery (CBR) - Applicable for Class B Customers
B126: Rural or Remote Electricity Rate Protection Charge (RRRP) | D126: $/kWh | E126: 0.0003 | H126: 3_GENERAL SERVICE 50 TO 999 KW SERVICE CLASSIFICATION | I126: T | V126: 6 | Z126: Rural or Remote Electricity Rate Protection Charge (RRRP)
B127: Standard Supply Service - Administrative Charge (if applicable) | D127: $ | E127: 0.25 | H127: 3_GENERAL SERVICE 50 TO 999 KW SERVICE CLASSIFICATION | I127: T | M127: 3_GENERAL SERVICE 50 TO 999 KW SERVICE CLASSIFICATION_SSS | V127: 4 | Z127: Standard Supply Service - Administrative Charge (if applicable) | AS127: X
B128: GENERAL SERVICE 1,000 TO 4,999 KW SERVICE CLASSIFICATION | H128: 4_GENERAL SERVICE 1,000 TO 4,999 KW SERVICE CLASSIFICATION | V128: 56 | AA128: GENERAL SERVICE 1,000 TO 4,999 KW SERVICE CLASSIFICATION
B129: General Service refers to the supply of electrical energy to business customers, to bulk-metered residential buildings and to combined residential and business or residential and agricultural buildings. Apartment buildings that are bulk metered will be billed at the appropriate General Service rate. This classification refers to a non-residential account whose average monthly peak demand is equal to or greater than, or is forecast to be equal to or greater than, 1,000 kW but less than 5,000 kW. Class A and Class B consumers are defined in accordance with O. Reg. 429/04. Further servicing details are available in the distributor's Conditions of Service. | H129: 4_GENERAL SERVICE 1,000 TO 4,999 KW SERVICE CLASSIFICATION | V129: 663 | AA129: General Service refers to the supply of electrical energy to business customers, to bulk-metered residential buildings and to combined residential and business or residential and agricultural buildings. Apartment buildings that are bulk metered will be billed at the appropriate General Service rate. This classification refers to a non-residential account whose average monthly peak demand is equal to or greater than, or is forecast to be equal to or greater than, 1,000 kW but less than 5,000 kW. Class A and Class B consumers are defined in accordance with O. Reg. 429/04. Further servicing details are available in the distributor's Conditions of Service.
B130: APPLICATION | H130: 4_APPLICATION | V130: 11 | AA130: APPLICATION
B131: The application of these rates and charges shall be in accordance with the Licence of the Distributor and any Code or Order of the Ontario Energy Board, and amendments thereto as approved by the Ontario Energy Board, which may be applicable to the administration of this schedule. | H131: 4_GENERAL SERVICE 1,000 TO 4,999 KW SERVICE CLASSIFICATION | V131: 280 | AA131: The application of these rates and charges shall be in accordance with the Licence of the Distributor and any Code or Order of the Ontario Energy Board, and amendments thereto as approved by the Ontario Energy Board, which may be applicable to the administration of this schedule.
B132: No rates and charges for the distribution of electricity and charges to meet the costs of any work or service done or furnished for the purpose of the distribution of electricity shall be made except as permitted by this schedule, unless required by the Distributor’s Licence or a Code or Order of the Ontario Energy Board, and amendments thereto as approved by the Ontario Energy Board, or as specified herein. | H132: 4_GENERAL SERVICE 1,000 TO 4,999 KW SERVICE CLASSIFICATION | V132: 411 | AA132: No rates and charges for the distribution of electricity and charges to meet the costs of any work or service done or furnished for the purpose of the distribution of electricity shall be made except as permitted by this schedule, unless required by the Distributor’s Licence or a Code or Order of the Ontario Energy Board, and amendments thereto as approved by the Ontario Energy Board, or as specified herein.
B133: Unless specifically noted, this schedule does not contain any charges for the electricity commodity, be it under the Regulated Price Plan, a contract with a retailer or the wholesale market price, as applicable. In addition, the charges in the MONTHLY RATES AND CHARGES - Regulatory Component of this schedule do not apply to a customer that is an embedded wholesale market participant. | H133: 4_GENERAL SERVICE 1,000 TO 4,999 KW SERVICE CLASSIFICATION | V133: 387 | AA133: Unless specifically noted, this schedule does not contain any charges for the electricity commodity, be it under the Regulated Price Plan, a contract with a retailer or the wholesale market price, as applicable. In addition, the charges in the MONTHLY RATES AND CHARGES - Regulatory Component of this schedule do not apply to a customer that is an embedded wholesale market participant.
B134: The rate rider for the disposition of Global Adjustment is only applicable to non-RPP Class B customers. It is not applicable to Wholesale Market Participant (WMP), customers that transitioned between Class A and Class B during the variance account accumulation period, or to customers that were in Class A for the entire period. Customers who transitioned are to be charged or refunded their share of the variance disposed through customer specific billing adjustments. This rate rider is to be consistently applied for the entire period to the sunset date of the rate rider. In addition, this rate rider is applicable to all new non-RPP Class B customers. | H134: 4_GENERAL SERVICE 1,000 TO 4,999 KW SERVICE CLASSIFICATION | V134: 657 | AA134: The rate rider for the disposition of Global Adjustment is only applicable to non-RPP Class B customers. It is not applicable to Wholesale Market Participant (WMP), customers that transitioned between Class A and Class B during the variance account accumulation period, or to customers that were in Class A for the entire period. Customers who transitioned are to be charged or refunded their share of the variance disposed through customer specific billing adjustments. This rate rider is to be consistently applied for the entire period to the sunset date of the rate rider. In addition, this rate rider is applicable to all new non-RPP Class B customers.
B135: The rate rider for the disposition of WMS - Sub-account CBR Class B is not applicable to wholesale market participants (WMP), customers that transitioned between Class A and Class B during the variance account accumulation period, or to customers that were in Class A for the entire period. Customers who transitioned are to be charged or refunded their share of the variance disposed through customer specific billing adjustments. This rate rider is to be consistently applied for the entire period to the sunset date of the rate rider. In addition, this rate rider is applicable to all new Class B customers. | H135: 4_GENERAL SERVICE 1,000 TO 4,999 KW SERVICE CLASSIFICATION | V135: 610 | AA135: The rate rider for the disposition of WMS - Sub-account CBR Class B is not applicable to wholesale market participants (WMP), customers that transitioned between Class A and Class B during the variance account accumulation period, or to customers that were in Class A for the entire period. Customers who transitioned are to be charged or refunded their share of the variance disposed through customer specific billing adjustments. This rate rider is to be consistently applied for the entire period to the sunset date of the rate rider. In addition, this rate rider is applicable to all new Class B customers.
B136: It should be noted that this schedule does not list any charges, assessments, or credits that are required by law to be invoiced by a distributor and that are not subject to Ontario Energy Board approval, such as the Debt Retirement Charge, the Global Adjustment and the HST. | H136: 4_GENERAL SERVICE 1,000 TO 4,999 KW SERVICE CLASSIFICATION | V136: 275 | AA136: It should be noted that this schedule does not list any charges, assessments, or credits that are required by law to be invoiced by a distributor and that are not subject to Ontario Energy Board approval, such as the Debt Retirement Charge, the Global Adjustment and the HST.
B137: MONTHLY RATES AND CHARGES - Delivery Component | H137: 4_MRC_DEL | V137: 46 | AA137: MONTHLY RATES AND CHARGES - Delivery Component
B138: Service Charge | D138: $ | E138: 904.08 | H138: 4_GENERAL SERVICE 1,000 TO 4,999 KW SERVICE CLASSIFICATION | I138: A | M138: 4_GENERAL SERVICE 1,000 TO 4,999 KW SERVICE CLASSIFICATION_MSC | V138: 10 | Z138: Service Charge
B139: Distribution Volumetric Rate | D139: $/kW | E139: 3.8454 | H139: 4_GENERAL SERVICE 1,000 TO 4,999 KW SERVICE CLASSIFICATION | I139: A | M139: 4_GENERAL SERVICE 1,000 TO 4,999 KW SERVICE CLASSIFICATION_DVC | V139: 9 | Z139: Distribution Volumetric Rate
B140: Low Voltage Service Rate | D140: $/kW | E140: 0.1809 | H140: 4_GENERAL SERVICE 1,000 TO 4,999 KW SERVICE CLASSIFICATION | I140: B | M140: 4_GENERAL SERVICE 1,000 TO 4,999 KW SERVICE CLASSIFICATION_LV | V140: 6 | Z140: Low Voltage Service Rate
B141: Rate Rider for Disposition of Global Adjustment Account (2018) - effective until April 30, 2019 Applicable only for Non-RPP Customers | D141: $/kWh | E141: 0.0033 | H141: 4_GENERAL SERVICE 1,000 to 4,999 kW SERVICE CLASSIFICATION | I141: B | M141: 4_GENERAL SERVICE 1,000 to 4,999 kW SERVICE CLASSIFICATION_GA_kwh | Q141: 2019-04-30 | Z141: Rate Rider for Disposition of Global Adjustment Account (2019) - effective until April 30, 2019 Applicable only for Non-RPP Customers
B142: Rate Rider for Disposition of Deferral/Variance Accounts (2018) - effective until April 30, 2019 Applicable only for Non-Wholesale Market Participants | D142: $/kW | E142: -2.235399761 | H142: 4_GENERAL SERVICE 1,000 to 4,999 kW SERVICE CLASSIFICATION | I142: B | M142: 4_GENERAL SERVICE 1,000 to 4,999 kW SERVICE CLASSIFICATION_DEFVAR_ALL | Q142: 2019-04-30 | Z142: Rate Rider for Disposition of Deferral/Variance Accounts (2019) - effective until April 30, 2019 Applicable only for Non-Wholesale Market Participants
B143: Rate Rider for Disposition of Deferral/Variance Accounts (2018) - effective until April 30, 2019 | D143: $/kW | E143: -0.3984210716 | H143: 4_GENERAL SERVICE 1,000 to 4,999 kW SERVICE CLASSIFICATION | I143: B | M143: 4_GENERAL SERVICE 1,000 to 4,999 kW SERVICE CLASSIFICATION_DEFVAR_ALL | Q143: 2019-04-30 | Z143: Rate Rider for Disposition of Deferral/Variance Accounts (2019) - effective until April 30, 2019
B144: Rate Rider for Disposition of Global Adjustment Account (2019) - effective until Dec 31, 2019 Applicable only for Non-RPP Customers | D144: $/kWh | E144: 0.0003844918189 | H144: 4_GENERAL SERVICE 1,000 TO 4,999 KW SERVICE CLASSIFICATION | I144: B | M144: 4_GENERAL SERVICE 1,000 TO 4,999 KW SERVICE CLASSIFICATION_GA_kwh | Q144: 2019-04-30 | V144: 6 | Z144: Rate Rider for Disposition of Global Adjustment Account (2019) - effective until April 30, 2019 Applicable only for Non-RPP Customers
B145: Rate Rider for Disposition of Deferral/Variance Accounts (2019) - effective until Dec 31, 2019 Applicable only for Non-Wholesale Market Participants | D145: $/kW | E145: -0.1166961876 | H145: 4_GENERAL SERVICE 1,000 TO 4,999 KW SERVICE CLASSIFICATION | I145: B | M145: 4_GENERAL SERVICE 1,000 TO 4,999 KW SERVICE CLASSIFICATION_DEFVAR_ALL | Q145: 2019-04-30 | V145: 17 | Z145: Rate Rider for Disposition of Deferral/Variance Accounts (2019) - effective until April 30, 2019 Applicable only for Non-Wholesale Market Participants
B146: Rate Rider for Disposition of Deferral/Variance Accounts (2019) - effective until Dec 31, 2019 | D146: $/kW | E146: -0.5354548518 | H146: 4_GENERAL SERVICE 1,000 TO 4,999 KW SERVICE CLASSIFICATION | I146: B | M146: 4_GENERAL SERVICE 1,000 TO 4,999 KW SERVICE CLASSIFICATION_DEFVAR_ALL | Q146: 2019-04-30 | V146: 18 | Z146: Rate Rider for Disposition of Deferral/Variance Accounts (2019) - effective until April 30, 2019
B147: Rate Rider for Disposition of Capacity Based Recovery Account (2018) - effective until April 30, 2019 Applicable only for Class B Customers | D147: $/kW | E147: 0.1709 | H147: 4_GENERAL SERVICE 1,000 TO 4,999 KW SERVICE CLASSIFICATION | I147: B | M147: 4_GENERAL SERVICE 1,000 TO 4,999 KW SERVICE CLASSIFICATION_VR_RR_14 | Q147: 2019-04-30 | V147: 6 | Z147: Rate Rider for Disposition of Capacity Based Recovery Account (2019) - effective until April 30, 2019 Applicable only for Class B Customers
B148: Rate Rider for Disposition of Capacity Based Recovery Account (2019) - effective until Dec 31, 2019 Applicable only for Class B Customers | D148: $/kW | E148: 0.001523569048 | H148: 2_GENERAL SERVICE LESS THAN 50 KW SERVICE CLASSIFICATION | I148: B
B149: Rate Rider for Disposition of Account 1568 (2019) - effective until Dec 31, 2019 | D149: $/kW | E149: 0.07282843324 | I149: B
B150: Rate Rider for Disposition of Account 1575 and 1576 - effective until Dec 31, 2019 | D150: $/kW | E150: -0.1411753012 | I150: B
B151: Rate Rider - Gain on Sale of Property | D151: $/kW | E151: -0.1083689252 | I151: B
B152: Retail Transmission Rate - Network Service Rate | D152: $/kW | E152: 2.36201952 | H152: 4_GENERAL SERVICE 1,000 TO 4,999 KW SERVICE CLASSIFICATION | I152: C | M152: 4_GENERAL SERVICE 1,000 TO 4,999 KW SERVICE CLASSIFICATION_Retail Transmission Rate - Network Service Rate | V152: 6 | Z152: Retail Transmission Rate - Network Service Rate
B153: Retail Transmission Rate - Line and Transformation Connection Service Rate | D153: $/kW | E153: 1.796393228 | H153: 4_GENERAL SERVICE 1,000 TO 4,999 KW SERVICE CLASSIFICATION | I153: C | M153: 4_GENERAL SERVICE 1,000 TO 4,999 KW SERVICE CLASSIFICATION_Retail Transmission Rate - Line and Transformation Connection Service Rate | V153: 6 | Z153: Retail Transmission Rate - Line and Transformation Connection Service Rate
B154: MONTHLY RATES AND CHARGES - Regulatory Component | H154: 4_MRC_REG | V154: 48 | Z154: MONTHLY RATES AND CHARGES - Regulatory Component
B155: Wholesale Market Service Rate (WMS) - not including CBR | D155: $/kWh | E155: 0.0032 | H155: 4_GENERAL SERVICE 1,000 TO 4,999 KW SERVICE CLASSIFICATION | M155: 4_GENERAL SERVICE 1,000 TO 4,999 KW SERVICE CLASSIFICATION_WMSR | V155: 6 | Z155: Wholesale Market Service Rate (WMS) - not including CBR
B156: Capacity Based Recovery (CBR) - Applicable for Class B Customers | D156: $/kWh | E156: 0.0004 | H156: 4_GENERAL SERVICE 1,000 TO 4,999 KW SERVICE CLASSIFICATION | V156: 6 | Z156: Capacity Based Recovery (CBR) - Applicable for Class B Customers
B157: Rural or Remote Electricity Rate Protection Charge (RRRP) | D157: $/kWh | E157: 0.0003 | H157: 3_GENERAL SERVICE 50 TO 999 KW SERVICE CLASSIFICATION | I157: T | V157: 6 | Z157: Rural or Remote Electricity Rate Protection Charge (RRRP)
B158: Standard Supply Service - Administrative Charge (if applicable) | D158: $ | E158: 0.25 | H158: 4_GENERAL SERVICE 1,000 TO 4,999 KW SERVICE CLASSIFICATION | I158: T | M158: 4_GENERAL SERVICE 1,000 TO 4,999 KW SERVICE CLASSIFICATION_SSS | V158: 4 | Z158: Standard Supply Service - Administrative Charge (if applicable) | AS158: X
B159: LARGE USE SERVICE CLASSIFICATION | H159: 5_LARGE USE SERVICE CLASSIFICATION | V159: 32 | AA159: LARGE USE SERVICE CLASSIFICATION
B160: General Service refers to the supply of electrical energy to business customers, to bulk-metered residential buildings and to combined residential and business or residential and agricultural buildings. Apartment buildings that are bulk metered will be billed at the appropriate General Service rate. This classification refers to an account whose average monthly peak demand is equal to or greater than, or is forecast to be equal to or greater than, 5,000 kW. Class A and Class B consumers are defined in accordance with O. Reg. 429/04.Further servicing details are available in the distributor's Conditions of Service. | H160: 5_LARGE USE SERVICE CLASSIFICATION | V160: 624 | AA160: General Service refers to the supply of electrical energy to business customers, to bulk-metered residential buildings and to combined residential and business or residential and agricultural buildings. Apartment buildings that are bulk metered will be billed at the appropriate General Service rate. This classification refers to an account whose average monthly peak demand is equal to or greater than, or is forecast to be equal to or greater than, 5,000 kW. Class A and Class B consumers are defined in accordance with O. Reg. 429/04.Further servicing details are available in the distributor's Conditions of Service.
B161: APPLICATION | H161: 5_APPLICATION | V161: 11 | AA161: APPLICATION
B162: The application of these rates and charges shall be in accordance with the Licence of the Distributor and any Code or Order of the Ontario Energy Board, and amendments thereto as approved by the Ontario Energy Board, which may be applicable to the administration of this schedule. | H162: 5_LARGE USE SERVICE CLASSIFICATION | V162: 280 | AA162: The application of these rates and charges shall be in accordance with the Licence of the Distributor and any Code or Order of the Ontario Energy Board, and amendments thereto as approved by the Ontario Energy Board, which may be applicable to the administration of this schedule.
B163: No rates and charges for the distribution of electricity and charges to meet the costs of any work or service done or furnished for the purpose of the distribution of electricity shall be made except as permitted by this schedule, unless required by the Distributor’s Licence or a Code or Order of the Ontario Energy Board, and amendments thereto as approved by the Ontario Energy Board, or as specified herein. | H163: 5_LARGE USE SERVICE CLASSIFICATION | V163: 411 | AA163: No rates and charges for the distribution of electricity and charges to meet the costs of any work or service done or furnished for the purpose of the distribution of electricity shall be made except as permitted by this schedule, unless required by the Distributor’s Licence or a Code or Order of the Ontario Energy Board, and amendments thereto as approved by the Ontario Energy Board, or as specified herein.
B164: Unless specifically noted, this schedule does not contain any charges for the electricity commodity, be it under the Regulated Price Plan, a contract with a retailer or the wholesale market price, as applicable. In addition, the charges in the MONTHLY RATES AND CHARGES - Regulatory Component of this schedule do not apply to a customer that is an embedded wholesale market participant. | H164: 5_LARGE USE SERVICE CLASSIFICATION | V164: 387 | AA164: Unless specifically noted, this schedule does not contain any charges for the electricity commodity, be it under the Regulated Price Plan, a contract with a retailer or the wholesale market price, as applicable. In addition, the charges in the MONTHLY RATES AND CHARGES - Regulatory Component of this schedule do not apply to a customer that is an embedded wholesale market participant.
B165: The rate rider for the disposition of Global Adjustment is only applicable to non-RPP Class B customers. It is not applicable to Wholesale Market Participant (WMP), customers that transitioned between Class A and Class B during the variance account accumulation period, or to customers that were in Class A for the entire period. Customers who transitioned are to be charged or refunded their share of the variance disposed through customer specific billing adjustments. This rate rider is to be consistently applied for the entire period to the sunset date of the rate rider. In addition, this rate rider is applicable to all new non-RPP Class B customers. | H165: 5_LARGE USE SERVICE CLASSIFICATION | V165: 657 | AA165: The rate rider for the disposition of Global Adjustment is only applicable to non-RPP Class B customers. It is not applicable to Wholesale Market Participant (WMP), customers that transitioned between Class A and Class B during the variance account accumulation period, or to customers that were in Class A for the entire period. Customers who transitioned are to be charged or refunded their share of the variance disposed through customer specific billing adjustments. This rate rider is to be consistently applied for the entire period to the sunset date of the rate rider. In addition, this rate rider is applicable to all new non-RPP Class B customers.
B166: The rate rider for the disposition of WMS - Sub-account CBR Class B is not applicable to wholesale market participants (WMP), customers that transitioned between Class A and Class B during the variance account accumulation period, or to customers that were in Class A for the entire period. Customers who transitioned are to be charged or refunded their share of the variance disposed through customer specific billing adjustments. This rate rider is to be consistently applied for the entire period to the sunset date of the rate rider. In addition, this rate rider is applicable to all new Class B customers. | H166: 5_LARGE USE SERVICE CLASSIFICATION | V166: 610 | AA166: The rate rider for the disposition of WMS - Sub-account CBR Class B is not applicable to wholesale market participants (WMP), customers that transitioned between Class A and Class B during the variance account accumulation period, or to customers that were in Class A for the entire period. Customers who transitioned are to be charged or refunded their share of the variance disposed through customer specific billing adjustments. This rate rider is to be consistently applied for the entire period to the sunset date of the rate rider. In addition, this rate rider is applicable to all new Class B customers.
B167: It should be noted that this schedule does not list any charges, assessments, or credits that are required by law to be invoiced by a distributor and that are not subject to Ontario Energy Board approval, such as the Debt Retirement Charge, the Global Adjustment and the HST. | H167: 5_LARGE USE SERVICE CLASSIFICATION | V167: 275 | AA167: It should be noted that this schedule does not list any charges, assessments, or credits that are required by law to be invoiced by a distributor and that are not subject to Ontario Energy Board approval, such as the Debt Retirement Charge, the Global Adjustment and the HST.
B168: MONTHLY RATES AND CHARGES - Delivery Component | H168: 5_MRC_DEL | V168: 46 | AA168: MONTHLY RATES AND CHARGES - Delivery Component
B169: Service Charge | D169: $ | E169: 9388.05 | H169: 5_LARGE USE SERVICE CLASSIFICATION | I169: A | M169: 5_LARGE USE SERVICE CLASSIFICATION_MSC | V169: 8 | Z169: Service Charge
B170: Distribution Volumetric Rate | D170: $/kW | E170: 2.2632 | H170: 5_LARGE USE SERVICE CLASSIFICATION | I170: A | M170: 5_LARGE USE SERVICE CLASSIFICATION_DVC | V170: 9 | Z170: Distribution Volumetric Rate
B171: Low Voltage Service Rate | D171: $/kW | E171: 0.1841 | H171: 5_LARGE USE SERVICE CLASSIFICATION | I171: B | M171: 5_LARGE USE SERVICE CLASSIFICATION_LV | V171: 6 | Z171: Low Voltage Service Rate
B172: Rate Rider for Disposition of Deferral/Variance Accounts (2018) - effective until April 30, 2019 | D172: $/kW | E172: -2.535733921 | H172: 5_LARGE USE SERVICE CLASSIFICATION | I172: B | M172: 5_LARGE USE SERVICE CLASSIFICATION_DEFVAR_ALL | Q172: 2019-04-30 | Z172: Rate Rider for Disposition of Deferral/Variance Accounts (2019) - effective until April 30, 2019
B173: Rate Rider for Disposition of Global Adjustment Account (2019) - effective until Dec 31, 2019 Applicable only for Non-RPP Customers | D173: $/kWh | E173: 0.0003844918189 | H173: 4_GENERAL SERVICE 1,000 TO 4,999 KW SERVICE CLASSIFICATION | I173: B
B174: Rate Rider for Disposition of Deferral/Variance Accounts (2019) - effective until Dec 31, 2019 | D174: $/kW | E174: -0.577454669 | H174: 5_LARGE USE SERVICE CLASSIFICATION | I174: B | M174: 5_LARGE USE SERVICE CLASSIFICATION_DEFVAR_ALL | Q174: 2019-04-30 | V174: 16 | Z174: Rate Rider for Disposition of Deferral/Variance Accounts (2019) - effective until April 30, 2019
B175: Rate Rider for Disposition of Account 1568 (2019) - effective until Dec 31, 2019 | D175: $/kW | E175: 0.8263238808 | I175: B
B176: Rate Rider for Disposition of Account 1575 and 1576 - effective until Dec 31, 2019 | D176: $/kW | E176: -0.1223586901 | I176: B
B177: Rate Rider for Disposition of Capacity Based Recovery Account (2019) - effective until Dec 31, 2019 Applicable only for Class B Customers | D177: $/kW | E177: 7.632363717e-05 | H177: 2_GENERAL SERVICE LESS THAN 50 KW SERVICE CLASSIFICATION | I177: B
B178: Rate Rider - Gain on Sale of Property | D178: $/kW | E178: -0.09392485144 | I178: B
B179: Retail Transmission Rate - Network Service Rate | D179: $/kW | E179: 2.310063864 | H179: 5_LARGE USE SERVICE CLASSIFICATION | I179: C | M179: 5_LARGE USE SERVICE CLASSIFICATION_Retail Transmission Rate - Network Service Rate | V179: 6 | Z179: Retail Transmission Rate - Network Service Rate
B180: Retail Transmission Rate - Line and Transformation Connection Service Rate | D180: $/kW | E180: 1.958438022 | H180: 5_LARGE USE SERVICE CLASSIFICATION | I180: C | M180: 5_LARGE USE SERVICE CLASSIFICATION_Retail Transmission Rate - Line and Transformation Connection Service Rate | V180: 6 | Z180: Retail Transmission Rate - Line and Transformation Connection Service Rate
B181: MONTHLY RATES AND CHARGES - Regulatory Component | H181: 5_MRC_REG | V181: 48 | Z181: MONTHLY RATES AND CHARGES - Regulatory Component
B182: Wholesale Market Service Rate (WMS) - not including CBR | D182: $/kWh | E182: 0.0032 | H182: 5_LARGE USE SERVICE CLASSIFICATION | M182: 5_LARGE USE SERVICE CLASSIFICATION_WMSR | V182: 6 | Z182: Wholesale Market Service Rate (WMS) - not including CBR
B183: Capacity Based Recovery (CBR) - Applicable for Class B Customers | D183: $/kWh | E183: 0.0004 | H183: 5_LARGE USE SERVICE CLASSIFICATION | V183: 6 | Z183: Capacity Based Recovery (CBR) - Applicable for Class B Customers
B184: Rural or Remote Electricity Rate Protection Charge (RRRP) | D184: $/kWh | E184: 0.0003 | H184: 3_GENERAL SERVICE 50 TO 999 KW SERVICE CLASSIFICATION | I184: T | V184: 6 | Z184: Rural or Remote Electricity Rate Protection Charge (RRRP)
B185: Standard Supply Service - Administrative Charge (if applicable) | D185: $ | E185: 0.25 | H185: 5_LARGE USE SERVICE CLASSIFICATION | I185: T | M185: 5_LARGE USE SERVICE CLASSIFICATION_SSS | V185: 4 | Z185: Standard Supply Service - Administrative Charge (if applicable) | AS185: X
B186: UNMETERED SCATTERED LOAD SERVICE CLASSIFICATION | H186: 6_UNMETERED SCATTERED LOAD SERVICE CLASSIFICATION | V186: 47 | AA186: UNMETERED SCATTERED LOAD SERVICE CLASSIFICATION
B187: This classification refers to an account taking electricity at 750 volts or less whose average monthly peak demand is less than, or is forecast to be less than, 50kW and the consumption is unmetered. Such connections include cable TV power packs, bus shelters, telephone booths, traffic lights, railway crossings, etc. The customer will provide detailed manufacturer information/documentation with regard to electrical demand/consumption of the proposed unmetered load. Class B consumers are defined in accordance with O. Reg. 429/04. Further servicing details are available in the distributor's Conditions of Service. | H187: 6_UNMETERED SCATTERED LOAD SERVICE CLASSIFICATION | V187: 621 | AA187: This classification refers to an account taking electricity at 750 volts or less whose average monthly peak demand is less than, or is forecast to be less than, 50kW and the consumption is unmetered. Such connections include cable TV power packs, bus shelters, telephone booths, traffic lights, railway crossings, etc. The customer will provide detailed manufacturer information/documentation with regard to electrical demand/consumption of the proposed unmetered load. Class B consumers are defined in accordance with O. Reg. 429/04. Further servicing details are available in the distributor's Conditions of Service.
B188: APPLICATION | H188: 6_APPLICATION | V188: 11 | AA188: APPLICATION
B189: The application of these rates and charges shall be in accordance with the Licence of the Distributor and any Code or Order of the Ontario Energy Board, and amendments thereto as approved by the Ontario Energy Board, which may be applicable to the administration of this schedule. | H189: 6_UNMETERED SCATTERED LOAD SERVICE CLASSIFICATION | V189: 280 | AA189: The application of these rates and charges shall be in accordance with the Licence of the Distributor and any Code or Order of the Ontario Energy Board, and amendments thereto as approved by the Ontario Energy Board, which may be applicable to the administration of this schedule.
B190: No rates and charges for the distribution of electricity and charges to meet the costs of any work or service done or furnished for the purpose of the distribution of electricity shall be made except as permitted by this schedule, unless required by the Distributor’s Licence or a Code or Order of the Ontario Energy Board, and amendments thereto as approved by the Ontario Energy Board, or as specified herein. | H190: 6_UNMETERED SCATTERED LOAD SERVICE CLASSIFICATION | V190: 411 | AA190: No rates and charges for the distribution of electricity and charges to meet the costs of any work or service done or furnished for the purpose of the distribution of electricity shall be made except as permitted by this schedule, unless required by the Distributor’s Licence or a Code or Order of the Ontario Energy Board, and amendments thereto as approved by the Ontario Energy Board, or as specified herein.
B191: Unless specifically noted, this schedule does not contain any charges for the electricity commodity, be it under the Regulated Price Plan, a contract with a retailer or the wholesale market price, as applicable. In addition, the charges in the MONTHLY RATES AND CHARGES - Regulatory Component of this schedule do not apply to a customer that is an embedded wholesale market participant. | H191: 6_UNMETERED SCATTERED LOAD SERVICE CLASSIFICATION | V191: 387 | AA191: Unless specifically noted, this schedule does not contain any charges for the electricity commodity, be it under the Regulated Price Plan, a contract with a retailer or the wholesale market price, as applicable. In addition, the charges in the MONTHLY RATES AND CHARGES - Regulatory Component of this schedule do not apply to a customer that is an embedded wholesale market participant.
B192: The rate rider for the disposition of WMS - Sub-account CBR Class B is not applicable to wholesale market participants (WMP), customers that transitioned between Class A and Class B during the variance account accumulation period, or to customers that were in Class A for the entire period. Customers who transitioned are to be charged or refunded their share of the variance disposed through customer specific billing adjustments. This rate rider is to be consistently applied for the entire period to the sunset date of the rate rider. In addition, this rate rider is applicable to all new Class B customers. | H192: 6_UNMETERED SCATTERED LOAD SERVICE CLASSIFICATION | V192: 610 | AA192: The rate rider for the disposition of WMS - Sub-account CBR Class B is not applicable to wholesale market participants (WMP), customers that transitioned between Class A and Class B during the variance account accumulation period, or to customers that were in Class A for the entire period. Customers who transitioned are to be charged or refunded their share of the variance disposed through customer specific billing adjustments. This rate rider is to be consistently applied for the entire period to the sunset date of the rate rider. In addition, this rate rider is applicable to all new Class B customers.
B193: It should be noted that this schedule does not list any charges, assessments, or credits that are required by law to be invoiced by a distributor and that are not subject to Ontario Energy Board approval, such as the Debt Retirement Charge, the Global Adjustment and the HST. | H193: 6_UNMETERED SCATTERED LOAD SERVICE CLASSIFICATION | V193: 275 | AA193: It should be noted that this schedule does not list any charges, assessments, or credits that are required by law to be invoiced by a distributor and that are not subject to Ontario Energy Board approval, such as the Debt Retirement Charge, the Global Adjustment and the HST.
B194: MONTHLY RATES AND CHARGES - Delivery Component | H194: 6_MRC_DEL | V194: 46 | AA194: MONTHLY RATES AND CHARGES - Delivery Component
B195: Service Charge (per connection) | D195: $ | E195: 5.7905 | H195: 6_UNMETERED SCATTERED LOAD SERVICE CLASSIFICATION | I195: A | M195: 6_UNMETERED SCATTERED LOAD SERVICE CLASSIFICATION_MSC | V195: 7 | Z195: Service Charge (per connection)
B196: Distribution Volumetric Rate | D196: $/kWh | E196: 0.0143 | H196: 6_UNMETERED SCATTERED LOAD SERVICE CLASSIFICATION | I196: A | M196: 6_UNMETERED SCATTERED LOAD SERVICE CLASSIFICATION_DVC | V196: 9 | Z196: Distribution Volumetric Rate
B197: Low Voltage Service Rate | D197: $/kWh | E197: 0.0004 | H197: 6_UNMETERED SCATTERED LOAD SERVICE CLASSIFICATION | I197: B | M197: 6_UNMETERED SCATTERED LOAD SERVICE CLASSIFICATION_LV | V197: 6 | Z197: Low Voltage Service Rate
B198: Rate Rider for Disposition of Global Adjustment Account (2018) - effective until April 30, 2019 Applicable only for Non-RPP Customers | D198: $/kWh | E198: 0.0032 | H198: 6_UNMETERED SCATTERED LOAD SERVICE CLASSIFICATION | I198: B | M198: 6_UNMETERED SCATTERED LOAD SERVICE CLASSIFICATION_GA_kwh | Q198: 2019-04-30 | Z198: Rate Rider for Disposition of Global Adjustment Account (2019) - effective until April 30, 2019 Applicable only for Non-RPP Customers
B199: Rate Rider for Disposition of Deferral/Variance Accounts (2018) - effective until April 30, 2019 | D199: $/kWh | E199: -0.006202260836 | H199: 6_UNMETERED SCATTERED LOAD SERVICE CLASSIFICATION | I199: B | M199: 6_UNMETERED SCATTERED LOAD SERVICE CLASSIFICATION_DEFVAR_ALL | Q199: 2019-04-30 | Z199: Rate Rider for Disposition of Deferral/Variance Accounts (2019) - effective until April 30, 2019
B200: Rate Rider for Disposition of Global Adjustment Account (2019) - effective until Dec 31, 2019 Applicable only for Non-RPP Customers | D200: $/kWh | E200: 0.0003844918189 | H200: 6_UNMETERED SCATTERED LOAD SERVICE CLASSIFICATION | I200: B | M200: 6_UNMETERED SCATTERED LOAD SERVICE CLASSIFICATION_GA_kwh | Q200: 2019-04-30 | V200: 6 | Z200: Rate Rider for Disposition of Global Adjustment Account (2019) - effective until April 30, 2019 Applicable only for Non-RPP Customers
B201: Rate Rider for Disposition of Deferral/Variance Accounts (2019) - effective until Dec 31, 2019 | D201: $/kWh | E201: -0.0006874933232 | H201: 6_UNMETERED SCATTERED LOAD SERVICE CLASSIFICATION | I201: B | M201: 6_UNMETERED SCATTERED LOAD SERVICE CLASSIFICATION_DEFVAR_ALL | Q201: 2019-04-30 | V201: 21 | Z201: Rate Rider for Disposition of Deferral/Variance Accounts (2019) - effective until April 30, 2019
B202: Rate Rider for Disposition of Capacity Based Recovery Account (2018) - effective until April 30, 2019 Applicable only for Class B Customers | D202: $/kWh | E202: 0.0004 | H202: 6_UNMETERED SCATTERED LOAD SERVICE CLASSIFICATION | I202: B | M202: 6_UNMETERED SCATTERED LOAD SERVICE CLASSIFICATION_VR_RR_18 | Q202: 2019-04-30 | V202: 6 | Z202: Rate Rider for Disposition of Capacity Based Recovery Account (2019) - effective until April 30, 2019 Applicable only for Class B Customers
B203: Rate Rider for Disposition of Capacity Based Recovery Account (2019) - effective until Dec 31, 2019 Applicable only for Class B Customers | D203: $/kWh | E203: 4.956853384e-06 | H203: 2_GENERAL SERVICE LESS THAN 50 KW SERVICE CLASSIFICATION | I203: B
B204: Rate Rider for Disposition of Account 1568 (2019) - effective until Dec 31, 2019 | D204: $/kWh | E204: -0.001083862361 | I204: B
B205: Rate Rider for Disposition of Account 1575 and 1576 - effective until Dec 31, 2019 | D205: $/kWh | E205: -0.0003212691524 | I205: B
B206: Rate Rider - Gain on Sale of Property | D206: $/kWh | E206: -0.0002466123126 | I206: B
B207: Retail Transmission Rate - Network Service Rate | D207: $/kWh | E207: 0.004967996266 | H207: 6_UNMETERED SCATTERED LOAD SERVICE CLASSIFICATION | I207: C | M207: 6_UNMETERED SCATTERED LOAD SERVICE CLASSIFICATION_Retail Transmission Rate - Network Service Rate | V207: 6 | Z207: Retail Transmission Rate - Network Service Rate
B208: Retail Transmission Rate - Line and Transformation Connection Service Rate | D208: $/kWh | E208: 0.003889312979 | H208: 6_UNMETERED SCATTERED LOAD SERVICE CLASSIFICATION | I208: C | M208: 6_UNMETERED SCATTERED LOAD SERVICE CLASSIFICATION_Retail Transmission Rate - Line and Transformation Connection Service Rate | V208: 6 | Z208: Retail Transmission Rate - Line and Transformation Connection Service Rate
B209: MONTHLY RATES AND CHARGES - Regulatory Component | H209: 6_MRC_REG | V209: 48 | Z209: MONTHLY RATES AND CHARGES - Regulatory Component
B210: Wholesale Market Service Rate (WMS) - not including CBR | D210: $/kWh | E210: 0.0032 | H210: 6_UNMETERED SCATTERED LOAD SERVICE CLASSIFICATION | M210: 6_UNMETERED SCATTERED LOAD SERVICE CLASSIFICATION_WMSR | V210: 6 | Z210: Wholesale Market Service Rate (WMS) - not including CBR
B211: Capacity Based Recovery (CBR) - Applicable for Class B Customers | D211: $/kWh | E211: 0.0004 | H211: 6_UNMETERED SCATTERED LOAD SERVICE CLASSIFICATION | V211: 6 | Z211: Capacity Based Recovery (CBR) - Applicable for Class B Customers
B212: Rural or Remote Electricity Rate Protection Charge (RRRP) | D212: $/kWh | E212: 0.0003 | H212: 3_GENERAL SERVICE 50 TO 999 KW SERVICE CLASSIFICATION | I212: T | V212: 6 | Z212: Rural or Remote Electricity Rate Protection Charge (RRRP)
B213: Standard Supply Service - Administrative Charge (if applicable) | D213: $ | E213: 0.25 | H213: 6_UNMETERED SCATTERED LOAD SERVICE CLASSIFICATION | I213: T | M213: 6_UNMETERED SCATTERED LOAD SERVICE CLASSIFICATION_SSS | V213: 4 | Z213: Standard Supply Service - Administrative Charge (if applicable) | AS213: X
B214: STREET LIGHTING SERVICE CLASSIFICATION | H214: 7_STREET LIGHTING SERVICE CLASSIFICATION | V214: 38 | AA214: STREET LIGHTING SERVICE CLASSIFICATION
B215: This classification refers to an account for roadway lighting with a Municipality, Regional Municipality, Ministry of Transportation and private roadway lighting operation, controlled by photo cells. The consumption for these customers will be based on the calculated connected load times the required lighting times established in the approved Ontario Energy Board street lighting load shape template. Class B consumers are defined in accordance with O. Reg. 429/04. Further servicing details are available in the distributor's Conditions of Service. | H215: 7_STREET LIGHTING SERVICE CLASSIFICATION | V215: 552 | AA215: This classification refers to an account for roadway lighting with a Municipality, Regional Municipality, Ministry of Transportation and private roadway lighting operation, controlled by photo cells. The consumption for these customers will be based on the calculated connected load times the required lighting times established in the approved Ontario Energy Board street lighting load shape template. Class B consumers are defined in accordance with O. Reg. 429/04. Further servicing details are available in the distributor's Conditions of Service.
B216: APPLICATION | H216: 7_APPLICATION | V216: 11 | AA216: APPLICATION
B217: The application of these rates and charges shall be in accordance with the Licence of the Distributor and any Code or Order of the Ontario Energy Board, and amendments thereto as approved by the Ontario Energy Board, which may be applicable to the administration of this schedule. | H217: 7_STREET LIGHTING SERVICE CLASSIFICATION | V217: 280 | AA217: The application of these rates and charges shall be in accordance with the Licence of the Distributor and any Code or Order of the Ontario Energy Board, and amendments thereto as approved by the Ontario Energy Board, which may be applicable to the administration of this schedule.
B218: No rates and charges for the distribution of electricity and charges to meet the costs of any work or service done or furnished for the purpose of the distribution of electricity shall be made except as permitted by this schedule, unless required by the Distributor’s Licence or a Code or Order of the Ontario Energy Board, and amendments thereto as approved by the Ontario Energy Board, or as specified herein. | H218: 7_STREET LIGHTING SERVICE CLASSIFICATION | V218: 411 | AA218: No rates and charges for the distribution of electricity and charges to meet the costs of any work or service done or furnished for the purpose of the distribution of electricity shall be made except as permitted by this schedule, unless required by the Distributor’s Licence or a Code or Order of the Ontario Energy Board, and amendments thereto as approved by the Ontario Energy Board, or as specified herein.
B219: Unless specifically noted, this schedule does not contain any charges for the electricity commodity, be it under the Regulated Price Plan, a contract with a retailer or the wholesale market price, as applicable. In addition, the charges in the MONTHLY RATES AND CHARGES - Regulatory Component of this schedule do not apply to a customer that is an embedded wholesale market participant. | H219: 7_STREET LIGHTING SERVICE CLASSIFICATION | V219: 387 | AA219: Unless specifically noted, this schedule does not contain any charges for the electricity commodity, be it under the Regulated Price Plan, a contract with a retailer or the wholesale market price, as applicable. In addition, the charges in the MONTHLY RATES AND CHARGES - Regulatory Component of this schedule do not apply to a customer that is an embedded wholesale market participant.
B220: The rate rider for the disposition of WMS - Sub-account CBR Class B is not applicable to wholesale market participants (WMP), customers that transitioned between Class A and Class B during the variance account accumulation period, or to customers that were in Class A for the entire period. Customers who transitioned are to be charged or refunded their share of the variance disposed through customer specific billing adjustments. This rate rider is to be consistently applied for the entire period to the sunset date of the rate rider. In addition, this rate rider is applicable to all new Class B customers. | H220: 7_STREET LIGHTING SERVICE CLASSIFICATION | V220: 610 | AA220: The rate rider for the disposition of WMS - Sub-account CBR Class B is not applicable to wholesale market participants (WMP), customers that transitioned between Class A and Class B during the variance account accumulation period, or to customers that were in Class A for the entire period. Customers who transitioned are to be charged or refunded their share of the variance disposed through customer specific billing adjustments. This rate rider is to be consistently applied for the entire period to the sunset date of the rate rider. In addition, this rate rider is applicable to all new Class B customers.
B221: It should be noted that this schedule does not list any charges, assessments, or credits that are required by law to be invoiced by a distributor and that are not subject to Ontario Energy Board approval, such as the Debt Retirement Charge, the Global Adjustment and the HST. | H221: 7_STREET LIGHTING SERVICE CLASSIFICATION | V221: 275 | AA221: It should be noted that this schedule does not list any charges, assessments, or credits that are required by law to be invoiced by a distributor and that are not subject to Ontario Energy Board approval, such as the Debt Retirement Charge, the Global Adjustment and the HST.
B222: MONTHLY RATES AND CHARGES - Delivery Component | H222: 7_MRC_DEL | V222: 46 | AA222: MONTHLY RATES AND CHARGES - Delivery Component
B223: Service Charge (per connection) | D223: $ | E223: 1.6542 | H223: 7_STREET LIGHTING SERVICE CLASSIFICATION | I223: A | M223: 7_STREET LIGHTING SERVICE CLASSIFICATION_MSC | V223: 7 | Z223: Service Charge (per connection)
B224: Distribution Volumetric Rate | D224: $/kW | E224: 13.3222 | H224: 7_STREET LIGHTING SERVICE CLASSIFICATION | I224: A | M224: 7_STREET LIGHTING SERVICE CLASSIFICATION_DVC | V224: 10 | Z224: Distribution Volumetric Rate
B225: Low Voltage Service Rate | D225: $/kW | E225: 0.1158 | H225: 7_STREET LIGHTING SERVICE CLASSIFICATION | I225: B | M225: 7_STREET LIGHTING SERVICE CLASSIFICATION_LV | V225: 5 | Z225: Low Voltage Service Rate
... 138 more rows

Sheet 5. 2-W Bill Impacts
AZ1: YES | CA1: 1
D12: The bill comparisons below must be provided for typical customers and consumption levels. Bill impacts must be provided for residential customers consuming 750 kWh per month and general service customers consuming 2,000 kWh per month and having a monthly demand of less than 50 kW. Include bill comparisons for Non-RPP (retailer) as well. The OEB has established that, when assessing the combined effects of the shift to fixed rates and other bill impacts associated with changes in the cost of distribution service, a utility shall evaluate the total bill impact for a low volume residential customer consuming at the distributor’s 10th consumption percentile19, to a minimum of 50 kWh per month. Refer to page 62 of Chapter 2 Filing Requirements For Electricity Distribution Rate Applications issued July 20, 2017. For certain classes where one or more customers have unique consumption and demand patterns and which may be significantly impacted by the proposed rate changes, the distributor must show a typical comparison, and provide an explanation. Note: 1. For those classes that are not eligible for the RPP price, the weighted average price including Class B GA through end of May 2017 of $0.113/kWh (IESO's Monthly Market Report for May 2017, page 22) has been used to represent the cost of power. For those classes on a retailer contract, applicants should enter the contract price (plus GA) for a more accurate estimate. Changes to the cost of power can be made directly on the bill impact chart for the specific class. 2. Due to the change to energy consumption used in the calculation of GA rate riders for the 2018 rate year, the separate “GA Rate Riders” line is only applicable to the “Proposed” section of the bill impact tables. 3. Please enter the applicable billing determinant (e.g. number of connections or devices) to be applied to the monthly service charge for unmetered rate classes in column N. If the monthly service charge is applied on a per customer basis, enter the number “1”. Distributors should provide the number of connections or devices reflective of a typical customer in each class.
D13: Note that cells with the highlighted color shown to the left indicate quantities that are loss adjusted.
D28: Table 1
D29: RATE CLASSES / CATEGORIES (eg: Residential TOU, Residential Retailer) | G29: Units | H29: RPP? Non-RPP Retailer? Non-RPP Other? | I29: Current Loss Factor (eg: 1.0351) | J29: Proposed Loss Factor | K29: Consumption (kWh) | L29: Demand kW (if applicable) | M29: RTSR Demand or Demand-Interval? | N29: Billing Determinant Applied to Fixed Charge for Unmetered Classes (e.g. # of devices/connections).
B30: 1 | C30: 1 | D30: RESIDENTIAL SERVICE CLASSIFICATION | G30: kWh | H30: RPP | I30: 1.0335 | J30: 1.03068465 | K30: 750 | M30: N/A | T30: =SUM(I30:L30) -> 752.0641846 | U30: 78 | AS30: 1
B31: 2 | C31: 2 | D31: GENERAL SERVICE LESS THAN 50 kW SERVICE CLASSIFICATION | G31: kWh | H31: RPP | I31: 1.0335 | J31: 1.03068465 | K31: 2000 | M31: N/A | T31: 2002.064185 | U31: =U30+68 -> 146 | AS31: 2
B32: 3 | C32: 3 | D32: GENERAL SERVICE 50 TO 4,999 KW SERVICE CLASSIFICATION | G32: kW | H32: Non-RPP (Other) | I32: 1.0335 | J32: 1.03068465 | K32: 20000 | L32: 60 | M32: DEMAND | T32: 20062.06418 | U32: =U31+68 -> 214 | AS32: 3
B33: 4 | C33: 4 | D33: UNMETERED SCATTERED LOAD SERVICE CLASSIFICATION | G33: kWh | H33: Non-RPP (Other) | I33: 1.0335 | J33: 1.03068465 | K33: 100 | M33: N/A | N33: 1 | T33: 102.0641846 | U33: 282 | AS33: 4
B34: 5 | C34: 5 | D34: SENTINEL LIGHTING SERVICE CLASSIFICATION | M34: N/A | T34: 0 | U34: 350 | AS34: 5
B35: 6 | C35: 6 | D35: STREET LIGHTING SERVICE CLASSIFICATION | G35: kW | H35: Non-RPP (Other) | I35: 1.0335 | J35: 1.03068465 | K35: 400000 | L35: 700 | M35: DEMAND | N35: 547 | T35: 400702.0642 | U35: 418 | AS35: 6
B36: 7 | C36: 7 | D36: Add additional scenarios if required | T36: 0 | U36: 486 | AS36: 7
B37: 8 | C37: 8 | D37: Add additional scenarios if required | T37: 0 | AS37: 8
B38: 9 | C38: 9 | D38: Add additional scenarios if required | T38: 0 | AS38: 9
B39: 10 | C39: =IF(ISERROR(VLOOKUP(D39, D30:AS69, 42, FALSE)),"", VLOOKUP(D39, D30:AS69, 42, FALSE)) -> 7 | D39: Add additional scenarios if required | T39: 0
B40: 11 | C40: =IF(ISERROR(VLOOKUP(D40, D30:AS69, 42, FALSE)),"", VLOOKUP(D40, D30:AS69, 42, FALSE)) -> 7 | D40: Add additional scenarios if required | T40: 0
B41: 12 | C41: =IF(ISERROR(VLOOKUP(D41, D30:AS69, 42, FALSE)),"", VLOOKUP(D41, D30:AS69, 42, FALSE)) -> 7 | D41: Add additional scenarios if required | T41: 0
B42: 13 | C42: =IF(ISERROR(VLOOKUP(D42, D30:AS69, 42, FALSE)),"", VLOOKUP(D42, D30:AS69, 42, FALSE)) -> 7 | D42: Add additional scenarios if required | T42: 0
B43: 14 | C43: =IF(ISERROR(VLOOKUP(D43, D30:AS69, 42, FALSE)),"", VLOOKUP(D43, D30:AS69, 42, FALSE)) -> 7 | D43: Add additional scenarios if required | T43: 0
B44: 15 | C44: =IF(ISERROR(VLOOKUP(D44, D30:AS69, 42, FALSE)),"", VLOOKUP(D44, D30:AS69, 42, FALSE)) -> 7 | D44: Add additional scenarios if required | T44: 0
B45: 16 | C45: =IF(ISERROR(VLOOKUP(D45, D30:AS69, 42, FALSE)),"", VLOOKUP(D45, D30:AS69, 42, FALSE)) -> 7 | D45: Add additional scenarios if required | T45: 0
B46: 17 | C46: =IF(ISERROR(VLOOKUP(D46, D30:AS69, 42, FALSE)),"", VLOOKUP(D46, D30:AS69, 42, FALSE)) -> 7 | D46: Add additional scenarios if required | T46: 0
B47: 18 | C47: =IF(ISERROR(VLOOKUP(D47, D30:AS69, 42, FALSE)),"", VLOOKUP(D47, D30:AS69, 42, FALSE)) -> 7 | D47: Add additional scenarios if required | T47: 0
B48: 19 | C48: =IF(ISERROR(VLOOKUP(D48, D30:AS69, 42, FALSE)),"", VLOOKUP(D48, D30:AS69, 42, FALSE)) -> 7 | D48: Add additional scenarios if required | T48: 0
B49: 20 | C49: =IF(ISERROR(VLOOKUP(D49, D30:AS69, 42, FALSE)),"", VLOOKUP(D49, D30:AS69, 42, FALSE)) -> 7 | D49: Add additional scenarios if required | T49: 0
B50: 21 | C50: =IF(ISERROR(VLOOKUP(D50, D30:AS69, 42, FALSE)),"", VLOOKUP(D50, D30:AS69, 42, FALSE)) -> 7 | D50: Add additional scenarios if required | T50: 0
B51: 22 | C51: =IF(ISERROR(VLOOKUP(D51, D30:AS69, 42, FALSE)),"", VLOOKUP(D51, D30:AS69, 42, FALSE)) -> 7 | D51: Add additional scenarios if required | T51: 0
B52: 23 | C52: =IF(ISERROR(VLOOKUP(D52, D30:AS69, 42, FALSE)),"", VLOOKUP(D52, D30:AS69, 42, FALSE)) -> 7 | D52: Add additional scenarios if required | T52: 0
B53: 24 | C53: =IF(ISERROR(VLOOKUP(D53, D30:AS69, 42, FALSE)),"", VLOOKUP(D53, D30:AS69, 42, FALSE)) -> 7 | D53: Add additional scenarios if required | T53: 0
B54: 25 | C54: =IF(ISERROR(VLOOKUP(D54, D30:AS69, 42, FALSE)),"", VLOOKUP(D54, D30:AS69, 42, FALSE)) -> 7 | D54: Add additional scenarios if required | T54: 0
B55: 26 | C55: =IF(ISERROR(VLOOKUP(D55, D30:AS69, 42, FALSE)),"", VLOOKUP(D55, D30:AS69, 42, FALSE)) -> 7 | D55: Add additional scenarios if required | T55: 0
B56: 27 | C56: =IF(ISERROR(VLOOKUP(D56, D30:AS69, 42, FALSE)),"", VLOOKUP(D56, D30:AS69, 42, FALSE)) -> 7 | D56: Add additional scenarios if required | T56: 0
B57: 28 | C57: =IF(ISERROR(VLOOKUP(D57, D30:AS69, 42, FALSE)),"", VLOOKUP(D57, D30:AS69, 42, FALSE)) -> 7 | D57: Add additional scenarios if required | T57: 0 | U57: =U36+68 -> 554 | AS57: 8
B58: 29 | C58: =IF(ISERROR(VLOOKUP(D58, D30:AS69, 42, FALSE)),"", VLOOKUP(D58, D30:AS69, 42, FALSE)) -> 7 | D58: Add additional scenarios if required | T58: 0 | U58: =U57+68 -> 622 | AS58: 9
B59: 30 | C59: =IF(ISERROR(VLOOKUP(D59, D30:AS69, 42, FALSE)),"", VLOOKUP(D59, D30:AS69, 42, FALSE)) -> 7 | D59: Add additional scenarios if required | T59: 0 | U59: 690 | AS59: 10
B60: 31 | C60: =IF(ISERROR(VLOOKUP(D60, D30:AS69, 42, FALSE)),"", VLOOKUP(D60, D30:AS69, 42, FALSE)) -> 7 | D60: Add additional scenarios if required | T60: 0 | U60: 758
B61: 32 | C61: =IF(ISERROR(VLOOKUP(D61, D30:AS69, 42, FALSE)),"", VLOOKUP(D61, D30:AS69, 42, FALSE)) -> 7 | D61: Add additional scenarios if required | T61: 0 | U61: 826
B62: 33 | C62: =IF(ISERROR(VLOOKUP(D62, D30:AS69, 42, FALSE)),"", VLOOKUP(D62, D30:AS69, 42, FALSE)) -> 7 | D62: Add additional scenarios if required | T62: 0 | U62: 894
B63: 34 | C63: =IF(ISERROR(VLOOKUP(D63, D30:AS69, 42, FALSE)),"", VLOOKUP(D63, D30:AS69, 42, FALSE)) -> 7 | D63: Add additional scenarios if required | T63: 0 | U63: 962
B64: 35 | C64: =IF(ISERROR(VLOOKUP(D64, D30:AS69, 42, FALSE)),"", VLOOKUP(D64, D30:AS69, 42, FALSE)) -> 7 | D64: Add additional scenarios if required | T64: 0 | U64: 1030
B65: 36 | C65: =IF(ISERROR(VLOOKUP(D65, D30:AS69, 42, FALSE)),"", VLOOKUP(D65, D30:AS69, 42, FALSE)) -> 7 | D65: Add additional scenarios if required | T65: 0 | U65: 1098
B66: 37 | C66: =IF(ISERROR(VLOOKUP(D66, D30:AS69, 42, FALSE)),"", VLOOKUP(D66, D30:AS69, 42, FALSE)) -> 7 | D66: Add additional scenarios if required | T66: 0 | U66: 1166
B67: 38 | C67: =IF(ISERROR(VLOOKUP(D67, D30:AS69, 42, FALSE)),"", VLOOKUP(D67, D30:AS69, 42, FALSE)) -> 7 | D67: Add additional scenarios if required | T67: 0 | U67: 1234
B68: 39 | C68: =IF(ISERROR(VLOOKUP(D68, D30:AS69, 42, FALSE)),"", VLOOKUP(D68, D30:AS69, 42, FALSE)) -> 7 | D68: Add additional scenarios if required | T68: 0 | U68: 1302
B69: 40 | C69: =IF(ISERROR(VLOOKUP(D69, D30:AS69, 42, FALSE)),"", VLOOKUP(D69, D30:AS69, 42, FALSE)) -> 7 | D69: Add additional scenarios if required | T69: 0 | U69: 1370
D71: Table 2
D72: RATE CLASSES / CATEGORIES (eg: Residential TOU, Residential Retailer) | G72: Units | H72: Sub-Total | N72: Total (After Tax)
H73: A | J73: B | L73: C
H74: $ | I74: % | J74: $ | K74: % | L74: $ | M74: % | N74: $ | O74: %
B75: =H30 -> RPP | C75: 1 | D75: =IF(ISBLANK(D30), "", IF(D30 = "Add additional scenarios if required", "", IF(M30="YES", D30 & " - " & H30 & " - Interval Customers", D30 & " - " &H30))) -> RESIDENTIAL SERVICE CLASSIFICATION - RPP | G75: =IF(ISBLANK(G30), "", G30) -> kWh | H75: =IF(LEN($G75)>1, (SUMPRODUCT(--($C$118:$C$1000=$B30), --($A$118:$A$1000=$D30), --($B$118:$B$1000="ST_A"), $L$118:$L$1000)), "") -> 2.53 | I75: =IF(LEN($G75)>1, (SUMPRODUCT(--($C$118:$C$1000=$B30), --($A$118:$A$1000=$D30), --($B$118:$B$1000="ST_A"), $M$118:$M$1000)), "") -> 0.102016129 | J75: =IF(LEN($G75)>1, (SUMPRODUCT(--($C$118:$C$1000=$B30), --($A$118:$A$1000=$D30), --($B$118:$B$1000="ST_B"), $L$118:$L$1000)), "") -> 525.0315181 | K75: =IF(LEN($G75)>1, (SUMPRODUCT(--($C$118:$C$1000=$B30), --($A$118:$A$1000=$D30), --($B$118:$B$1000="ST_B"), $M$118:$M$1000)), "") -> 23.04359622 | L75: =IF(LEN($G75)>1, (SUMPRODUCT(--($C$118:$C$1000=$B30), --($A$118:$A$1000=$D30), --($B$118:$B$1000="ST_C"), $L$118:$L$1000)), "") -> 524.4686601 | M75: =IF(LEN($G75)>1, (SUMPRODUCT(--($C$118:$C$1000=$B30), --($A$118:$A$1000=$D30), --($B$118:$B$1000="ST_C"), $M$118:$M$1000)), "") -> 17.04588143 | N75: =IF(LEN($G75)>1, (SUMPRODUCT(--($C$118:$C$1000=$B30), --($A$118:$A$1000=$D30), --($B$118:$B$1000=$B75&"_TOTAL"), $L$118:$L$1000)), "") -> 550.4408341 | O75: =IF(LEN($G75)>1, (SUMPRODUCT(--($C$118:$C$1000=$B30), --($A$118:$A$1000=$D30), --($B$118:$B$1000=$B75&"_TOTAL"), $M$118:$M$1000)), "") -> 5.49789088
D76: GENERAL SERVICE LESS THAN 50 kW SERVICE CLASSIFICATION - RPP | G76: =IF(ISBLANK(G31), "", G31) -> kWh | H76: =IF(LEN($G76)>1, (SUMPRODUCT(--($C$118:$C$1000=$B31), --($A$118:$A$1000=$D31), --($B$118:$B$1000="ST_A"), $L$118:$L$1000)), "") -> 4.44 | I76: =IF(LEN($G76)>1, (SUMPRODUCT(--($C$118:$C$1000=$B31), --($A$118:$A$1000=$D31), --($B$118:$B$1000="ST_A"), $M$118:$M$1000)), "") -> 0.1029207232 | J76: =IF(LEN($G76)>1, (SUMPRODUCT(--($C$118:$C$1000=$B31), --($A$118:$A$1000=$D31), --($B$118:$B$1000="ST_B"), $L$118:$L$1000)), "") -> 2.177381679 | K76: =IF(LEN($G76)>1, (SUMPRODUCT(--($C$118:$C$1000=$B31), --($A$118:$A$1000=$D31), --($B$118:$B$1000="ST_B"), $M$118:$M$1000)), "") -> 0.05882475077 | L76: =IF(LEN($G76)>1, (SUMPRODUCT(--($C$118:$C$1000=$B31), --($A$118:$A$1000=$D31), --($B$118:$B$1000="ST_C"), $L$118:$L$1000)), "") -> -9.212514982 | M76: =IF(LEN($G76)>1, (SUMPRODUCT(--($C$118:$C$1000=$B31), --($A$118:$A$1000=$D31), --($B$118:$B$1000="ST_C"), $M$118:$M$1000)), "") -> -0.1638135152 | N76: =IF(LEN($G76)>1, (SUMPRODUCT(--($C$118:$C$1000=$B31), --($A$118:$A$1000=$D31), --($B$118:$B$1000=$B76&"_TOTAL"), $L$118:$L$1000)), "") -> 0 | O76: =IF(LEN($G76)>1, (SUMPRODUCT(--($C$118:$C$1000=$B31), --($A$118:$A$1000=$D31), --($B$118:$B$1000=$B76&"_TOTAL"), $M$118:$M$1000)), "") -> 0
B77: =H31 -> RPP | C77: 2 | D77: GENERAL SERVICE 50 TO 4,999 KW SERVICE CLASSIFICATION - Non-RPP (Other) | G77: =IF(ISBLANK(G31), "", G31) -> kWh | H77: 0 | I77: 0 | J77: 0 | K77: 0 | L77: 0 | M77: 0 | N77: 0 | O77: 0
B78: Non-RPP (Other) | C78: 3 | D78: UNMETERED SCATTERED LOAD SERVICE CLASSIFICATION - Non-RPP (Other) | G78: kW | H78: 0.07 | I78: 0.00979020979 | J78: 0.04780517964 | K78: 0.006613123641 | L78: 0.003959518086 | M78: 0.000483458232 | N78: -0.03157942514 | O78: -0.001379270902
B79: Non-RPP (Other) | C79: 4 | D79: SENTINEL LIGHTING SERVICE CLASSIFICATION - | G79: kWh | H79: 0 | I79: 0 | J79: 0 | K79: 0 | L79: 0 | M79: 0 | N79: 0 | O79: 0
B80: 0 | C80: 5 | D80: STREET LIGHTING SERVICE CLASSIFICATION - Non-RPP (Other)
B81: Non-RPP (Other) | C81: 6 | G81: kW | H81: 0 | I81: 0 | J81: 0 | K81: 0 | L81: 0 | M81: 0 | N81: 0 | O81: 0
B82: 0 | C82: 7
B83: 0 | C83: 8
B84: 0 | C84: 9
B85: 0 | C85: 10
B86: 0 | C86: 11
B87: 0 | C87: 12
B88: 0 | C88: 13
B89: 0 | C89: 14
B90: 0 | C90: 15
B91: 0 | C91: 16
B92: 0 | C92: 17
B93: 0 | C93: 18
B94: 0 | C94: 19
B95: 0 | C95: 20
B96: 0 | C96: 21
B97: 0 | C97: 22
B98: 0 | C98: 23
B99: 0 | C99: 24
B100: 0 | C100: 25
B101: 0 | C101: 26
B102: 0 | C102: 27
B103: 0 | C103: 28
B104: 0 | C104: 29
B105: 0 | C105: 30
B106: 0 | C106: 31
B107: 0 | C107: 32
B108: 0 | C108: 33
B109: 0 | C109: 34
B110: 0 | C110: 35
B111: 0 | C111: 36
B112: 0 | C112: 37
B113: 0 | C113: 38
B114: 0 | C114: 39
B115: 0 | C115: 40 | D115: =IF(ISBLANK(D69), "", IF(D69 = "Add additional scenarios if required", "", IF(M69="YES", D69 & " - " & H69 & " - Interval Customers", D69 & " - " &H69))) ->  | H115: =IF(LEN($G115)>1, ( SUMPRODUCT(--(#REF!=$B69), --(#REF!=$D69), --(#REF!="ST_A"),#REF!)), "") ->  | I115: =IF(LEN($G115)>1, ( SUMPRODUCT(--(#REF!=$B69), --(#REF!=$D69), --(#REF!="ST_A"),#REF!)), "") ->  | J115: =IF(LEN($G115)>1, ( SUMPRODUCT(--(#REF!=$B69), --(#REF!=$D69), --(#REF!="ST_B"),#REF!)), "") ->  | K115: =IF(LEN($G115)>1, ( SUMPRODUCT(--(#REF!=$B69), --(#REF!=$D69), --(#REF!="ST_B"),#REF!)), "") ->  | L115: =IF(LEN($G115)>1, ( SUMPRODUCT(--(#REF!=$B69), --(#REF!=$D69), --(#REF!="ST_C"),#REF!)), "") ->  | M115: =IF(LEN($G115)>1, ( SUMPRODUCT(--(#REF!=$B69), --(#REF!=$D69), --(#REF!="ST_C"),#REF!)), "") ->  | N115: =IF(LEN($G115)>1, ( SUMPRODUCT(--(#REF!=$B69), --(#REF!=$D69), --(#REF!=$B115&"_TOTAL"),#REF!)), "") ->  | O115: =IF(LEN($G115)>1, ( SUMPRODUCT(--(#REF!=$B69), --(#REF!=$D69), --(#REF!=$B115&"_TOTAL"),#REF!)), "") -> 
D118: Customer Class: | E118: =D30 -> RESIDENTIAL SERVICE CLASSIFICATION | K118: =IF(N30="DEMAND - INTERVAL","RTSR - INTERVAL METERED","") ->  | T118: X
D119: RPP / Non-RPP: | E119: =H30 -> RPP
D120: Consumption | E120: =K30 -> 750 | F120: kWh
D121: Demand | E121: =L30 -> 0 | F121: kW
D122: Current Loss Factor | E122: =I30 -> 1.0335
D123: Proposed/Approved Loss Factor | E123: =J30 -> 1.03068465
F125: Current OEB-Approved | I125: Proposed | L125: Impact
F126: Rate | G126: Volume | H126: Charge | I126: Rate | J126: Volume | K126: Charge | L126: $ Change | M126: % Change
F127: ($) | H127: ($) | I127: ($) | K127: ($)
A128: =$E118 -> RESIDENTIAL SERVICE CLASSIFICATION | D128: Monthly Service Charge | F128: 21.35 | G128: 1 | H128: =G128*F128 -> 21.35 | I128: 27.33 | J128: =G128 -> 1 | K128: =J128*I128 -> 27.33 | L128: =K128-H128 -> 5.98 | M128: =IF(ISERROR(L128/H128), "", L128/H128) -> 0.2800936768
A129: =A128 -> RESIDENTIAL SERVICE CLASSIFICATION | D129: Distribution Volumetric Rate | F129: 0.0046 | G129: =IF($E121>0, $E121, $E120) -> 750 | H129: =G129*F129 -> 3.45 | I129: 0 | J129: =IF($E121>0, $E121, $E120) -> 750 | K129: =J129*I129 -> 0 | L129: -3.45 | M129: =IF(ISERROR(L129/H129), "", L129/H129) -> -1
A130: =A129 -> RESIDENTIAL SERVICE CLASSIFICATION | D130: Fixed Rate Riders | F130: 0 | G130: 1 | H130: 0 | I130: 0 | J130: =G130 -> 1 | K130: =J130*I130 -> 0 | L130: 0
A131: RESIDENTIAL SERVICE CLASSIFICATION | D131: Volumetric Rate Riders | F131: 0 | G131: =IF($E121>0, $E121, $E120) -> 750 | H131: 0 | I131: 0 | J131: =IF($E121>0, $E121, $E120) -> 750 | K131: 0 | L131: 0
A132: RESIDENTIAL SERVICE CLASSIFICATION | B132: ST_A | C132: =B30 -> 1 | D132: Sub-Total A (excluding pass through) | H132: =SUM(H128:H131) -> 24.8 | K132: =SUM(K128:K131) -> 27.33 | L132: 2.53 | M132: =IF((H132)=0,"",(L132/H132)) -> 0.102016129
A133: RESIDENTIAL SERVICE CLASSIFICATION | D133: Line Losses on Cost of Power | F133: =IF((E120*12>=150000), 0, IF(E119="RPP",(F147*0.65+F148*0.17+F149*0.18),IF(E119="Non-RPP (Retailer)",F150,F151))) -> 0.08216 | G133: =IF(F133=0, 0, $E120*E122-E120) -> 25.125 | H133: =G133*F133 -> 2.06427 | I133: =IF((E120*12>=150000), 0, IF(E119="RPP",(I147*0.65+I148*0.17+I149*0.18),IF(E119="Non-RPP (Retailer)",I150,I151))) -> 0.08216 | J133: =IF(I133=0, 0, E120*E123-E120) -> 23.01348746 | K133: =J133*I133 -> 1.89078813 | L133: =K133-H133 -> -0.1734818704 | M133: =IF(ISERROR(L133/H133), "", L133/H133) -> -0.08404030018
A134: RESIDENTIAL SERVICE CLASSIFICATION | D134: Total Deferral/Variance Account Rate Riders | F134: -0.0063 | G134: =IF($E121>0, $E121, $E120) -> 750 | H134: -4.725 | I134: 0.6903 | J134: =IF($E121>0, $E121, $E120) -> 750 | K134: 517.725 | L134: 522.45 | M134: -110.5714286
A135: RESIDENTIAL SERVICE CLASSIFICATION | D135: GA Rate Riders | F135: 0 | G135: =E120 -> 750 | H135: 0 | I135: 0 | J135: =E120 -> 750 | K135: 0 | L135: 0
A136: RESIDENTIAL SERVICE CLASSIFICATION | D136: Low Voltage Service Charge | F136: 0.0001 | G136: =IF($E121>0, $E121, $E120) -> 750 | H136: 0.075 | I136: 0.0004 | J136: =IF($E121>0, $E121, $E120) -> 750 | K136: 0.3 | L136: 0.225 | M136: 3
A137: RESIDENTIAL SERVICE CLASSIFICATION | D137: Smart Meter Entity Charge (if applicable) | F137: 0.57 | G137: 1 | H137: =G137*F137 -> 0.57 | I137: 0.57 | J137: 1 | K137: =J137*I137 -> 0.57 | L137: 0 | M137: =IF(ISERROR(L137/H137), "", L137/H137) -> 0
A138: RESIDENTIAL SERVICE CLASSIFICATION | B138: ST_B | C138: =B30 -> 1 | D138: Sub-Total B - Distribution (includes Sub-Total A) | H138: =SUM(H132:H137) -> 22.78427 | K138: =SUM(K132:K137) -> 547.8157881 | L138: 525.0315181 | M138: =IF((H138)=0,"",(L138/H138)) -> 23.04359622
A139: RESIDENTIAL SERVICE CLASSIFICATION | D139: RTSR - Network | F139: 0.0059 | G139: =IF($E121>0, $E121, $E120*$E122) -> 775.125 | H139: =G139*F139 -> 4.5732375 | I139: 0.0055 | J139: =IF($E121>0, $E121, $E120*$E123) -> 773.0134875 | K139: =J139*I139 -> 4.251574181 | L139: -0.321663319 | M139: =IF(ISERROR(L139/H139), "", L139/H139) -> -0.07033601884
A140: RESIDENTIAL SERVICE CLASSIFICATION | D140: RTSR - Connection and/or Line and Transformation Connection | F140: 0.0044 | G140: =IF($E121>0, $E121, $E120*$E122) -> 775.125 | H140: =G140*F140 -> 3.41055 | I140: 0.0041 | J140: =IF($E121>0, $E121, $E120*$E123) -> 773.0134875 | K140: =J140*I140 -> 3.169355299 | L140: -0.2411947014 | M140: =IF(ISERROR(L140/H140), "", L140/H140) -> -0.07072017751
A141: RESIDENTIAL SERVICE CLASSIFICATION | B141: ST_C | C141: =B30 -> 1 | D141: Sub-Total C - Delivery (including Sub-Total B) | H141: =SUM(H138:H140) -> 30.7680575 | K141: =SUM(K138:K140) -> 555.2367176 | L141: 524.4686601 | M141: =IF((H141)=0,"",(L141/H141)) -> 17.04588143
A142: RESIDENTIAL SERVICE CLASSIFICATION | D142: Wholesale Market Service Charge (WMSC) | F142: 0.0032 | G142: =E120*E122 -> 775.125 | H142: =G142*F142 -> 2.4804 | I142: 0.0032 | J142: =E120*E123 -> 773.0134875 | K142: =J142*I142 -> 2.47364316 | L142: -0.006756840134 | M142: =IF(ISERROR(L142/H142), "", L142/H142) -> -0.002724092942
A143: RESIDENTIAL SERVICE CLASSIFICATION | D143: Rural and Remote Rate Protection (RRRP) | F143: 0.0003 | G143: =E120*E122 -> 775.125 | H143: 0.2325375 | I143: 0 | J143: =E120*E123 -> 773.0134875 | K143: 0 | L143: -0.2325375 | M143: -1
A144: RESIDENTIAL SERVICE CLASSIFICATION | D144: Standard Supply Service Charge | F144: 0.25 | G144: 1 | H144: 0.25 | I144: 0.25 | J144: 1 | K144: 0.25 | L144: 0 | M144: 0
A145: RESIDENTIAL SERVICE CLASSIFICATION | D145: Debt Retirement Charge (DRC)
A146: RESIDENTIAL SERVICE CLASSIFICATION | D146: Ontario Electricity Support Program (OESP) | G146: =E120*E123 -> 773.0134875 | H146: 0 | J146: =E120*E123 -> 773.0134875 | K146: 0 | L146: 0
A147: RESIDENTIAL SERVICE CLASSIFICATION | B147: RPP | D147: TOU - Off Peak | F147: =OffPeak -> 0.065 | G147: =IF(AND(E120*12>=150000),0.65*E120*E122,0.65*E120) -> 487.5 | H147: 31.6875 | I147: =OffPeak -> 0.065 | J147: =IF(AND(E120*12>=150000),0.65*E120*E123,0.65*E120) -> 487.5 | K147: 31.6875 | L147: 0 | M147: 0
A148: RESIDENTIAL SERVICE CLASSIFICATION | B148: RPP | D148: TOU - Mid Peak | F148: =MidPeak -> 0.095 | G148: =IF(AND(E120*12>=150000),0.17*E120*E122,0.17*E120) -> 127.5 | H148: 12.1125 | I148: =MidPeak -> 0.095 | J148: =IF(AND(E120*12>=150000),0.17*E120*E123,0.17*E120) -> 127.5 | K148: 12.1125 | L148: 0 | M148: 0
A149: RESIDENTIAL SERVICE CLASSIFICATION | B149: RPP | D149: TOU - On Peak | F149: =OnPeak -> 0.132 | G149: =IF(AND(E120*12>=150000),0.18*E120*E122,0.18*E120) -> 135 | H149: 17.82 | I149: =OnPeak -> 0.132 | J149: =IF(AND(E120*12>=150000),0.18*E120*E123,0.18*E120) -> 135 | K149: 17.82 | L149: 0 | M149: 0
A150: RESIDENTIAL SERVICE CLASSIFICATION | B150: Non-RPP (Retailer) | D150: Non-RPP Retailer Avg. Price | F150: =0.1101 -> 0.1101 | G150: =IF(AND(E120*12>=150000),E120*E122,E120) -> 750 | H150: =G150*F150 -> 82.575 | I150: =F150 -> 0.1101 | J150: =IF(AND(E120*12>=150000),E120*E123,E120) -> 750 | K150: =J150*I150 -> 82.575 | L150: 0 | M150: 0
A151: RESIDENTIAL SERVICE CLASSIFICATION | B151: Non-RPP (Other) | D151: Average IESO Wholesale Market Price | F151: =0.1101 -> 0.1101 | G151: =IF(AND(E120*12>=150000),E120*E122,E120) -> 750 | H151: =G151*F151 -> 82.575 | I151: =F151 -> 0.1101 | J151: =IF(AND(E120*12>=150000),E120*E123,E120) -> 750 | K151: =J151*I151 -> 82.575 | L151: 0 | M151: 0
A152: RESIDENTIAL SERVICE CLASSIFICATION
A153: RESIDENTIAL SERVICE CLASSIFICATION | B153: RPP | D153: Total Bill on TOU (before Taxes) | H153: =SUM(H142:H149,H141) -> 95.350995 | K153: =SUM(K142:K149,K141) -> 619.5803608 | L153: =K153-H153 -> 524.2293658 | M153: =IF((H153)=0,"",(L153/H153)) -> 5.49789088
A154: RESIDENTIAL SERVICE CLASSIFICATION | B154: RPP | D154: HST | F154: 0.13 | H154: =H153*F154 -> 12.39562935 | I154: 0.13 | K154: =K153*I154 -> 80.5454469 | L154: =K154-H154 -> 68.14981755 | M154: =IF((H154)=0,"",(L154/H154)) -> 5.49789088
A155: 0 | B155: RPP | D155: 8% Rebate | F155: 0.08 | H155: =H153*F155*(-1) -> -7.6280796 | I155: 0.08 | K155: =K153*I155*(-1) -> -49.56642886 | L155: =K155-H155 -> -41.93834926
A156: =A154 -> RESIDENTIAL SERVICE CLASSIFICATION | B156: RPP_TOTAL | C156: =B30 -> 1 | D156: Total Bill on TOU | H156: =H153+H154+H155 -> 100.1185448 | K156: =K153+K154+K155 -> 650.5593788 | L156: =K156-H156 -> 550.4408341 | M156: =IF((H156)=0,"",(L156/H156)) -> 5.49789088
A157: RESIDENTIAL SERVICE CLASSIFICATION | B157: RPP
A158: RESIDENTIAL SERVICE CLASSIFICATION | B158: Non-RPP (Retailer) | D158: Total Bill on Non-RPP Avg. Price | H158: =SUM(H150,H142:H146,H141) -> 116.305995 | K158: =SUM(K150,K142:K146,K141) -> 640.5353608 | L158: =K158-H158 -> 524.2293658 | M158: =IF((H158)=0,"",(L158/H158)) -> 4.507328842
A159: RESIDENTIAL SERVICE CLASSIFICATION | B159: Non-RPP (Retailer) | D159: HST | F159: 0.13 | H159: =H158*F159 -> 15.11977935 | I159: 0.13 | K159: =K158*I159 -> 83.2695969 | L159: =K159-H159 -> 68.14981755 | M159: =IF((H159)=0,"",(L159/H159)) -> 4.507328842
A160: 0 | B160: Non-RPP (Retailer) | D160: 8% Rebate | F160: 0.08 | H160: =H158*F160*(-1) -> -9.3044796 | I160: 0.08 | K160: =K158*I160*(-1) -> -51.24282886
A161: =A159 -> RESIDENTIAL SERVICE CLASSIFICATION | B161: Non-RPP (Retailer)_TOTAL | D161: Total Bill on Non-RPP Avg. Price | H161: =H158+H159+H160 -> 122.1212948 | K161: =K158+K159+K160 -> 672.5621288 | L161: =K161-H161 -> 550.4408341 | M161: =IF((H161)=0,"",(L161/H161)) -> 4.507328842
A162: RESIDENTIAL SERVICE CLASSIFICATION | B162: Non-RPP (Retailer)
A163: RESIDENTIAL SERVICE CLASSIFICATION | B163: Non-RPP (Other) | D163: Total Bill on Average IESO Wholesale Market Price | H163: =SUM(H151,H142:H146,H141) -> 116.305995 | K163: =SUM(K151,K142:K146,K141) -> 640.5353608 | L163: =K163-H163 -> 524.2293658 | M163: =IF((H163)=0,"",(L163/H163)) -> 4.507328842
A164: RESIDENTIAL SERVICE CLASSIFICATION | B164: Non-RPP (Other) | D164: HST | F164: 0.13 | H164: =H163*F164 -> 15.11977935 | I164: 0.13 | K164: =K163*I164 -> 83.2695969 | L164: =K164-H164 -> 68.14981755 | M164: =IF((H164)=0,"",(L164/H164)) -> 4.507328842
A165: 0 | B165: Non-RPP (Other) | D165: 8% Rebate | F165: 0.08 | H165: =H163*F165*(-1) -> -9.3044796 | I165: 0.08 | K165: =K163*I165*(-1) -> -51.24282886
A166: =A164 -> RESIDENTIAL SERVICE CLASSIFICATION | B166: Non-RPP (Other)_TOTAL | D166: Total Bill on Average IESO Wholesale Market Price | H166: =H163+H164+H165 -> 122.1212948 | K166: =K163+K164+K165 -> 672.5621288 | L166: =K166-H166 -> 550.4408341 | M166: =IF((H166)=0,"",(L166/H166)) -> 4.507328842
A167: RESIDENTIAL SERVICE CLASSIFICATION | B167: Non-RPP (Other)
D172: Customer Class: | E172: =D31 -> GENERAL SERVICE LESS THAN 50 kW SERVICE CLASSIFICATION | K172: =IF(N31="DEMAND - INTERVAL","RTSR - INTERVAL METERED","") ->  | T172: X
D173: RPP / Non-RPP: | E173: =H31 -> RPP
D174: Consumption | E174: =K31 -> 2000 | F174: kWh
D175: Demand | E175: =L31 -> 0 | F175: kW
D176: Current Loss Factor | E176: =I31 -> 1.0335
D177: Proposed/Approved Loss Factor | E177: =J31 -> 1.03068465
F179: Current OEB-Approved | I179: Proposed | L179: Impact
F180: Rate | G180: Volume | H180: Charge | I180: Rate | J180: Volume | K180: Charge | L180: $ Change | M180: % Change
F181: ($) | H181: ($) | I181: ($) | K181: ($)
A182: =$E172 -> GENERAL SERVICE LESS THAN 50 kW SERVICE CLASSIFICATION | D182: Monthly Service Charge | F182: 13.74 | G182: 1 | H182: =G182*F182 -> 13.74 | I182: 15.18 | J182: =G182 -> 1 | K182: =J182*I182 -> 15.18 | L182: =K182-H182 -> 1.44 | M182: =IF(ISERROR(L182/H182), "", L182/H182) -> 0.1048034934
A183: =A182 -> GENERAL SERVICE LESS THAN 50 kW SERVICE CLASSIFICATION | D183: Distribution Volumetric Rate | F183: 0.0147 | G183: =IF($E175>0, $E175, $E174) -> 2000 | H183: =G183*F183 -> 29.4 | I183: 0.0162 | J183: =IF($E175>0, $E175, $E174) -> 2000 | K183: =J183*I183 -> 32.4 | L183: 3 | M183: =IF(ISERROR(L183/H183), "", L183/H183) -> 0.1020408163
A184: =A183 -> GENERAL SERVICE LESS THAN 50 kW SERVICE CLASSIFICATION | D184: Fixed Rate Riders | F184: 0 | G184: 1 | H184: 0 | I184: 0 | J184: =G184 -> 1 | K184: =J184*I184 -> 0 | L184: 0
A185: GENERAL SERVICE LESS THAN 50 kW SERVICE CLASSIFICATION | D185: Volumetric Rate Riders | F185: 0 | G185: =IF($E175>0, $E175, $E174) -> 2000 | H185: 0 | I185: 0 | J185: =IF($E175>0, $E175, $E174) -> 2000 | K185: 0 | L185: 0
A186: GENERAL SERVICE LESS THAN 50 kW SERVICE CLASSIFICATION | B186: ST_A | C186: =B31 -> 2 | D186: Sub-Total A (excluding pass through) | H186: =SUM(H182:H185) -> 43.14 | K186: =SUM(K182:K185) -> 47.58 | L186: 4.44 | M186: =IF((H186)=0,"",(L186/H186)) -> 0.1029207232
A187: GENERAL SERVICE LESS THAN 50 kW SERVICE CLASSIFICATION | D187: Line Losses on Cost of Power | F187: =IF((E174*12>=150000), 0, IF(E173="RPP",(F201*0.65+F202*0.17+F203*0.18),IF(E173="Non-RPP (Retailer)",F204,F205))) -> 0.08216 | G187: =IF(F187=0, 0, $E174*E176-E174) -> 67 | H187: =G187*F187 -> 5.50472 | I187: =IF((E174*12>=150000), 0, IF(E173="RPP",(I201*0.65+I202*0.17+I203*0.18),IF(E173="Non-RPP (Retailer)",I204,I205))) -> 0.08216 | J187: =IF(I187=0, 0, E174*E177-E174) -> 61.36929989 | K187: =J187*I187 -> 5.042101679 | L187: =K187-H187 -> -0.4626183212 | M187: =IF(ISERROR(L187/H187), "", L187/H187) -> -0.08404030018
A188: GENERAL SERVICE LESS THAN 50 kW SERVICE CLASSIFICATION | D188: Total Deferral/Variance Account Rate Riders | F188: -0.0062 | G188: =IF($E175>0, $E175, $E174) -> 2000 | H188: -12.4 | I188: -0.0074 | J188: =IF($E175>0, $E175, $E174) -> 2000 | K188: -14.8 | L188: -2.4 | M188: 0.1935483871
A189: GENERAL SERVICE LESS THAN 50 kW SERVICE CLASSIFICATION | D189: GA Rate Riders | F189: 0 | G189: =E174 -> 2000 | H189: 0 | I189: 0 | J189: =E174 -> 2000 | K189: 0 | L189: 0
A190: GENERAL SERVICE LESS THAN 50 kW SERVICE CLASSIFICATION | D190: Low Voltage Service Charge | F190: 0.0001 | G190: =IF($E175>0, $E175, $E174) -> 2000 | H190: 0.2 | I190: 0.0004 | J190: =IF($E175>0, $E175, $E174) -> 2000 | K190: 0.8 | L190: 0.6 | M190: 3
A191: GENERAL SERVICE LESS THAN 50 kW SERVICE CLASSIFICATION | D191: Smart Meter Entity Charge (if applicable) | F191: 0.57 | G191: 1 | H191: =G191*F191 -> 0.57 | I191: 0.57 | J191: 1 | K191: =J191*I191 -> 0.57 | L191: 0 | M191: =IF(ISERROR(L191/H191), "", L191/H191) -> 0
A192: GENERAL SERVICE LESS THAN 50 kW SERVICE CLASSIFICATION | B192: ST_B | C192: =B31 -> 2 | D192: Sub-Total B - Distribution (includes Sub-Total A) | H192: =SUM(H186:H191) -> 37.01472 | K192: =SUM(K186:K191) -> 39.19210168 | L192: 2.177381679 | M192: =IF((H192)=0,"",(L192/H192)) -> 0.05882475077
A193: GENERAL SERVICE LESS THAN 50 kW SERVICE CLASSIFICATION | D193: RTSR - Network | F193: 0.0052 | G193: =IF($E175>0, $E175, $E174*$E176) -> 2067 | H193: =G193*F193 -> 10.7484 | I193: 0 | J193: =IF($E175>0, $E175, $E174*$E177) -> 2061.3693 | K193: =J193*I193 -> 0 | L193: -10.7484 | M193: =IF(ISERROR(L193/H193), "", L193/H193) -> -1
A194: GENERAL SERVICE LESS THAN 50 kW SERVICE CLASSIFICATION | D194: RTSR - Connection and/or Line and Transformation Connection | F194: 0.0041 | G194: =IF($E175>0, $E175, $E174*$E176) -> 2067 | H194: =G194*F194 -> 8.4747 | I194: 0.0038 | J194: =IF($E175>0, $E175, $E174*$E177) -> 2061.3693 | K194: =J194*I194 -> 7.83320334 | L194: -0.6414966604 | M194: =IF(ISERROR(L194/H194), "", L194/H194) -> -0.07569550078
A195: GENERAL SERVICE LESS THAN 50 kW SERVICE CLASSIFICATION | B195: ST_C | C195: =B31 -> 2 | D195: Sub-Total C - Delivery (including Sub-Total B) | H195: =SUM(H192:H194) -> 56.23782 | K195: =SUM(K192:K194) -> 47.02530502 | L195: -9.212514982 | M195: =IF((H195)=0,"",(L195/H195)) -> -0.1638135152
A196: GENERAL SERVICE LESS THAN 50 kW SERVICE CLASSIFICATION | D196: Wholesale Market Service Charge (WMSC) | F196: 0.0032 | G196: =E174*E176 -> 2067 | H196: =G196*F196 -> 6.6144 | I196: 0.0032 | J196: =E174*E177 -> 2061.3693 | K196: =J196*I196 -> 6.59638176 | L196: -0.01801824036 | M196: =IF(ISERROR(L196/H196), "", L196/H196) -> -0.002724092942
A197: GENERAL SERVICE LESS THAN 50 kW SERVICE CLASSIFICATION | D197: Rural and Remote Rate Protection (RRRP) | F197: 0.0003 | G197: =E174*E176 -> 2067 | H197: 0.6201 | I197: 0 | J197: =E174*E177 -> 2061.3693 | K197: 0 | L197: -0.6201 | M197: -1
A198: GENERAL SERVICE LESS THAN 50 kW SERVICE CLASSIFICATION | D198: Standard Supply Service Charge | F198: 0.25 | G198: 1 | H198: 0.25 | I198: 0.25 | J198: 1 | K198: 0.25 | L198: 0 | M198: 0
A199: GENERAL SERVICE LESS THAN 50 kW SERVICE CLASSIFICATION | D199: Debt Retirement Charge (DRC) | F199: =IF('1. Information Sheet'!F196 = DATE(2016, 5, 1), (IF(ISERROR(FIND("RESIDENTIAL", UPPER(E172))),DRC, 0)), DRC) -> 0.007 | G199: =E174 -> 2000 | H199: 14 | I199: =IF(ISERROR(FIND("RESIDENTIAL", UPPER(E172))), DRC, 0) -> 0.007 | J199: =E174 -> 2000 | K199: 14 | L199: 0 | M199: 0
A200: GENERAL SERVICE LESS THAN 50 kW SERVICE CLASSIFICATION | D200: Ontario Electricity Support Program (OESP) | G200: =E174*E177 -> 2061.3693 | H200: 0 | J200: =E174*E177 -> 2061.3693 | K200: 0 | L200: 0
A201: GENERAL SERVICE LESS THAN 50 kW SERVICE CLASSIFICATION | B201: RPP | D201: TOU - Off Peak | F201: =OffPeak -> 0.065 | G201: =IF(AND(E174*12>=150000),0.65*E174*E176,0.65*E174) -> 1300 | H201: 84.5 | I201: =OffPeak -> 0.065 | J201: =IF(AND(E174*12>=150000),0.65*E174*E177,0.65*E174) -> 1300 | K201: 84.5 | L201: 0 | M201: 0
A202: GENERAL SERVICE LESS THAN 50 kW SERVICE CLASSIFICATION | B202: RPP | D202: TOU - Mid Peak | F202: =MidPeak -> 0.095 | G202: =IF(AND(E174*12>=150000),0.17*E174*E176,0.17*E174) -> 340 | H202: 32.3 | I202: =MidPeak -> 0.095 | J202: =IF(AND(E174*12>=150000),0.17*E174*E177,0.17*E174) -> 340 | K202: 32.3 | L202: 0 | M202: 0
A203: GENERAL SERVICE LESS THAN 50 kW SERVICE CLASSIFICATION | B203: RPP | D203: TOU - On Peak | F203: =OnPeak -> 0.132 | G203: =IF(AND(E174*12>=150000),0.18*E174*E176,0.18*E174) -> 360 | H203: 47.52 | I203: =OnPeak -> 0.132 | J203: =IF(AND(E174*12>=150000),0.18*E174*E177,0.18*E174) -> 360 | K203: 47.52 | L203: 0 | M203: 0
A204: GENERAL SERVICE LESS THAN 50 kW SERVICE CLASSIFICATION | B204: Non-RPP (Retailer) | D204: Non-RPP Retailer Avg. Price | F204: =0.1101 -> 0.1101 | G204: =IF(AND(E174*12>=150000),E174*E176,E174) -> 2000 | H204: =G204*F204 -> 220.2 | I204: =F204 -> 0.1101 | J204: =IF(AND(E174*12>=150000),E174*E177,E174) -> 2000 | K204: =J204*I204 -> 220.2 | L204: 0 | M204: 0
A205: GENERAL SERVICE LESS THAN 50 kW SERVICE CLASSIFICATION | B205: Non-RPP (Other) | D205: Average IESO Wholesale Market Price | F205: =0.1101 -> 0.1101 | G205: =IF(AND(E174*12>=150000),E174*E176,E174) -> 2000 | H205: =G205*F205 -> 220.2 | I205: =F205 -> 0.1101 | J205: =IF(AND(E174*12>=150000),E174*E177,E174) -> 2000 | K205: =J205*I205 -> 220.2 | L205: 0 | M205: 0
A206: GENERAL SERVICE LESS THAN 50 kW SERVICE CLASSIFICATION
A207: GENERAL SERVICE LESS THAN 50 kW SERVICE CLASSIFICATION | B207: RPP | D207: Total Bill on TOU (before Taxes) | H207: =SUM(H196:H203,H195) -> 242.04232 | K207: =SUM(K196:K203,K195) -> 232.1916868 | L207: =K207-H207 -> -9.850633222 | M207: =IF((H207)=0,"",(L207/H207)) -> -0.04069797886
A208: GENERAL SERVICE LESS THAN 50 kW SERVICE CLASSIFICATION | B208: RPP | D208: HST | F208: 0.13 | H208: =H207*F208 -> 31.4655016 | I208: 0.13 | K208: =K207*I208 -> 30.18491928 | L208: =K208-H208 -> -1.280582319 | M208: =IF((H208)=0,"",(L208/H208)) -> -0.04069797886
A209: 0 | B209: RPP | D209: 8% Rebate | F209: 0.08 | H209: =H207*F209*(-1) -> -19.3633856 | I209: 0.08 | K209: =K207*I209*(-1) -> -18.57533494 | L209: =K209-H209 -> 0.7880506578
A210: =A208 -> GENERAL SERVICE LESS THAN 50 kW SERVICE CLASSIFICATION | B210: RPP_TOTAL | C210: =B31 -> 2 | D210: Total Bill on TOU | H210: =H207+H208+H209 -> 254.144436 | K210: =K207+K208+K209 -> 243.8012711 | L210: =K210-H210 -> -10.34316488 | M210: =IF((H210)=0,"",(L210/H210)) -> -0.04069797886
A211: GENERAL SERVICE LESS THAN 50 kW SERVICE CLASSIFICATION | B211: RPP
A212: GENERAL SERVICE LESS THAN 50 kW SERVICE CLASSIFICATION | B212: Non-RPP (Retailer) | D212: Total Bill on Non-RPP Avg. Price | H212: =SUM(H204,H196:H200,H195) -> 297.92232 | K212: =SUM(K204,K196:K200,K195) -> 288.0716868 | L212: =K212-H212 -> -9.850633222 | M212: =IF((H212)=0,"",(L212/H212)) -> -0.03306443513
A213: GENERAL SERVICE LESS THAN 50 kW SERVICE CLASSIFICATION | B213: Non-RPP (Retailer) | D213: HST | F213: 0.13 | H213: =H212*F213 -> 38.7299016 | I213: 0.13 | K213: =K212*I213 -> 37.44931928 | L213: =K213-H213 -> -1.280582319 | M213: =IF((H213)=0,"",(L213/H213)) -> -0.03306443513
A214: 0 | B214: Non-RPP (Retailer) | D214: 8% Rebate | F214: 0.08 | H214: =H212*F214*(-1) -> -23.8337856 | I214: 0.08 | K214: =K212*I214*(-1) -> -23.04573494
A215: =A213 -> GENERAL SERVICE LESS THAN 50 kW SERVICE CLASSIFICATION | B215: Non-RPP (Retailer)_TOTAL | D215: Total Bill on Non-RPP Avg. Price | H215: =H212+H213+H214 -> 312.818436 | K215: =K212+K213+K214 -> 302.4752711 | L215: =K215-H215 -> -10.34316488 | M215: =IF((H215)=0,"",(L215/H215)) -> -0.03306443513
A216: GENERAL SERVICE LESS THAN 50 kW SERVICE CLASSIFICATION | B216: Non-RPP (Retailer)
A217: GENERAL SERVICE LESS THAN 50 kW SERVICE CLASSIFICATION | B217: Non-RPP (Other) | D217: Total Bill on Average IESO Wholesale Market Price | H217: =SUM(H205,H196:H200,H195) -> 297.92232 | K217: =SUM(K205,K196:K200,K195) -> 288.0716868 | L217: =K217-H217 -> -9.850633222 | M217: =IF((H217)=0,"",(L217/H217)) -> -0.03306443513
A218: GENERAL SERVICE LESS THAN 50 kW SERVICE CLASSIFICATION | B218: Non-RPP (Other) | D218: HST | F218: 0.13 | H218: =H217*F218 -> 38.7299016 | I218: 0.13 | K218: =K217*I218 -> 37.44931928 | L218: =K218-H218 -> -1.280582319 | M218: =IF((H218)=0,"",(L218/H218)) -> -0.03306443513
A219: 0 | B219: Non-RPP (Other) | D219: 8% Rebate | F219: 0.08 | H219: =H217*F219*(-1) -> -23.8337856 | I219: 0.08 | K219: =K217*I219*(-1) -> -23.04573494
A220: =A218 -> GENERAL SERVICE LESS THAN 50 kW SERVICE CLASSIFICATION | B220: Non-RPP (Other)_TOTAL | D220: Total Bill on Average IESO Wholesale Market Price | H220: =H217+H218+H219 -> 312.818436 | K220: =K217+K218+K219 -> 302.4752711 | L220: =K220-H220 -> -10.34316488 | M220: =IF((H220)=0,"",(L220/H220)) -> -0.03306443513
A221: GENERAL SERVICE LESS THAN 50 kW SERVICE CLASSIFICATION | B221: Non-RPP (Other)
D226: Customer Class: | E226: =D32 -> GENERAL SERVICE 50 TO 4,999 KW SERVICE CLASSIFICATION | K226: =IF(N32="DEMAND - INTERVAL","RTSR - INTERVAL METERED","") ->  | T226: X
D227: RPP / Non-RPP: | E227: =H32 -> Non-RPP (Other)
D228: Consumption | E228: =K32 -> 20000 | F228: kWh
D229: Demand | E229: =L32 -> 60 | F229: kW
D230: Current Loss Factor | E230: =I32 -> 1.0335
D231: Proposed/Approved Loss Factor | E231: =J32 -> 1.03068465
F233: Current OEB-Approved | I233: Proposed | L233: Impact
F234: Rate | G234: Volume | H234: Charge | I234: Rate | J234: Volume | K234: Charge | L234: $ Change | M234: % Change
F235: ($) | H235: ($) | I235: ($) | K235: ($)
A236: =$E226 -> GENERAL SERVICE 50 TO 4,999 KW SERVICE CLASSIFICATION | D236: Monthly Service Charge | F236: 0 | G236: 1 | H236: =G236*F236 -> 0 | I236: 0 | J236: =G236 -> 1 | K236: =J236*I236 -> 0 | L236: =K236-H236 -> 0 | M236: =IF(ISERROR(L236/H236), "", L236/H236) -> 
A237: =A236 -> GENERAL SERVICE 50 TO 4,999 KW SERVICE CLASSIFICATION | D237: Distribution Volumetric Rate | F237: 0 | G237: =IF($E229>0, $E229, $E228) -> 60 | H237: =G237*F237 -> 0 | I237: 0 | J237: =IF($E229>0, $E229, $E228) -> 60 | K237: =J237*I237 -> 0 | L237: 0 | M237: =IF(ISERROR(L237/H237), "", L237/H237) -> 
A238: =A237 -> GENERAL SERVICE 50 TO 4,999 KW SERVICE CLASSIFICATION | D238: Fixed Rate Riders | F238: 0 | G238: 1 | H238: 0 | I238: 0 | J238: =G238 -> 1 | K238: =J238*I238 -> 0 | L238: 0
... 135 more rows

Sheet 20. HIDDEN (hidden)
D2: Customer Class: | O2: =FIND("RESIDENTIAL", E2) -> 
D3: RPP / Non-RPP:
D4: Consumption | F4: kWh
D5: Demand | F5: kW
D6: Current Loss Factor
D7: Proposed/Approved Loss Factor
F9: Current OEB-Approved | I9: Proposed | L9: Impact
F10: Rate | G10: Volume | H10: Charge | I10: Rate | J10: Volume | K10: Charge | L10: $ Change | M10: % Change
F11: ($) | H11: ($) | I11: ($) | K11: ($)
A12: =$E2 -> 0 | D12: Monthly Service Charge | G12: 1 | H12: =G12*F12 -> 0 | J12: =G12 -> 1 | K12: =J12*I12 -> 0 | L12: =K12-H12 -> 0 | M12: =IF(ISERROR(L12/H12), "", L12/H12) -> 
A13: =A12 -> 0 | D13: Distribution Volumetric Rate | G13: =IF($E5>0, $E5, $E4) -> 0 | H13: =G13*F13 -> 0 | J13: =IF($E5>0, $E5, $E4) -> 0 | K13: =J13*I13 -> 0 | L13: 0 | M13: =IF(ISERROR(L13/H13), "", L13/H13) -> 
A14: =A13 -> 0 | D14: Fixed Rate Riders | G14: 1 | H14: 0 | J14: =G14 -> 1 | K14: =J14*I14 -> 0 | L14: 0
A15: 0 | D15: Volumetric Rate Riders | G15: =IF($E5>0, $E5, $E4) -> 0 | H15: 0 | J15: =IF($E5>0, $E5, $E4) -> 0 | K15: 0 | L15: 0
A16: 0 | B16: ST_A | D16: Sub-Total A (excluding pass through) | H16: =SUM(H12:H15) -> 0 | K16: =SUM(K12:K15) -> 0 | L16: 0 | M16: =IF((H16)=0,"",(L16/H16)) -> 
A17: 0 | D17: Line Losses on Cost of Power | F17: =IF((E4*12>=150000), 0, IF(E3="RPP",(F31*0.65+F32*0.17+F33*0.18),IF(E3="Non-RPP (Retailer)",F34,F35))) -> 0.1101 | G17: =IF(F17=0, 0, $E4*E6-E4) -> 0 | H17: =G17*F17 -> 0 | I17: =IF((E4*12>=150000), 0, IF(E3="RPP",(I31*0.65+I32*0.17+I33*0.18),IF(E3="Non-RPP (Retailer)",I34,I35))) -> 0.1101 | J17: =IF(I17=0, 0, E4*E7-E4) -> 0 | K17: =J17*I17 -> 0 | L17: =K17-H17 -> 0 | M17: =IF(ISERROR(L17/H17), "", L17/H17) -> 
A18: 0 | D18: Total Deferral/Variance Account Rate Riders | G18: =IF($E5>0, $E5, $E4) -> 0 | H18: 0 | J18: =IF($E5>0, $E5, $E4) -> 0 | K18: 0 | L18: 0
A19: 0 | D19: GA Rate Riders | G19: =E4 -> 0 | H19: 0 | J19: =E4 -> 0 | K19: 0 | L19: 0
A20: 0 | D20: Low Voltage Service Charge | G20: =IF($E5>0, $E5, $E4) -> 0 | H20: 0 | J20: =IF($E5>0, $E5, $E4) -> 0 | K20: 0 | L20: 0
A21: 0 | D21: Smart Meter Entity Charge (if applicable) | F21: =IF(OR(ISNUMBER(SEARCH("RESIDENTIAL", E2))=TRUE, ISNUMBER(SEARCH("GENERAL SERVICE LESS THAN 50", E2))=TRUE), 0.79, 0) -> 0 | G21: 1 | H21: =G21*F21 -> 0 | I21: =IF(OR(ISNUMBER(SEARCH("RESIDENTIAL", E2))=TRUE, ISNUMBER(SEARCH("GENERAL SERVICE LESS THAN 50", E2))=TRUE), 0.79, 0) -> 0 | J21: 1 | K21: =J21*I21 -> 0 | L21: =K21-H21 -> 0 | M21: =IF(ISERROR(L21/H21), "", L21/H21) -> 
A22: 0 | B22: ST_B | D22: Sub-Total B - Distribution (includes Sub-Total A) | H22: =SUM(H16:H21) -> 0 | K22: =SUM(K16:K21) -> 0 | L22: 0 | M22: =IF((H22)=0,"",(L22/H22)) -> 
A23: 0 | D23: RTSR - Network | G23: =IF($E5>0, $E5, $E4*$E6) -> 0 | H23: =G23*F23 -> 0 | J23: =IF($E5>0, $E5, $E4*$E7) -> 0 | K23: =J23*I23 -> 0 | L23: 0 | M23: =IF(ISERROR(L23/H23), "", L23/H23) -> 
A24: 0 | D24: RTSR - Connection and/or Line and Transformation Connection | G24: =IF($E5>0, $E5, $E4*$E6) -> 0 | H24: =G24*F24 -> 0 | J24: =IF($E5>0, $E5, $E4*$E7) -> 0 | K24: =J24*I24 -> 0 | L24: 0 | M24: =IF(ISERROR(L24/H24), "", L24/H24) -> 
A25: 0 | B25: ST_C | D25: Sub-Total C - Delivery (including Sub-Total B) | H25: =SUM(H22:H24) -> 0 | K25: =SUM(K22:K24) -> 0 | L25: 0 | M25: =IF((H25)=0,"",(L25/H25)) -> 
A26: 0 | D26: Wholesale Market Service Charge (WMSC) | G26: =E4*E6 -> 0 | H26: =G26*F26 -> 0 | I26: ='3. Regulatory Charges'!D14 -> 0.0032 | J26: =E4*E7 -> 0 | K26: =J26*I26 -> 0 | L26: 0 | M26: =IF(ISERROR(L26/H26), "", L26/H26) -> 
A27: 0 | D27: Rural and Remote Rate Protection (RRRP) | G27: =E4*E6 -> 0 | H27: 0 | I27: ='3. Regulatory Charges'!D16 -> 0.0003 | J27: =E4*E7 -> 0 | K27: 0 | L27: 0
A28: 0 | D28: Standard Supply Service Charge | F28: 0.25 | G28: 1 | H28: 0.25 | I28: ='3. Regulatory Charges'!D17 -> 0.25 | J28: 1 | K28: 0.25 | L28: 0 | M28: 0
A29: 0 | D29: Debt Retirement Charge (DRC) | F29: =IF('1. Information Sheet'!F26 = DATE(2016, 5, 1), (IF(ISERROR(FIND("RESIDENTIAL", UPPER(E2))),DRC, 0)), DRC) -> 0.007 | G29: =E4 -> 0 | H29: 0 | I29: =IF(ISERROR(FIND("RESIDENTIAL", UPPER(E2))), DRC, 0) -> 0.007 | J29: =E4 -> 0 | K29: 0 | L29: =K29-H29 -> 0
A30: 0 | D30: Ontario Electricity Support Program (OESP) | G30: =E4*E7 -> 0 | H30: 0 | J30: =E4*E7 -> 0 | K30: 0 | L30: 0
A31: 0 | B31: RPP | D31: TOU - Off Peak | F31: =OffPeak -> 0.065 | G31: =IF(AND(E4*12>=150000),0.65*E4*E6,0.65*E4) -> 0 | H31: 0 | I31: =OffPeak -> 0.065 | J31: =IF(AND(E4*12>=150000),0.65*E4*E7,0.65*E4) -> 0 | K31: 0 | L31: 0
A32: 0 | B32: RPP | D32: TOU - Mid Peak | F32: =MidPeak -> 0.095 | G32: =IF(AND(E4*12>=150000),0.17*E4*E6,0.17*E4) -> 0 | H32: 0 | I32: =MidPeak -> 0.095 | J32: =IF(AND(E4*12>=150000),0.17*E4*E7,0.17*E4) -> 0 | K32: 0 | L32: 0
A33: 0 | B33: RPP | D33: TOU - On Peak | F33: =OnPeak -> 0.132 | G33: =IF(AND(E4*12>=150000),0.18*E4*E6,0.18*E4) -> 0 | H33: 0 | I33: =OnPeak -> 0.132 | J33: =IF(AND(E4*12>=150000),0.18*E4*E7,0.18*E4) -> 0 | K33: 0 | L33: 0
A34: 0 | B34: Non-RPP (Retailer) | D34: Non-RPP Retailer Avg. Price | F34: =0.1101 -> 0.1101 | G34: =IF(AND(E4*12>=150000),E4*E6,E4) -> 0 | H34: =G34*F34 -> 0 | I34: =F34 -> 0.1101 | J34: =IF(AND(E4*12>=150000),E4*E7,E4) -> 0 | K34: =J34*I34 -> 0 | L34: 0
A35: 0 | B35: Non-RPP (Other) | D35: Average IESO Wholesale Market Price | F35: =0.1101 -> 0.1101 | G35: =IF(AND(E4*12>=150000),E4*E6,E4) -> 0 | H35: =G35*F35 -> 0 | I35: =F35 -> 0.1101 | J35: =IF(AND(E4*12>=150000),E4*E7,E4) -> 0 | K35: =J35*I35 -> 0 | L35: 0
A36: 0
A37: 0 | B37: RPP | D37: Total Bill on TOU (before Taxes) | H37: =SUM(H26:H33,H25) -> 0.25 | K37: =SUM(K26:K33,K25) -> 0.25 | L37: =K37-H37 -> 0 | M37: =IF((H37)=0,"",(L37/H37)) -> 0
A38: 0 | B38: RPP | D38: HST | F38: 0.13 | H38: =H37*F38 -> 0.0325 | I38: 0.13 | K38: =K37*I38 -> 0.0325 | L38: =K38-H38 -> 0 | M38: =IF((H38)=0,"",(L38/H38)) -> 0
A39: 0 | B39: RPP | D39: 8% Rebate | F39: 0.08 | H39: =H37*F39*(-1) -> -0.02 | I39: 0.08 | K39: =K37*I39*(-1) -> -0.02 | L39: =K39-H39 -> 0
A40: =A38 -> 0 | B40: RPP_TOTAL | D40: Total Bill on TOU | H40: =H37+H38+H39 -> 0.2625 | K40: =K37+K38+K39 -> 0.2625 | L40: =K40-H40 -> 0 | M40: =IF((H40)=0,"",(L40/H40)) -> 0
A41: 0 | B41: RPP
A42: 0 | B42: Non-RPP (Retailer) | D42: Total Bill on Non-RPP Avg. Price | H42: =SUM(H34,H26:H30,H25) -> 0.25 | K42: =SUM(K34,K26:K30,K25) -> 0.25 | L42: =K42-H42 -> 0 | M42: =IF((H42)=0,"",(L42/H42)) -> 0
A43: 0 | B43: Non-RPP (Retailer) | D43: HST | F43: 0.13 | H43: =H42*F43 -> 0.0325 | I43: 0.13 | K43: =K42*I43 -> 0.0325 | L43: =K43-H43 -> 0 | M43: =IF((H43)=0,"",(L43/H43)) -> 0
A44: 0 | B44: Non-RPP (Retailer) | D44: 8% Rebate | F44: 0.08 | H44: =H42*F44*(-1) -> -0.02 | I44: 0.08 | K44: =K42*I44*(-1) -> -0.02
A45: =A43 -> 0 | B45: Non-RPP (Retailer)_TOTAL | D45: Total Bill on Non-RPP Avg. Price | H45: =H42+H43+H44 -> 0.2625 | K45: =K42+K43+K44 -> 0.2625 | L45: =K45-H45 -> 0 | M45: =IF((H45)=0,"",(L45/H45)) -> 0
A46: 0 | B46: Non-RPP (Retailer)
A47: 0 | B47: Non-RPP (Other) | D47: Total Bill on Average IESO Wholesale Market Price | H47: =SUM(H35,H26:H30,H25) -> 0.25 | K47: =SUM(K35,K26:K30,K25) -> 0.25 | L47: =K47-H47 -> 0 | M47: =IF((H47)=0,"",(L47/H47)) -> 0
A48: 0 | B48: Non-RPP (Other) | D48: HST | F48: 0.13 | H48: =H47*F48 -> 0.0325 | I48: 0.13 | K48: =K47*I48 -> 0.0325 | L48: =K48-H48 -> 0 | M48: =IF((H48)=0,"",(L48/H48)) -> 0
A49: 0 | B49: Non-RPP (Other) | D49: 8% Rebate | F49: 0.08 | H49: =H47*F49*(-1) -> -0.02 | I49: 0.08 | K49: =K47*I49*(-1) -> -0.02
A50: =A48 -> 0 | B50: Non-RPP (Other)_TOTAL | D50: Total Bill on Average IESO Wholesale Market Price | H50: =H47+H48+H49 -> 0.2625 | K50: =K47+K48+K49 -> 0.2625 | L50: =K50-H50 -> 0 | M50: =IF((H50)=0,"",(L50/H50)) -> 0
A51: 0 | B51: Non-RPP (Other)

Sheet Database (hidden)
A1: A | B1: B | C1: C | D1: D | E1: E | F1: F | G1: G | H1: H | I1: N | J1: O | K1: P | L1: Q | M1: R | N1: S | O1: T | Q1: V | R1: W
A2: Energy+ Inc. | B2: Energy+ Inc.-For Former Brant County Power Service Area | C2: EFF_DATE | E2: Energy+ Inc. | I2: X | J2: Energy+ Inc.-For Former Brant County Power Service Area_Start | K2: Energy+ Inc. | M2: 7 | V2: 12
A3: Energy+ Inc. | B3: Energy+ Inc.-For Former Brant County Power Service Area | C3: IMP_DATE | E3: For Former Brant County Power Service Area | V3: 42
A4: Energy+ Inc. | B4: Energy+ Inc.-For Former Brant County Power Service Area | C4: EBNUMBER | E4: TARIFF OF RATES AND CHARGES | V4: 27
A5: Energy+ Inc. | B5: Energy+ Inc.-For Former Brant County Power Service Area | C5: NUMBER OF RATE CLASSES | E5: Effective and Implementation Date May 1, 2018 | S5: 2018-05-01 | V5: 45
A6: Energy+ Inc. | B6: Energy+ Inc.-For Former Brant County Power Service Area | E6: This schedule supersedes and replaces all previously | V6: 52
A7: Energy+ Inc. | B7: Energy+ Inc.-For Former Brant County Power Service Area | E7: approved schedules of Rates, Charges and Loss Factors | V7: 53
A8: Energy+ Inc. | B8: Energy+ Inc.-For Former Brant County Power Service Area | E8: EB-2017-0030 | K8: EB-2017-0030 | V8: 12
A9: Energy+ Inc. | B9: Energy+ Inc.-For Former Brant County Power Service Area | E9: RESIDENTIAL SERVICE CLASSIFICATION | K9: 1_RESIDENTIAL SERVICE CLASSIFICATION | V9: 34
A10: Energy+ Inc. | B10: Energy+ Inc.-For Former Brant County Power Service Area | E10: This classification applies to an account taking electricity at 750 volts or less where the electricity is used exclusively in a separate metered living accommodation. Customers shall be residing in single-dwelling units that consist of a detached house or one unit of a semi-detached, duplex, triplex or quadruplex house, with a residential zoning. Separately metered dwellings within a town house complex or apartment building also qualify as residential customers. All customers are single-phase. Class B consumers are defined in accordance with O. Reg. 429/04. Further servicing details are available in the distributor’s Conditions of Service. | K10: 1_RESIDENTIAL SERVICE CLASSIFICATION | V10: 648
A11: Energy+ Inc. | B11: Energy+ Inc.-For Former Brant County Power Service Area | E11: APPLICATION | K11: 1_APPLICATION | V11: 11
A12: Energy+ Inc. | B12: Energy+ Inc.-For Former Brant County Power Service Area | E12: The application of these rates and charges shall be in accordance with the Licence of the Distributor and any Code or Order of the Ontario Energy Board, and amendments thereto as approved by the Ontario Energy Board, which may be applicable to the administration of this schedule. | K12: 1_RESIDENTIAL SERVICE CLASSIFICATION | V12: 280
A13: Energy+ Inc. | B13: Energy+ Inc.-For Former Brant County Power Service Area | E13: No rates and charges for the distribution of electricity and charges to meet the costs of any work or service done or furnished for the purpose of the distribution of electricity shall be made except as permitted by this schedule, unless required by the Distributor’s Licence or a Code or Order of the Ontario Energy Board, and amendments thereto as approved by the Ontario Energy Board, or as specified herein. | K13: 1_RESIDENTIAL SERVICE CLASSIFICATION | V13: 411
A14: Energy+ Inc. | B14: Energy+ Inc.-For Former Brant County Power Service Area | E14: Unless specifically noted, this schedule does not contain any charges for the electricity commodity, be it under the Regulated Price Plan, a contract with a retailer or the wholesale market prices, as applicable. In addition, the charges in the MONTHLY RATES AND CHARGES - Regulatory Component of this schedule do not apply to a customer that is an embedded wholesale market participant. | K14: 1_RESIDENTIAL SERVICE CLASSIFICATION | V14: 388
A15: Energy+ Inc. | B15: Energy+ Inc.-For Former Brant County Power Service Area | E15: It should be noted that this schedule does not list any charges, assessments, or credits that are required by law to be invoiced by a distributor and that are not subject to Ontario Energy Board approval, such as the Debt Retirement Charge, the Global Adjustment and the HST. | K15: 1_RESIDENTIAL SERVICE CLASSIFICATION | V15: 275
A16: Energy+ Inc. | B16: Energy+ Inc.-For Former Brant County Power Service Area | E16: MONTHLY RATES AND CHARGES - Delivery Component | K16: 1_MRC_Del | V16: 46
A17: Energy+ Inc. | B17: Energy+ Inc.-For Former Brant County Power Service Area | E17: Service Charge | G17: $ | H17: 24.3 | K17: 1_RESIDENTIAL SERVICE CLASSIFICATION | L17: A | P17: 1_RESIDENTIAL SERVICE CLASSIFICATION_MSC | V17: 14
A18: Energy+ Inc. | B18: Energy+ Inc.-For Former Brant County Power Service Area | E18: Rate Rider for Recovery of Smart Meter Incremental Revenue Requirement - effective until the date of the next cost of service-based rate order | G18: $ | H18: 1.75 | K18: 1_RESIDENTIAL SERVICE CLASSIFICATION | L18: A | P18: 1_RESIDENTIAL SERVICE CLASSIFICATION_FX_RR_1 | V18: 142
A19: Energy+ Inc. | B19: Energy+ Inc.-For Former Brant County Power Service Area | E19: Smart Metering Entity Charge - effective until December 31, 2022 | G19: $ | H19: 0.57 | K19: 1_RESIDENTIAL SERVICE CLASSIFICATION | P19: 1_RESIDENTIAL SERVICE CLASSIFICATION_SME | T19: 2022-12-31 | V19: 64
A20: Energy+ Inc. | B20: Energy+ Inc.-For Former Brant County Power Service Area | E20: Distribution Volumetric Rate | G20: $/kWh | H20: 0.0053 | K20: 1_RESIDENTIAL SERVICE CLASSIFICATION | L20: A | P20: 1_RESIDENTIAL SERVICE CLASSIFICATION_DVC | V20: 28
A21: Energy+ Inc. | B21: Energy+ Inc.-For Former Brant County Power Service Area | E21: Low Voltage Service Rate | G21: $/kWh | H21: 0.0024 | K21: 1_RESIDENTIAL SERVICE CLASSIFICATION | L21: B | P21: 1_RESIDENTIAL SERVICE CLASSIFICATION_LV | V21: 24
A22: Energy+ Inc. | B22: Energy+ Inc.-For Former Brant County Power Service Area | E22: Rate Rider for Disposition of Global Adjustment Account (2018) - effective until April 30, 2019 Applicable only for Non-RPP Customers | G22: $/kWh | H22: 0.0142 | K22: 1_RESIDENTIAL SERVICE CLASSIFICATION | L22: B | P22: 1_RESIDENTIAL SERVICE CLASSIFICATION_GA_kwh | T22: 2019-04-30 | V22: 139
A23: Energy+ Inc. | B23: Energy+ Inc.-For Former Brant County Power Service Area | E23: Rate Rider for Disposition of Deferral/Variance Accounts (2018) - effective until April 30, 2019 | G23: $/kWh | H23: -0.006473916946 | K23: 1_RESIDENTIAL SERVICE CLASSIFICATION | L23: B | P23: 1_RESIDENTIAL SERVICE CLASSIFICATION_DEFVAR_ALL | T23: 2019-04-30 | V23: 96
A24: Energy+ Inc. | B24: Energy+ Inc.-For Former Brant County Power Service Area | E24: Retail Transmission Rate - Network Service Rate | G24: $/kWh | H24: 0.0061 | K24: 1_RESIDENTIAL SERVICE CLASSIFICATION | L24: C | P24: 1_RESIDENTIAL SERVICE CLASSIFICATION_Retail Transmission Rate - Network Service Rate | V24: 47
A25: Energy+ Inc. | B25: Energy+ Inc.-For Former Brant County Power Service Area | E25: Retail Transmission Rate - Line and Transformation Connection Service Rate | G25: $/kWh | H25: 0.0033 | K25: 1_RESIDENTIAL SERVICE CLASSIFICATION | L25: C | P25: 1_RESIDENTIAL SERVICE CLASSIFICATION_Retail Transmission Rate - Line and Transformation Connection Service Rate | V25: 74
A26: Energy+ Inc. | B26: Energy+ Inc.-For Former Brant County Power Service Area | E26: MONTHLY RATES AND CHARGES - Regulatory Component | K26: 1_MRC_Reg | V26: 48
A27: Energy+ Inc. | B27: Energy+ Inc.-For Former Brant County Power Service Area | E27: Wholesale Market Service Rate (WMS) - not including CBR | G27: $/kWh | H27: 0.0032 | K27: 1_RESIDENTIAL SERVICE CLASSIFICATION | P27: 1_RESIDENTIAL SERVICE CLASSIFICATION_WMSR | V27: 55
A28: Energy+ Inc. | B28: Energy+ Inc.-For Former Brant County Power Service Area | E28: Capacity Based Recovery (CBR) - Applicable for Class B Customers | G28: $/kWh | H28: 0.0004 | K28: 1_RESIDENTIAL SERVICE CLASSIFICATION | V28: 65
A29: Energy+ Inc. | B29: Energy+ Inc.-For Former Brant County Power Service Area | E29: Rural or Remote Electricity Rate Protection Charge (RRRP) | G29: $/kWh | H29: 0.0003 | K29: 1_RESIDENTIAL SERVICE CLASSIFICATION | L29: T | P29: 1_RESIDENTIAL SERVICE CLASSIFICATION_RRRP | V29: 57
A30: Energy+ Inc. | B30: Energy+ Inc.-For Former Brant County Power Service Area | E30: Standard Supply Service - Administrative Charge (if applicable) | G30: $ | H30: 0.25 | K30: 1_RESIDENTIAL SERVICE CLASSIFICATION | L30: T | P30: 1_RESIDENTIAL SERVICE CLASSIFICATION_SSS | V30: 63
A31: Energy+ Inc. | B31: Energy+ Inc.-For Former Brant County Power Service Area | E31: GENERAL SERVICE LESS THAN 50 KW SERVICE CLASSIFICATION | K31: 2_GENERAL SERVICE LESS THAN 50 kW SERVICE CLASSIFICATION | V31: 54
A32: Energy+ Inc. | B32: Energy+ Inc.-For Former Brant County Power Service Area | E32: This classification applies to a non residential account taking electricity at 750 volts or less whose average monthly maximum demand is less than, or is forecast to be less than, 50 kW. Class B consumers are defined in accordance with O. Reg. 429/04. Further servicing details are available in the distributor's Conditions of Service. | K32: 2_GENERAL SERVICE LESS THAN 50 kW SERVICE CLASSIFICATION | V32: 335
A33: Energy+ Inc. | B33: Energy+ Inc.-For Former Brant County Power Service Area | E33: APPLICATION | K33: 2_APPLICATION | V33: 11
A34: Energy+ Inc. | B34: Energy+ Inc.-For Former Brant County Power Service Area | E34: The application of these rates and charges shall be in accordance with the Licence of the Distributor and any Code or Order of the Ontario Energy Board, and amendments thereto as approved by the Ontario Energy Board, which may be applicable to the administration of this schedule. | K34: 2_GENERAL SERVICE LESS THAN 50 kW SERVICE CLASSIFICATION | V34: 280
A35: Energy+ Inc. | B35: Energy+ Inc.-For Former Brant County Power Service Area | E35: No rates and charges for the distribution of electricity and charges to meet the costs of any work or service done or furnished for the purpose of the distribution of electricity shall be made except as permitted by this schedule, unless required by the Distributor’s Licence or a Code or Order of the Ontario Energy Board, and amendments thereto as approved by the Ontario Energy Board, or as specified herein. | K35: 2_GENERAL SERVICE LESS THAN 50 kW SERVICE CLASSIFICATION | V35: 411
A36: Energy+ Inc. | B36: Energy+ Inc.-For Former Brant County Power Service Area | E36: Unless specifically noted, this schedule does not contain any charges for the electricity commodity, be it under the Regulated Price Plan, a contract with a retailer or the wholesale market prices, as applicable. In addition, the charges in the MONTHLY RATES AND CHARGES - Regulatory Component of this schedule do not apply to a customer that is an embedded wholesale market participant. | K36: 2_GENERAL SERVICE LESS THAN 50 kW SERVICE CLASSIFICATION | V36: 388
A37: Energy+ Inc. | B37: Energy+ Inc.-For Former Brant County Power Service Area | E37: It should be noted that this schedule does not list any charges, assessments, or credits that are required by law to be invoiced by a distributor and that are not subject to Ontario Energy Board approval, such as the Debt Retirement Charge, the Global Adjustment and the HST. | K37: 2_GENERAL SERVICE LESS THAN 50 kW SERVICE CLASSIFICATION | V37: 275
A38: Energy+ Inc. | B38: Energy+ Inc.-For Former Brant County Power Service Area | E38: MONTHLY RATES AND CHARGES - Delivery Component | K38: 2_MRC_Del | V38: 46
A39: Energy+ Inc. | B39: Energy+ Inc.-For Former Brant County Power Service Area | E39: Service Charge | G39: $ | H39: 17.36 | K39: 2_GENERAL SERVICE LESS THAN 50 kW SERVICE CLASSIFICATION | L39: A | P39: 2_GENERAL SERVICE LESS THAN 50 kW SERVICE CLASSIFICATION_MSC | V39: 14
A40: Energy+ Inc. | B40: Energy+ Inc.-For Former Brant County Power Service Area | E40: Rate Rider for Recovery of Smart Meter Incremental Revenue Requirement - effective until the date of the next cost of service-based rate order | G40: $ | H40: 4.33 | K40: 2_GENERAL SERVICE LESS THAN 50 kW SERVICE CLASSIFICATION | L40: A | P40: 2_GENERAL SERVICE LESS THAN 50 kW SERVICE CLASSIFICATION_FX_RR_2 | V40: 142
A41: Energy+ Inc. | B41: Energy+ Inc.-For Former Brant County Power Service Area | E41: Smart Metering Entity Charge - effective until December 31, 2022 | G41: $ | H41: 0.57 | K41: 2_GENERAL SERVICE LESS THAN 50 kW SERVICE CLASSIFICATION | P41: 2_GENERAL SERVICE LESS THAN 50 kW SERVICE CLASSIFICATION_SME | T41: 2022-12-31 | V41: 64
A42: Energy+ Inc. | B42: Energy+ Inc.-For Former Brant County Power Service Area | E42: Distribution Volumetric Rate | G42: $/kWh | H42: 0.018 | K42: 2_GENERAL SERVICE LESS THAN 50 kW SERVICE CLASSIFICATION | L42: A | P42: 2_GENERAL SERVICE LESS THAN 50 kW SERVICE CLASSIFICATION_DVC | V42: 28
A43: Energy+ Inc. | B43: Energy+ Inc.-For Former Brant County Power Service Area | E43: Low Voltage Service Rate | G43: $/kWh | H43: 0.0024 | K43: 2_GENERAL SERVICE LESS THAN 50 kW SERVICE CLASSIFICATION | L43: B | P43: 2_GENERAL SERVICE LESS THAN 50 kW SERVICE CLASSIFICATION_LV | V43: 24
A44: Energy+ Inc. | B44: Energy+ Inc.-For Former Brant County Power Service Area | E44: Rate Rider for Disposition of Global Adjustment Account (2018) - effective until April 30, 2019 Applicable only for Non-RPP Customers | G44: $/kWh | H44: 0.0142 | K44: 2_GENERAL SERVICE LESS THAN 50 kW SERVICE CLASSIFICATION | L44: B | P44: 2_GENERAL SERVICE LESS THAN 50 kW SERVICE CLASSIFICATION_GA_kwh | T44: 2019-04-30 | V44: 139
A45: Energy+ Inc. | B45: Energy+ Inc.-For Former Brant County Power Service Area | E45: Rate Rider for Disposition of Deferral/Variance Accounts (2018) - effective until April 30, 2019 | G45: $/kWh | H45: -0.006384440469 | K45: 2_GENERAL SERVICE LESS THAN 50 kW SERVICE CLASSIFICATION | L45: B | P45: 2_GENERAL SERVICE LESS THAN 50 kW SERVICE CLASSIFICATION_DEFVAR_ALL | T45: 2019-04-30 | V45: 96
A46: Energy+ Inc. | B46: Energy+ Inc.-For Former Brant County Power Service Area | E46: Retail Transmission Rate - Network Service Rate | G46: $/kWh | H46: 0.0056 | K46: 2_GENERAL SERVICE LESS THAN 50 kW SERVICE CLASSIFICATION | L46: C | P46: 2_GENERAL SERVICE LESS THAN 50 kW SERVICE CLASSIFICATION_Retail Transmission Rate - Network Service Rate | V46: 47
A47: Energy+ Inc. | B47: Energy+ Inc.-For Former Brant County Power Service Area | E47: Retail Transmission Rate - Line and Transformation Connection Service Rate | G47: $/kWh | H47: 0.0028 | K47: 2_GENERAL SERVICE LESS THAN 50 kW SERVICE CLASSIFICATION | L47: C | P47: 2_GENERAL SERVICE LESS THAN 50 kW SERVICE CLASSIFICATION_Retail Transmission Rate - Line and Transformation Connection Service Rate | V47: 74
A48: Energy+ Inc. | B48: Energy+ Inc.-For Former Brant County Power Service Area | E48: MONTHLY RATES AND CHARGES - Regulatory Component | K48: 2_MRC_Reg | V48: 48
A49: Energy+ Inc. | B49: Energy+ Inc.-For Former Brant County Power Service Area | E49: Wholesale Market Service Rate (WMS) - not including CBR | G49: $/kWh | H49: 0.0032 | K49: 2_GENERAL SERVICE LESS THAN 50 kW SERVICE CLASSIFICATION | P49: 2_GENERAL SERVICE LESS THAN 50 kW SERVICE CLASSIFICATION_WMSR | V49: 55
A50: Energy+ Inc. | B50: Energy+ Inc.-For Former Brant County Power Service Area | E50: Capacity Based Recovery (CBR) - Applicable for Class B Customers | G50: $/kWh | H50: 0.0004 | K50: 2_GENERAL SERVICE LESS THAN 50 kW SERVICE CLASSIFICATION | V50: 65
A51: Energy+ Inc. | B51: Energy+ Inc.-For Former Brant County Power Service Area | E51: Rural or Remote Electricity Rate Protection Charge (RRRP) | G51: $/kWh | H51: 0.0003 | K51: 2_GENERAL SERVICE LESS THAN 50 kW SERVICE CLASSIFICATION | L51: T | P51: 2_GENERAL SERVICE LESS THAN 50 kW SERVICE CLASSIFICATION_RRRP | V51: 57
A52: Energy+ Inc. | B52: Energy+ Inc.-For Former Brant County Power Service Area | E52: Standard Supply Service - Administrative Charge (if applicable) | G52: $ | H52: 0.25 | K52: 2_GENERAL SERVICE LESS THAN 50 kW SERVICE CLASSIFICATION | L52: T | P52: 2_GENERAL SERVICE LESS THAN 50 kW SERVICE CLASSIFICATION_SSS | V52: 63
A53: Energy+ Inc. | B53: Energy+ Inc.-For Former Brant County Power Service Area | E53: GENERAL SERVICE 50 TO 4,999 KW SERVICE CLASSIFICATION | K53: 3_GENERAL SERVICE 50 TO 4,999 KW SERVICE CLASSIFICATION | V53: 53
A54: Energy+ Inc. | B54: Energy+ Inc.-For Former Brant County Power Service Area | E54: This classification applies to a non residential account whose average monthly maximum demand used for billing purposes is equal to or greater than, or is forecast to be equal to or greater than, 50 kW but less than 5,000 kW. Note that for the application of the Retail Transmission Rate - Network Service Rate and the Retail Transmission Rate - Line and Transformation Connection Service Rate the following sub-classifications apply: - General Service 50 to 1,000 non-interval metered - General Service 50 to 1,000 interval metered - General Service > 1,000 to 5,000 kW interval metered Class A and Class B consumers are defined in accordance with O. Reg. 429/04. Further servicing details are available in the distributor's Conditions of Service. | K54: 3_GENERAL SERVICE 50 TO 4,999 KW SERVICE CLASSIFICATION | V54: 1782
A55: Energy+ Inc. | B55: Energy+ Inc.-For Former Brant County Power Service Area | E55: APPLICATION | K55: 3_APPLICATION | V55: 11
A56: Energy+ Inc. | B56: Energy+ Inc.-For Former Brant County Power Service Area | E56: The application of these rates and charges shall be in accordance with the Licence of the Distributor and any Code or Order of the Ontario Energy Board, and amendments thereto as approved by the Ontario Energy Board, which may be applicable to the administration of this schedule. | K56: 3_GENERAL SERVICE 50 TO 4,999 KW SERVICE CLASSIFICATION | V56: 280
A57: Energy+ Inc. | B57: Energy+ Inc.-For Former Brant County Power Service Area | E57: No rates and charges for the distribution of electricity and charges to meet the costs of any work or service done or furnished for the purpose of the distribution of electricity shall be made except as permitted by this schedule, unless required by the Distributor’s Licence or a Code or Order of the Ontario Energy Board, and amendments thereto as approved by the Ontario Energy Board, or as specified herein. | K57: 3_GENERAL SERVICE 50 TO 4,999 KW SERVICE CLASSIFICATION | V57: 411
A58: Energy+ Inc. | B58: Energy+ Inc.-For Former Brant County Power Service Area | E58: Unless specifically noted, this schedule does not contain any charges for the electricity commodity, be it under the Regulated Price Plan, a contract with a retailer or the wholesale market prices, as applicable. In addition, the charges in the MONTHLY RATES AND CHARGES - Regulatory Component of this schedule do not apply to a customer that is an embedded wholesale market participant. | K58: 3_GENERAL SERVICE 50 TO 4,999 KW SERVICE CLASSIFICATION | V58: 388
A59: Energy+ Inc. | B59: Energy+ Inc.-For Former Brant County Power Service Area | E59: The rate rider for the disposition of Global Adjustment is only applicable to non-RPP Class B customers. It is not applicable to WMP, customers that transitioned between Class A and Class B during the variance account accumulation period, or to customers that were in Class A for the entire period. Customers who transitioned are to be charged or refunded their share of the variance disposed through customer specific billing adjustments. This rate rider is to be consistently applied for the entire period to the sunset date of the rate rider. In addition, this rate rider is applicable to all new non-RPP Class B customers. | K59: 3_GENERAL SERVICE 50 TO 4,999 KW SERVICE CLASSIFICATION | V59: 626
A60: Energy+ Inc. | B60: Energy+ Inc.-For Former Brant County Power Service Area | E60: It should be noted that this schedule does not list any charges, assessments, or credits that are required by law to be invoiced by a distributor and that are not subject to Ontario Energy Board approval, such as the Debt Retirement Charge, the Global Adjustment and the HST. | K60: 3_GENERAL SERVICE 50 TO 4,999 KW SERVICE CLASSIFICATION | V60: 275
A61: Energy+ Inc. | B61: Energy+ Inc.-For Former Brant County Power Service Area | E61: MONTHLY RATES AND CHARGES - Delivery Component | K61: 3_MRC_Del | V61: 46
A62: Energy+ Inc. | B62: Energy+ Inc.-For Former Brant County Power Service Area | E62: Service Charge | G62: $ | H62: 96.98 | K62: 3_GENERAL SERVICE 50 TO 4,999 KW SERVICE CLASSIFICATION | L62: A | P62: 3_GENERAL SERVICE 50 TO 4,999 KW SERVICE CLASSIFICATION_MSC | V62: 14
A63: Energy+ Inc. | B63: Energy+ Inc.-For Former Brant County Power Service Area | E63: Distribution Volumetric Rate | G63: $/kW | H63: 3.9297 | K63: 3_GENERAL SERVICE 50 TO 4,999 KW SERVICE CLASSIFICATION | L63: A | P63: 3_GENERAL SERVICE 50 TO 4,999 KW SERVICE CLASSIFICATION_DVC | V63: 28
A64: Energy+ Inc. | B64: Energy+ Inc.-For Former Brant County Power Service Area | E64: Low Voltage Service Rate | G64: $/kW | H64: 1.1222 | K64: 3_GENERAL SERVICE 50 TO 4,999 KW SERVICE CLASSIFICATION | L64: B | P64: 3_GENERAL SERVICE 50 TO 4,999 KW SERVICE CLASSIFICATION_LV | V64: 24
A65: Energy+ Inc. | B65: Energy+ Inc.-For Former Brant County Power Service Area | E65: Rate Rider for Disposition of Global Adjustment Account (2018) - effective until April 30, 2019 Applicable only for Non-RPP Customers | G65: $/kWh | H65: 0.0142 | K65: 3_GENERAL SERVICE 50 TO 4,999 KW SERVICE CLASSIFICATION | L65: B | P65: 3_GENERAL SERVICE 50 TO 4,999 KW SERVICE CLASSIFICATION_GA_kwh | T65: 2019-04-30 | V65: 139
A66: Energy+ Inc. | B66: Energy+ Inc.-For Former Brant County Power Service Area | E66: Rate Rider for Disposition of Deferral/Variance Accounts (2018) - effective until April 30, 2019 | G66: $/kW | H66: -2.876069464 | K66: 3_GENERAL SERVICE 50 TO 4,999 KW SERVICE CLASSIFICATION | L66: B | P66: 3_GENERAL SERVICE 50 TO 4,999 KW SERVICE CLASSIFICATION_DEFVAR_ALL | T66: 2019-04-30 | V66: 96
A67: Energy+ Inc. | B67: Energy+ Inc.-For Former Brant County Power Service Area | E67: Retail Transmission Rate - Network Service Rate | G67: $/kW | H67: 2.2264 | K67: 3_GENERAL SERVICE 50 TO 4,999 KW SERVICE CLASSIFICATION | L67: C | P67: 3_GENERAL SERVICE 50 TO 4,999 KW SERVICE CLASSIFICATION_Retail Transmission Rate - Network Service Rate | V67: 47
A68: Energy+ Inc. | B68: Energy+ Inc.-For Former Brant County Power Service Area | E68: Retail Transmission Rate - Line and Transformation Connection Service Rate | G68: $/kW | H68: 1.1812 | K68: 3_GENERAL SERVICE 50 TO 4,999 KW SERVICE CLASSIFICATION | L68: C | P68: 3_GENERAL SERVICE 50 TO 4,999 KW SERVICE CLASSIFICATION_Retail Transmission Rate - Line and Transformation Connection Service Rate | V68: 74
A69: Energy+ Inc. | B69: Energy+ Inc.-For Former Brant County Power Service Area | E69: Retail Transmission Rate - Network Service Rate - Interval Metered < 1,000 kW | G69: $/kW | H69: 2.3617 | K69: 3_GENERAL SERVICE 50 TO 4,999 KW SERVICE CLASSIFICATION | L69: C | P69: 3_GENERAL SERVICE 50 TO 4,999 KW SERVICE CLASSIFICATION_Retail Transmission Rate - Network Service Rate - Interval Metered < 1,000 kW | V69: 77
A70: Energy+ Inc. | B70: Energy+ Inc.-For Former Brant County Power Service Area | E70: Retail Transmission Rate - Line and Transformation Connection Service Rate - Interval Metered < 1,000 kW | G70: $/kW | H70: 1.3053 | K70: 3_GENERAL SERVICE 50 TO 4,999 KW SERVICE CLASSIFICATION | P70: 3_GENERAL SERVICE 50 TO 4,999 KW SERVICE CLASSIFICATION_Retail Transmission Rate - Line and Transformation Connection Service Rate - Interval Metered < 1,000 kW | V70: 105
A71: Energy+ Inc. | B71: Energy+ Inc.-For Former Brant County Power Service Area | E71: Retail Transmission Rate - Network Service Rate - Interval Metered > 1,000 kW | G71: $/kW | H71: 2.3644 | K71: 3_GENERAL SERVICE 50 TO 4,999 KW SERVICE CLASSIFICATION | L71: C | P71: 3_GENERAL SERVICE 50 TO 4,999 KW SERVICE CLASSIFICATION_Retail Transmission Rate - Network Service Rate - Interval Metered > 1,000 kW | V71: 77
A72: Energy+ Inc. | B72: Energy+ Inc.-For Former Brant County Power Service Area | E72: Retail Transmission Rate - Line and Transformation Connection Service Rate - Interval Metered > 1,000 kW | G72: $/kW | H72: 1.2949 | K72: 3_GENERAL SERVICE 50 TO 4,999 KW SERVICE CLASSIFICATION | P72: 3_GENERAL SERVICE 50 TO 4,999 KW SERVICE CLASSIFICATION_Retail Transmission Rate - Line and Transformation Connection Service Rate - Interval Metered > 1,000 kW | V72: 105
A73: Energy+ Inc. | B73: Energy+ Inc.-For Former Brant County Power Service Area | E73: MONTHLY RATES AND CHARGES - Regulatory Component | K73: 3_MRC_Reg | V73: 48
A74: Energy+ Inc. | B74: Energy+ Inc.-For Former Brant County Power Service Area | E74: Wholesale Market Service Rate (WMS) - not including CBR | G74: $/kWh | H74: 0.0032 | K74: 3_GENERAL SERVICE 50 TO 4,999 KW SERVICE CLASSIFICATION | P74: 3_GENERAL SERVICE 50 TO 4,999 KW SERVICE CLASSIFICATION_WMSR | V74: 55
A75: Energy+ Inc. | B75: Energy+ Inc.-For Former Brant County Power Service Area | E75: Capacity Based Recovery (CBR) - Applicable for Class B Customers | G75: $/kWh | H75: 0.0004 | K75: 3_GENERAL SERVICE 50 TO 4,999 KW SERVICE CLASSIFICATION | V75: 65
A76: Energy+ Inc. | B76: Energy+ Inc.-For Former Brant County Power Service Area | E76: Rural or Remote Electricity Rate Protection Charge (RRRP) | G76: $/kWh | H76: 0.0003 | K76: 3_GENERAL SERVICE 50 TO 4,999 KW SERVICE CLASSIFICATION | L76: T | P76: 3_GENERAL SERVICE 50 TO 4,999 KW SERVICE CLASSIFICATION_RRRP | V76: 57
A77: Energy+ Inc. | B77: Energy+ Inc.-For Former Brant County Power Service Area | E77: Standard Supply Service - Administrative Charge (if applicable) | G77: $ | H77: 0.25 | K77: 3_GENERAL SERVICE 50 TO 4,999 KW SERVICE CLASSIFICATION | L77: T | P77: 3_GENERAL SERVICE 50 TO 4,999 KW SERVICE CLASSIFICATION_SSS | V77: 63
A78: Energy+ Inc. | B78: Energy+ Inc.-For Former Brant County Power Service Area | E78: UNMETERED SCATTERED LOAD SERVICE CLASSIFICATION | K78: 4_UNMETERED SCATTERED LOAD SERVICE CLASSIFICATION | V78: 47
A79: Energy+ Inc. | B79: Energy+ Inc.-For Former Brant County Power Service Area | E79: This classification applies to an account taking electricity at 750 volts or less whose average monthly maximum demand is less than, or is forecast to be less than, 50 kW and the consumption is unmetered. Such connections include cable TV power packs, bus shelters, telephone booths, traffic lights, railway crossings, etc. The level of the consumption will be agreed to by the distributor and the customer, based on detailed manufacturer information/documentation with regard to electrical consumption of the unmetered load or periodic monitoring of actual consumption. Class B consumers are defined in accordance with O. Reg. 429/04. Further servicing details are available in the distributor's Conditions of Service. | K79: 4_UNMETERED SCATTERED LOAD SERVICE CLASSIFICATION | V79: 719
A80: Energy+ Inc. | B80: Energy+ Inc.-For Former Brant County Power Service Area | E80: APPLICATION | K80: 4_APPLICATION | V80: 11
A81: Energy+ Inc. | B81: Energy+ Inc.-For Former Brant County Power Service Area | E81: The application of these rates and charges shall be in accordance with the Licence of the Distributor and any Code or Order of the Ontario Energy Board, and amendments thereto as approved by the Ontario Energy Board, which may be applicable to the administration of this schedule. | K81: 4_UNMETERED SCATTERED LOAD SERVICE CLASSIFICATION | V81: 280
A82: Energy+ Inc. | B82: Energy+ Inc.-For Former Brant County Power Service Area | E82: No rates and charges for the distribution of electricity and charges to meet the costs of any work or service done or furnished for the purpose of the distribution of electricity shall be made except as permitted by this schedule, unless required by the Distributor’s Licence or a Code or Order of the Ontario Energy Board, and amendments thereto as approved by the Ontario Energy Board, or as specified herein. | K82: 4_UNMETERED SCATTERED LOAD SERVICE CLASSIFICATION | V82: 411
A83: Energy+ Inc. | B83: Energy+ Inc.-For Former Brant County Power Service Area | E83: Unless specifically noted, this schedule does not contain any charges for the electricity commodity, be it under the Regulated Price Plan, a contract with a retailer or the wholesale market prices, as applicable. In addition, the charges in the MONTHLY RATES AND CHARGES - Regulatory Component of this schedule do not apply to a customer that is an embedded wholesale market participant. | K83: 4_UNMETERED SCATTERED LOAD SERVICE CLASSIFICATION | V83: 388
A84: Energy+ Inc. | B84: Energy+ Inc.-For Former Brant County Power Service Area | E84: It should be noted that this schedule does not list any charges, assessments, or credits that are required by law to be invoiced by a distributor and that are not subject to Ontario Energy Board approval, such as the Debt Retirement Charge, the Global Adjustment and the HST. | K84: 4_UNMETERED SCATTERED LOAD SERVICE CLASSIFICATION | V84: 275
A85: Energy+ Inc. | B85: Energy+ Inc.-For Former Brant County Power Service Area | E85: MONTHLY RATES AND CHARGES - Delivery Component | K85: 4_MRC_Del | V85: 46
A86: Energy+ Inc. | B86: Energy+ Inc.-For Former Brant County Power Service Area | E86: Service Charge (per connection) | G86: $ | H86: 2.04 | K86: 4_UNMETERED SCATTERED LOAD SERVICE CLASSIFICATION | L86: A | P86: 4_UNMETERED SCATTERED LOAD SERVICE CLASSIFICATION_MSC | V86: 31
A87: Energy+ Inc. | B87: Energy+ Inc.-For Former Brant County Power Service Area | E87: Distribution Volumetric Rate | G87: $/kWh | H87: 0.0233 | K87: 4_UNMETERED SCATTERED LOAD SERVICE CLASSIFICATION | L87: A | P87: 4_UNMETERED SCATTERED LOAD SERVICE CLASSIFICATION_DVC | V87: 28
A88: Energy+ Inc. | B88: Energy+ Inc.-For Former Brant County Power Service Area | E88: Low Voltage Service Rate | G88: $/kWh | H88: 0.0024 | K88: 4_UNMETERED SCATTERED LOAD SERVICE CLASSIFICATION | L88: B | P88: 4_UNMETERED SCATTERED LOAD SERVICE CLASSIFICATION_LV | V88: 24
A89: Energy+ Inc. | B89: Energy+ Inc.-For Former Brant County Power Service Area | E89: Rate Rider for Disposition of Global Adjustment Account (2018) - effective until April 30, 2019 Applicable only for Non-RPP Customers | G89: $/kWh | H89: 0.0142 | K89: 4_UNMETERED SCATTERED LOAD SERVICE CLASSIFICATION | L89: B | P89: 4_UNMETERED SCATTERED LOAD SERVICE CLASSIFICATION_GA_kwh | T89: 2019-04-30 | V89: 139
A90: Energy+ Inc. | B90: Energy+ Inc.-For Former Brant County Power Service Area | E90: Rate Rider for Disposition of Deferral/Variance Accounts (2018) - effective until April 30, 2019 | G90: $/kWh | H90: -0.006340831194 | K90: 4_UNMETERED SCATTERED LOAD SERVICE CLASSIFICATION | L90: B | P90: 4_UNMETERED SCATTERED LOAD SERVICE CLASSIFICATION_DEFVAR_ALL | T90: 2019-04-30 | V90: 96
A91: Energy+ Inc. | B91: Energy+ Inc.-For Former Brant County Power Service Area | E91: Retail Transmission Rate - Network Service Rate | G91: $/kWh | H91: 0.0056 | K91: 4_UNMETERED SCATTERED LOAD SERVICE CLASSIFICATION | L91: C | P91: 4_UNMETERED SCATTERED LOAD SERVICE CLASSIFICATION_Retail Transmission Rate - Network Service Rate | V91: 47
A92: Energy+ Inc. | B92: Energy+ Inc.-For Former Brant County Power Service Area | E92: Retail Transmission Rate - Line and Transformation Connection Service Rate | G92: $/kWh | H92: 0.0028 | K92: 4_UNMETERED SCATTERED LOAD SERVICE CLASSIFICATION | L92: C | P92: 4_UNMETERED SCATTERED LOAD SERVICE CLASSIFICATION_Retail Transmission Rate - Line and Transformation Connection Service Rate | V92: 74
A93: Energy+ Inc. | B93: Energy+ Inc.-For Former Brant County Power Service Area | E93: MONTHLY RATES AND CHARGES - Regulatory Component | K93: 4_MRC_Reg | V93: 48
A94: Energy+ Inc. | B94: Energy+ Inc.-For Former Brant County Power Service Area | E94: Wholesale Market Service Rate (WMS) - not including CBR | G94: $/kWh | H94: 0.0032 | K94: 4_UNMETERED SCATTERED LOAD SERVICE CLASSIFICATION | P94: 4_UNMETERED SCATTERED LOAD SERVICE CLASSIFICATION_WMSR | V94: 55
A95: Energy+ Inc. | B95: Energy+ Inc.-For Former Brant County Power Service Area | E95: Capacity Based Recovery (CBR) - Applicable for Class B Customers | G95: $/kWh | H95: 0.0004 | K95: 4_UNMETERED SCATTERED LOAD SERVICE CLASSIFICATION | V95: 65
A96: Energy+ Inc. | B96: Energy+ Inc.-For Former Brant County Power Service Area | E96: Rural or Remote Electricity Rate Protection Charge (RRRP) | G96: $/kWh | H96: 0.0003 | K96: 4_UNMETERED SCATTERED LOAD SERVICE CLASSIFICATION | L96: T | P96: 4_UNMETERED SCATTERED LOAD SERVICE CLASSIFICATION_RRRP | V96: 57
A97: Energy+ Inc. | B97: Energy+ Inc.-For Former Brant County Power Service Area | E97: Standard Supply Service - Administrative Charge (if applicable) | G97: $ | H97: 0.25 | K97: 4_UNMETERED SCATTERED LOAD SERVICE CLASSIFICATION | L97: T | P97: 4_UNMETERED SCATTERED LOAD SERVICE CLASSIFICATION_SSS | V97: 63
A98: Energy+ Inc. | B98: Energy+ Inc.-For Former Brant County Power Service Area | E98: SENTINEL LIGHTING SERVICE CLASSIFICATION | K98: 5_SENTINEL LIGHTING SERVICE CLASSIFICATION | V98: 40
A99: Energy+ Inc. | B99: Energy+ Inc.-For Former Brant County Power Service Area | E99: This classification applies to safety/security lighting with a Residential, General Service or Large Use customer. This is typically exterior lighting, and unmetered. Consumption is estimated based on the equipment rating and estimated hours of use. Class B consumers are defined in accordance with O. Reg. 429/04. Further servicing details are available in the distributor's Conditions of Service. | K99: 5_SENTINEL LIGHTING SERVICE CLASSIFICATION | V99: 398
A100: Energy+ Inc. | B100: Energy+ Inc.-For Former Brant County Power Service Area | E100: APPLICATION | K100: 5_APPLICATION | V100: 11
A101: Energy+ Inc. | B101: Energy+ Inc.-For Former Brant County Power Service Area | E101: The application of these rates and charges shall be in accordance with the Licence of the Distributor and any Code or Order of the Ontario Energy Board, and amendments thereto as approved by the Ontario Energy Board, which may be applicable to the administration of this schedule. | K101: 5_SENTINEL LIGHTING SERVICE CLASSIFICATION | V101: 280
A102: Energy+ Inc. | B102: Energy+ Inc.-For Former Brant County Power Service Area | E102: No rates and charges for the distribution of electricity and charges to meet the costs of any work or service done or furnished for the purpose of the distribution of electricity shall be made except as permitted by this schedule, unless required by the Distributor’s Licence or a Code or Order of the Ontario Energy Board, and amendments thereto as approved by the Ontario Energy Board, or as specified herein. | K102: 5_SENTINEL LIGHTING SERVICE CLASSIFICATION | V102: 411
A103: Energy+ Inc. | B103: Energy+ Inc.-For Former Brant County Power Service Area | E103: Unless specifically noted, this schedule does not contain any charges for the electricity commodity, be it under the Regulated Price Plan, a contract with a retailer or the wholesale market prices, as applicable. In addition, the charges in the MONTHLY RATES AND CHARGES - Regulatory Component of this schedule do not apply to a customer that is an embedded wholesale market participant. | K103: 5_SENTINEL LIGHTING SERVICE CLASSIFICATION | V103: 388
A104: Energy+ Inc. | B104: Energy+ Inc.-For Former Brant County Power Service Area | E104: It should be noted that this schedule does not list any charges, assessments, or credits that are required by law to be invoiced by a distributor and that are not subject to Ontario Energy Board approval, such as the Debt Retirement Charge, the Global Adjustment and the HST. | K104: 5_SENTINEL LIGHTING SERVICE CLASSIFICATION | V104: 275
A105: Energy+ Inc. | B105: Energy+ Inc.-For Former Brant County Power Service Area | E105: MONTHLY RATES AND CHARGES - Delivery Component | K105: 5_MRC_Del | V105: 46
A106: Energy+ Inc. | B106: Energy+ Inc.-For Former Brant County Power Service Area | E106: Service Charge (per connection) | G106: $ | H106: 2.04 | K106: 5_SENTINEL LIGHTING SERVICE CLASSIFICATION | L106: A | P106: 5_SENTINEL LIGHTING SERVICE CLASSIFICATION_MSC | V106: 31
A107: Energy+ Inc. | B107: Energy+ Inc.-For Former Brant County Power Service Area | E107: Distribution Volumetric Rate | G107: $/kW | H107: 30.5028 | K107: 5_SENTINEL LIGHTING SERVICE CLASSIFICATION | L107: A | P107: 5_SENTINEL LIGHTING SERVICE CLASSIFICATION_DVC | V107: 28
A108: Energy+ Inc. | B108: Energy+ Inc.-For Former Brant County Power Service Area | E108: Low Voltage Service Rate | G108: $/kW | H108: 0.7192 | K108: 5_SENTINEL LIGHTING SERVICE CLASSIFICATION | L108: B | P108: 5_SENTINEL LIGHTING SERVICE CLASSIFICATION_LV | V108: 24
A109: Energy+ Inc. | B109: Energy+ Inc.-For Former Brant County Power Service Area | E109: Rate Rider for Disposition of Global Adjustment Account (2018) - effective until April 30, 2019 Applicable only for Non-RPP Customers | G109: $/kWh | H109: 0.0142 | K109: 5_SENTINEL LIGHTING SERVICE CLASSIFICATION | L109: B | P109: 5_SENTINEL LIGHTING SERVICE CLASSIFICATION_GA_kwh | T109: 2019-04-30 | V109: 139
A110: Energy+ Inc. | B110: Energy+ Inc.-For Former Brant County Power Service Area | E110: Rate Rider for Disposition of Deferral/Variance Accounts (2018) - effective until April 30, 2019 | G110: $/kW | H110: -2.078652194 | K110: 5_SENTINEL LIGHTING SERVICE CLASSIFICATION | L110: B | P110: 5_SENTINEL LIGHTING SERVICE CLASSIFICATION_DEFVAR_ALL | T110: 2019-04-30 | V110: 96
A111: Energy+ Inc. | B111: Energy+ Inc.-For Former Brant County Power Service Area | E111: Retail Transmission Rate - Network Service Rate | G111: $/kW | H111: 1.6411 | K111: 5_SENTINEL LIGHTING SERVICE CLASSIFICATION | L111: C | P111: 5_SENTINEL LIGHTING SERVICE CLASSIFICATION_Retail Transmission Rate - Network Service Rate | V111: 47
A112: Energy+ Inc. | B112: Energy+ Inc.-For Former Brant County Power Service Area | E112: Retail Transmission Rate - Line and Transformation Connection Service Rate | G112: $/kW | H112: 0.9544 | K112: 5_SENTINEL LIGHTING SERVICE CLASSIFICATION | L112: C | P112: 5_SENTINEL LIGHTING SERVICE CLASSIFICATION_Retail Transmission Rate - Line and Transformation Connection Service Rate | V112: 74
A113: Energy+ Inc. | B113: Energy+ Inc.-For Former Brant County Power Service Area | E113: MONTHLY RATES AND CHARGES - Regulatory Component | K113: 5_MRC_Reg | V113: 48
A114: Energy+ Inc. | B114: Energy+ Inc.-For Former Brant County Power Service Area | E114: Wholesale Market Service Rate (WMS) - not including CBR | G114: $/kWh | H114: 0.0032 | K114: 5_SENTINEL LIGHTING SERVICE CLASSIFICATION | P114: 5_SENTINEL LIGHTING SERVICE CLASSIFICATION_WMSR | V114: 55
A115: Energy+ Inc. | B115: Energy+ Inc.-For Former Brant County Power Service Area | E115: Capacity Based Recovery (CBR) - Applicable for Class B Customers | G115: $/kWh | H115: 0.0004 | K115: 5_SENTINEL LIGHTING SERVICE CLASSIFICATION | V115: 65
A116: Energy+ Inc. | B116: Energy+ Inc.-For Former Brant County Power Service Area | E116: Rural or Remote Electricity Rate Protection Charge (RRRP) | G116: $/kWh | H116: 0.0003 | K116: 5_SENTINEL LIGHTING SERVICE CLASSIFICATION | L116: T | P116: 5_SENTINEL LIGHTING SERVICE CLASSIFICATION_RRRP | V116: 57
A117: Energy+ Inc. | B117: Energy+ Inc.-For Former Brant County Power Service Area | E117: Standard Supply Service - Administrative Charge (if applicable) | G117: $ | H117: 0.25 | K117: 5_SENTINEL LIGHTING SERVICE CLASSIFICATION | L117: T | P117: 5_SENTINEL LIGHTING SERVICE CLASSIFICATION_SSS | V117: 63
A118: Energy+ Inc. | B118: Energy+ Inc.-For Former Brant County Power Service Area | E118: STREET LIGHTING SERVICE CLASSIFICATION | K118: 6_STREET LIGHTING SERVICE CLASSIFICATION | V118: 38
A119: Energy+ Inc. | B119: Energy+ Inc.-For Former Brant County Power Service Area | E119: This classification applies to an account for roadway lighting with a Municipality, Regional Municipality, Ministry of Transportation and private roadway lighting, controlled by photo cells. The consumption for these customers will be based on the calculated connected load times that required lighting times established in the approved Ontario Energy Board street lighting load shape template. Class B consumers are defined in accordance with O. Reg. 429/04. Further servicing details are available in the distributor's Conditions of Service. | K119: 6_STREET LIGHTING SERVICE CLASSIFICATION | V119: 543
A120: Energy+ Inc. | B120: Energy+ Inc.-For Former Brant County Power Service Area | E120: APPLICATION | K120: 6_APPLICATION | V120: 11
A121: Energy+ Inc. | B121: Energy+ Inc.-For Former Brant County Power Service Area | E121: The application of these rates and charges shall be in accordance with the Licence of the Distributor and any Code or Order of the Ontario Energy Board, and amendments thereto as approved by the Ontario Energy Board, which may be applicable to the administration of this schedule. | K121: 6_STREET LIGHTING SERVICE CLASSIFICATION | V121: 280
A122: Energy+ Inc. | B122: Energy+ Inc.-For Former Brant County Power Service Area | E122: No rates and charges for the distribution of electricity and charges to meet the costs of any work or service done or furnished for the purpose of the distribution of electricity shall be made except as permitted by this schedule, unless required by the Distributor’s Licence or a Code or Order of the Ontario Energy Board, and amendments thereto as approved by the Ontario Energy Board, or as specified herein. | K122: 6_STREET LIGHTING SERVICE CLASSIFICATION | V122: 411
A123: Energy+ Inc. | B123: Energy+ Inc.-For Former Brant County Power Service Area | E123: Unless specifically noted, this schedule does not contain any charges for the electricity commodity, be it under the Regulated Price Plan, a contract with a retailer or the wholesale market prices, as applicable. In addition, the charges in the MONTHLY RATES AND CHARGES - Regulatory Component of this schedule do not apply to a customer that is an embedded wholesale market participant. | K123: 6_STREET LIGHTING SERVICE CLASSIFICATION | V123: 388
A124: Energy+ Inc. | B124: Energy+ Inc.-For Former Brant County Power Service Area | E124: It should be noted that this schedule does not list any charges, assessments, or credits that are required by law to be invoiced by a distributor and that are not subject to Ontario Energy Board approval, such as the Debt Retirement Charge, the Global Adjustment and the HST. | K124: 6_STREET LIGHTING SERVICE CLASSIFICATION | V124: 275
A125: Energy+ Inc. | B125: Energy+ Inc.-For Former Brant County Power Service Area | E125: MONTHLY RATES AND CHARGES - Delivery Component | K125: 6_MRC_Del | V125: 46
A126: Energy+ Inc. | B126: Energy+ Inc.-For Former Brant County Power Service Area | E126: Service Charge (per connection) | G126: $ | H126: 1.53 | K126: 6_STREET LIGHTING SERVICE CLASSIFICATION | L126: A | P126: 6_STREET LIGHTING SERVICE CLASSIFICATION_MSC | V126: 31
A127: Energy+ Inc. | B127: Energy+ Inc.-For Former Brant County Power Service Area | E127: Distribution Volumetric Rate | G127: $/kW | H127: 44.8917 | K127: 6_STREET LIGHTING SERVICE CLASSIFICATION | L127: A | P127: 6_STREET LIGHTING SERVICE CLASSIFICATION_DVC | V127: 28
A128: Energy+ Inc. | B128: Energy+ Inc.-For Former Brant County Power Service Area | E128: Low Voltage Service Rate | G128: $/kW | H128: 0.8406 | K128: 6_STREET LIGHTING SERVICE CLASSIFICATION | L128: B | P128: 6_STREET LIGHTING SERVICE CLASSIFICATION_LV | V128: 24
A129: Energy+ Inc. | B129: Energy+ Inc.-For Former Brant County Power Service Area | E129: Rate Rider for Disposition of Global Adjustment Account (2018) - effective until April 30, 2019 Applicable only for Non-RPP Customers | G129: $/kWh | H129: 0.0142 | K129: 6_STREET LIGHTING SERVICE CLASSIFICATION | L129: B | P129: 6_STREET LIGHTING SERVICE CLASSIFICATION_GA_kwh | T129: 2019-04-30 | V129: 139
A130: Energy+ Inc. | B130: Energy+ Inc.-For Former Brant County Power Service Area | E130: Rate Rider for Disposition of Deferral/Variance Accounts (2018) - effective until April 30, 2019 | G130: $/kW | H130: -2.118615308 | K130: 6_STREET LIGHTING SERVICE CLASSIFICATION | L130: B | P130: 6_STREET LIGHTING SERVICE CLASSIFICATION_DEFVAR_ALL | T130: 2019-04-30 | V130: 96
A131: Energy+ Inc. | B131: Energy+ Inc.-For Former Brant County Power Service Area | E131: Retail Transmission Rate - Network Service Rate | G131: $/kW | H131: 1.6793 | K131: 6_STREET LIGHTING SERVICE CLASSIFICATION | L131: C | P131: 6_STREET LIGHTING SERVICE CLASSIFICATION_Retail Transmission Rate - Network Service Rate | V131: 47
A132: Energy+ Inc. | B132: Energy+ Inc.-For Former Brant County Power Service Area | E132: Retail Transmission Rate - Line and Transformation Connection Service Rate | G132: $/kW | H132: 0.913 | K132: 6_STREET LIGHTING SERVICE CLASSIFICATION | L132: C | P132: 6_STREET LIGHTING SERVICE CLASSIFICATION_Retail Transmission Rate - Line and Transformation Connection Service Rate | V132: 74
A133: Energy+ Inc. | B133: Energy+ Inc.-For Former Brant County Power Service Area | E133: MONTHLY RATES AND CHARGES - Regulatory Component | K133: 6_MRC_Reg | V133: 48
A134: Energy+ Inc. | B134: Energy+ Inc.-For Former Brant County Power Service Area | E134: Wholesale Market Service Rate (WMS) - not including CBR | G134: $/kWh | H134: 0.0032 | K134: 6_STREET LIGHTING SERVICE CLASSIFICATION | P134: 6_STREET LIGHTING SERVICE CLASSIFICATION_WMSR | V134: 55
A135: Energy+ Inc. | B135: Energy+ Inc.-For Former Brant County Power Service Area | E135: Capacity Based Recovery (CBR) - Applicable for Class B Customers | G135: $/kWh | H135: 0.0004 | K135: 6_STREET LIGHTING SERVICE CLASSIFICATION | V135: 65
A136: Energy+ Inc. | B136: Energy+ Inc.-For Former Brant County Power Service Area | E136: Rural or Remote Electricity Rate Protection Charge (RRRP) | G136: $/kWh | H136: 0.0003 | K136: 6_STREET LIGHTING SERVICE CLASSIFICATION | L136: T | P136: 6_STREET LIGHTING SERVICE CLASSIFICATION_RRRP | V136: 57
A137: Energy+ Inc. | B137: Energy+ Inc.-For Former Brant County Power Service Area | E137: Standard Supply Service - Administrative Charge (if applicable) | G137: $ | H137: 0.25 | K137: 6_STREET LIGHTING SERVICE CLASSIFICATION | L137: T | P137: 6_STREET LIGHTING SERVICE CLASSIFICATION_SSS | V137: 63
A138: Energy+ Inc. | B138: Energy+ Inc.-For Former Brant County Power Service Area | E138: microFIT SERVICE CLASSIFICATION | K138: 7_microFIT SERVICE CLASSIFICATION | V138: 31
A139: Energy+ Inc. | B139: Energy+ Inc.-For Former Brant County Power Service Area | E139: This classification applies to an electricity generation facility contracted under the Independent Electricity System Operator's microFIT program and connected to the distributor's distribution system. Further servicing details are available in the distributor's Conditions of Service. | K139: 7_microFIT SERVICE CLASSIFICATION | V139: 285
A140: Energy+ Inc. | B140: Energy+ Inc.-For Former Brant County Power Service Area | E140: APPLICATION | K140: 7_APPLICATION | V140: 11
A141: Energy+ Inc. | B141: Energy+ Inc.-For Former Brant County Power Service Area | E141: The application of these rates and charges shall be in accordance with the Licence of the Distributor and any Code or Order of the Ontario Energy Board, and amendments thereto as approved by the Ontario Energy Board, which may be applicable to the administration of this schedule. | K141: 7_microFIT SERVICE CLASSIFICATION | V141: 280
A142: Energy+ Inc. | B142: Energy+ Inc.-For Former Brant County Power Service Area | E142: No rates and charges for the distribution of electricity and charges to meet the costs of any work or service done or furnished for the purpose of the distribution of electricity shall be made except as permitted by this schedule, unless required by the Distributor’s Licence or a Code or Order of the Ontario Energy Board, and amendments thereto as approved by the Ontario Energy Board, or as specified herein. | K142: 7_microFIT SERVICE CLASSIFICATION | V142: 411
A143: Energy+ Inc. | B143: Energy+ Inc.-For Former Brant County Power Service Area | E143: Unless specifically noted, this schedule does not contain any charges for the electricity commodity, be it under the Regulated Price Plan, a contract with a retailer or the wholesale market prices, as applicable. | K143: 7_microFIT SERVICE CLASSIFICATION | V143: 212
A144: Energy+ Inc. | B144: Energy+ Inc.-For Former Brant County Power Service Area | E144: It should be noted that this schedule does not list any charges, assessments, or credits that are required by law to be invoiced by a distributor and that are not subject to Ontario Energy Board approval, such as the Debt Retirement Charge, the Global Adjustment and the HST. | K144: 7_microFIT SERVICE CLASSIFICATION | V144: 275
A145: Energy+ Inc. | B145: Energy+ Inc.-For Former Brant County Power Service Area | E145: MONTHLY RATES AND CHARGES - Delivery Component | K145: 7_MRC_Del | V145: 46
A146: Energy+ Inc. | B146: Energy+ Inc.-For Former Brant County Power Service Area | E146: Service Charge | G146: $ | H146: 5.4 | K146: 7_microFIT SERVICE CLASSIFICATION | L146: A | P146: 7_microFIT SERVICE CLASSIFICATION_MSC | V146: 14
A147: Energy+ Inc. | B147: Energy+ Inc.-For Former Brant County Power Service Area | E147: ALLOWANCES | K147: Energy+ Inc._ALLOWANCES | V147: 10
A148: Energy+ Inc. | B148: Energy+ Inc.-For Former Brant County Power Service Area | E148: Transformer Allowance for Ownership - per kW of billing demand/month | G148: $/kW | H148: -0.6 | V148: 68
A149: Energy+ Inc. | B149: Energy+ Inc.-For Former Brant County Power Service Area | E149: Primary Metering Allowance for Transformer Losses - applied to measured demand & energy | G149: % | H149: -1 | V149: 87
A150: Energy+ Inc. | B150: Energy+ Inc.-For Former Brant County Power Service Area | E150: SPECIFIC SERVICE CHARGES | K150: Energy+ Inc._SSC | V150: 24
A151: Energy+ Inc. | B151: Energy+ Inc.-For Former Brant County Power Service Area | E151: The application of these rates and charges shall be in accordance with the Licence of the Distributor and any Code or Order of the Ontario Energy Board, and amendments thereto as approved by the Ontario Energy Board, which may be applicable to the administration of this schedule. | V151: 280
A152: Energy+ Inc. | B152: Energy+ Inc.-For Former Brant County Power Service Area | E152: No charges to meet the costs of any work or service done or furnished for the purpose of the distribution of electricity shall be made except as permitted by this schedule, unless required by the Distributor’s Licence or a Code or Order of the Ontario Energy Board, and amendments thereto as approved by the Ontario Energy Board, or as specified herein. | V152: 353
A153: Energy+ Inc. | B153: Energy+ Inc.-For Former Brant County Power Service Area | E153: It should be noted that this schedule does not list any charges, assessments, or credits that are required by law to be invoiced by a distributor and that are not subject to Ontario Energy Board approval, such as the Debt Retirement Charge, the Global Adjustment and the HST. | V153: 275
A154: Energy+ Inc. | B154: Energy+ Inc.-For Former Brant County Power Service Area | E154: Customer Administration | K154: Energy+ Inc._CA | V154: 23
A155: Energy+ Inc. | B155: Energy+ Inc.-For Former Brant County Power Service Area | E155: Arrears certificate | G155: $ | H155: 15 | V155: 19
A156: Energy+ Inc. | B156: Energy+ Inc.-For Former Brant County Power Service Area | E156: Statement of account | G156: $ | H156: 15 | V156: 20
A157: Energy+ Inc. | B157: Energy+ Inc.-For Former Brant County Power Service Area | E157: Pulling post dated cheques | G157: $ | H157: 15 | V157: 26
A158: Energy+ Inc. | B158: Energy+ Inc.-For Former Brant County Power Service Area | E158: Duplicate invoices for previous billing | G158: $ | H158: 15 | V158: 39
A159: Energy+ Inc. | B159: Energy+ Inc.-For Former Brant County Power Service Area | E159: Request for other billing information | G159: $ | H159: 15 | V159: 37
A160: Energy+ Inc. | B160: Energy+ Inc.-For Former Brant County Power Service Area | E160: Easement Letter | G160: $ | H160: 15 | V160: 15
A161: Energy+ Inc. | B161: Energy+ Inc.-For Former Brant County Power Service Area | E161: Income tax letter | G161: $ | H161: 15 | V161: 17
A162: Energy+ Inc. | B162: Energy+ Inc.-For Former Brant County Power Service Area | E162: Notification charge | G162: $ | H162: 15 | V162: 19
A163: Energy+ Inc. | B163: Energy+ Inc.-For Former Brant County Power Service Area | E163: Account history | G163: $ | H163: 15 | V163: 15
A164: Energy+ Inc. | B164: Energy+ Inc.-For Former Brant County Power Service Area | E164: Credit reference/credit check (plus credit agency costs - general service) | G164: $ | H164: 15 | V164: 74
A165: Energy+ Inc. | B165: Energy+ Inc.-For Former Brant County Power Service Area | E165: Returned Cheque (plus bank charges) | G165: $ | H165: 15 | V165: 35
A166: Energy+ Inc. | B166: Energy+ Inc.-For Former Brant County Power Service Area | E166: Charge to certify cheque | G166: $ | H166: 15 | V166: 24
A167: Energy+ Inc. | B167: Energy+ Inc.-For Former Brant County Power Service Area | E167: Legal letter charge | G167: $ | H167: 15 | V167: 19
A168: Energy+ Inc. | B168: Energy+ Inc.-For Former Brant County Power Service Area | E168: Special meter reads | G168: $ | H168: 30 | V168: 19
A169: Energy+ Inc. | B169: Energy+ Inc.-For Former Brant County Power Service Area | E169: Account set up charge/change of occupancy charge (plus credit agency costs if applicable) | G169: $ | H169: 30 | V169: 89
A170: Energy+ Inc. | B170: Energy+ Inc.-For Former Brant County Power Service Area | E170: Meter dispute charge plus Measurement Canada fees (if meter found correct) | G170: $ | H170: 30 | V170: 74
A171: Energy+ Inc. | B171: Energy+ Inc.-For Former Brant County Power Service Area | E171: Non-Payment of Account | K171: Energy+ Inc._NPoA | V171: 22
A172: Energy+ Inc. | B172: Energy+ Inc.-For Former Brant County Power Service Area | E172: Late Payment - per month | G172: % | H172: 1.5 | V172: 24
A173: Energy+ Inc. | B173: Energy+ Inc.-For Former Brant County Power Service Area | E173: Late Payment - per annum | G173: % | H173: 19.56 | V173: 24
A174: Energy+ Inc. | B174: Energy+ Inc.-For Former Brant County Power Service Area | E174: Collection of account charge - no disconnection | G174: $ | H174: 30 | V174: 47
A175: Energy+ Inc. | B175: Energy+ Inc.-For Former Brant County Power Service Area | E175: Collection of account charge - no disconnection - after regular hours | G175: $ | H175: 165 | V175: 69
A176: Energy+ Inc. | B176: Energy+ Inc.-For Former Brant County Power Service Area | E176: Disconnect/Reconnect at Meter - during regular hours | G176: $ | H176: 65 | V176: 52
A177: Energy+ Inc. | B177: Energy+ Inc.-For Former Brant County Power Service Area | E177: Disconnect/Reconnect at Meter - after regular hours | G177: $ | H177: 185 | V177: 51
A178: Energy+ Inc. | B178: Energy+ Inc.-For Former Brant County Power Service Area | E178: Disconnect/Reconnect at Pole - during regular hours | G178: $ | H178: 185 | V178: 51
A179: Energy+ Inc. | B179: Energy+ Inc.-For Former Brant County Power Service Area | E179: Disconnect/Reconnect at Pole - after regular hours | G179: $ | H179: 415 | V179: 50
A180: Energy+ Inc. | B180: Energy+ Inc.-For Former Brant County Power Service Area | E180: Other | V180: 5
A181: Energy+ Inc. | B181: Energy+ Inc.-For Former Brant County Power Service Area | E181: Service call - customer owned equipment | G181: $ | H181: 30 | V181: 39
A182: Energy+ Inc. | B182: Energy+ Inc.-For Former Brant County Power Service Area | E182: Service call - after regular hours | G182: $ | H182: 165 | V182: 34
A183: Energy+ Inc. | B183: Energy+ Inc.-For Former Brant County Power Service Area | E183: Temporary service - install & remove - overhead - no transformer | G183: $ | H183: 500 | V183: 64
A184: Energy+ Inc. | B184: Energy+ Inc.-For Former Brant County Power Service Area | E184: Temporary service - install & remove - underground - no transformer | G184: $ | H184: 300 | V184: 67
A185: Energy+ Inc. | B185: Energy+ Inc.-For Former Brant County Power Service Area | E185: Temporary service - install & remove - overhead - with transformer | G185: $ | H185: 1000 | V185: 66
A186: Energy+ Inc. | B186: Energy+ Inc.-For Former Brant County Power Service Area | E186: Rural system expansion / line connection fee | G186: $ | H186: 500 | V186: 44
A187: Energy+ Inc. | B187: Energy+ Inc.-For Former Brant County Power Service Area | E187: Specific charge for access to the power poles - $/pole/year | G187: $ | H187: 22.35 | V187: 59
A188: Energy+ Inc. | B188: Energy+ Inc.-For Former Brant County Power Service Area | E188: (with the exception of wireless attachments) | V188: 45
A189: Energy+ Inc. | B189: Energy+ Inc.-For Former Brant County Power Service Area | E189: RETAIL SERVICE CHARGES (if applicable) | K189: Energy+ Inc._RSC | V189: 38
A190: Energy+ Inc. | B190: Energy+ Inc.-For Former Brant County Power Service Area | E190: The application of these rates and charges shall be in accordance with the Licence of the Distributor and any Code or Order of the Ontario Energy Board, and amendments thereto as approved by the Ontario Energy Board, which may be applicable to the administration of this schedule. | V190: 280
A191: Energy+ Inc. | B191: Energy+ Inc.-For Former Brant County Power Service Area | E191: No rates and charges for the distribution of electricity and charges to meet the costs of any work or service done or furnished for the purpose of the distribution of electricity shall be made except as permitted by this schedule, unless required by the Distributor’s Licence or a Code or Order of the Ontario Energy Board, and amendments thereto as approved by the Ontario Energy Board, or as specified herein. | V191: 411
A192: Energy+ Inc. | B192: Energy+ Inc.-For Former Brant County Power Service Area | E192: Unless specifically noted, this schedule does not contain any charges for the electricity commodity, be it under the Regulated Price Plan, a contract with a retailer or the wholesale market price, as applicable. | V192: 211
A193: Energy+ Inc. | B193: Energy+ Inc.-For Former Brant County Power Service Area | E193: It should be noted that this schedule does not list any charges, assessments, or credits that are required by law to be invoiced by a distributor and that are not subject to Ontario Energy Board approval, such as the Debt Retirement Charge, the Global Adjustment, the Ontario Clean Energy Benefit and the HST. | V193: 309
A194: Energy+ Inc. | B194: Energy+ Inc.-For Former Brant County Power Service Area | E194: Retail Service Charges refer to services provided by a distributor to retailers or customers related to the supply of competitive electricity. | V194: 142
A195: Energy+ Inc. | B195: Energy+ Inc.-For Former Brant County Power Service Area | E195: One-time charge, per retailer, to establish the service agreement between the distributor and the retailer | G195: $ | H195: 100 | V195: 106
A196: Energy+ Inc. | B196: Energy+ Inc.-For Former Brant County Power Service Area | E196: Monthly Fixed Charge, per retailer | G196: $ | H196: 20 | V196: 34
A197: Energy+ Inc. | B197: Energy+ Inc.-For Former Brant County Power Service Area | E197: Monthly Variable Charge, per customer, per retailer | G197: $/cust. | H197: 0.5 | V197: 51
A198: Energy+ Inc. | B198: Energy+ Inc.-For Former Brant County Power Service Area | E198: Distributor-consolidated billing monthly charge, per customer, per retailer | G198: $/cust. | H198: 0.3 | V198: 75
A199: Energy+ Inc. | B199: Energy+ Inc.-For Former Brant County Power Service Area | E199: Retailer-consolidated billing monthly credit, per customer, per retailer | G199: $/cust. | H199: -0.3 | V199: 72
A200: Energy+ Inc. | B200: Energy+ Inc.-For Former Brant County Power Service Area | E200: Service Transaction Requests (STR) | V200: 34
... 266 more rows

Sheet lists (hidden)
A1: ALLOWANCES | B1: Embedded Distributor | C1: =COUNTA(B1:B17) -> 4 | I1: A Standby Service Charge will be applied for a month where standby power is not provided. The applicable rate is the approved Distribution Volumetric Rate of the applicable service class and is applied to gross metered demand or contracted amount, whichever is greater. A monthly administration charge of $200, for simple metering arrangements, or $500, for complex metering arrangements, will also be applied. | L1: Loss Factors | N1: Units | O1: Units1 | P1: Units2 | Z1: Account History | AA1: Account set up charge/change of occupancy charge (plus credit agency costs if applicable) | AB1: Total Loss Factor – Embedded Distributor – Hydro One Networks Inc. | AL1: Algoma Power Inc. | AM1: Algoma Power Inc. | AO1: DISTRIBUTED GENERATION [DGEN] | AP1: kW | AT1: Sub-Total: Delivery (Distribution and Retail Transmission)
A2: COMPETITIVE SECTOR MULTI-UNIT RESIDENTIAL SERVICE | B2: General Service 3,000 to 4,999 kW | I2: Distribution Volumetric Rate | L2: Total Loss Factor – Primary Metered Customer | N2: $ | O2: $/kWh | P2: $ | Z2: Account set up charge/change of occupancy charge | AA2: Administrative Billing Charge | AB2: Total Loss Factor – Primary Metered Customer | AL2: Atikokan Hydro Inc. | AM2: Atikokan Hydro Inc. | AO2: EMBEDDED DISTRIBUTOR | AP2: kW | AT2: Wholesale Market Service Rate | AW2: =AU2*AV2 -> 0 | AX2: =AU2 -> 0 | AY2: 0 | AZ2: =AX2*AY2 -> 0 | BB2: =AZ2-AW2 -> 0 | BC2: =BB2/AW2 -> 
A3: COMPETITIVE SECTOR MULTI-UNIT RESIDENTIAL SERVICE CLASSIFICATION | B3: General Service 1,000 to 4,999 kW | I3: Distribution Volumetric Rate - $/kW of contracted amount | L3: Total Loss Factor – Primary Metered Customer < 5,000 kW | N3: $/kWh | O3: $/kW | P3: % | W3: MSC | Z3: Account set up charge/change of occupancy charge (plus credit agency costs if applicable – Residential) | AA3: Bell Canada Pole Rentals | AB3: Total Loss Factor – Primary Metered Customer < 5,000 kW | AL3: Bluewater Power Distribution Corporation | AM3: Bluewater Power Distribution Corporation | AO3: EMBEDDED DISTRIBUTOR | AP3: kW | AT3: Rural or Remote Electricity Rate Protection Charge (RRRP) | AW3: =AU3*AV3 -> 0 | AX3: 0 | AY3: 0 | AZ3: =AX3*AY3 -> 0 | BB3: =AZ3-AW3 -> 0 | BC3: =BB3/AW3 -> 
A4: DISTRIBUTED GENERATION [DGEN] | B4: General Service Equal To Or Greater Than 1,500 kW - Interval Metered | I4: Distribution Wheeling Service Rate | L4: Total Loss Factor – Primary Metered Customer > 5,000 kW | N4: $/kW | O4: $/kVA | W4: SM_Rate_Adder | Z4: Account set up charge/change of occupancy charge (plus credit agency costs if applicable) | AA4: Clearance Pole Attachment charge $/pole/year | AB4: Total Loss Factor – Primary Metered Customer > 5,000 kW | AL4: Brant County Power Inc. | AM4: Brant County Power Inc. | AO4: FARMS - SINGLE PHASE ENERGY-BILLED [F1] | AP4: kWh | AT4: Standard Supply Service – Administration Charge (if applicable) | AW4: =AU4*AV4 -> 0 | AX4: 0 | AY4: 0 | AZ4: =AX4*AY4 -> 0 | BB4: =AZ4-AW4 -> 0 | BC4: =BB4/AW4 -> 
A5: DISTRIBUTED GENERATION [DGEN] SERVICE CLASSIFICATION | I5: Electricity Rate | L5: Total Loss Factor – Secondary Metered Customer | N5: $/kVA | W5: MSC_Rate_Rider_ | Z5: Arrears certificate | AA5: Collection of account charge – no disconnection | AB5: Total Loss Factor – Secondary Metered Customer | AL5: Brantford Power Inc. | AM5: Brantford Power Inc. | AO5: FARMS - THREE PHASE ENERGY-BILLED [F3] | AP5: kWh | AT5: Sub-Total: Regulatory | AW5: =SUM(AW2:AW4) -> 0 | AZ5: =SUM(AZ2:BA4) -> 0 | BB5: =AZ5-AW5 -> 0 | BC5: =BB5/AW5 -> 
A6: EMBEDDED DISTRIBUTOR | I6: Electricity Rate - All Additional kWh | L6: Total Loss Factor – Secondary Metered Customer < 5,000 kW | W6: VC | Z6: Arrears certificate (credit reference) | AA6: Collection of account charge – no disconnection – after regular hours | AB6: Total Loss Factor – Secondary Metered Customer < 5,000 kW | AL6: Burlington Hydro Inc. | AM6: Burlington Hydro Inc. | AO6: GENERAL SERVICE - COMMERCIAL | AP6: kW | AT6: Debt Retirement Charge (DRC) | AW6: =AU6*AV6 -> 0 | AX6: =AU6 -> 0 | AY6: =AV6 -> 0 | AZ6: =AX6*AY6 -> 0 | BB6: =AZ6-AW6 -> 0 | BC6: =BB6/AW6 -> 
A7: EMBEDDED DISTRIBUTOR SERVICE CLASSIFICATION | I7: Electricity Rate - First 250 kWh | AL7: Cambridge and North Dumfries Hydro Inc. | AM7: Cambridge and North Dumfries Hydro Inc. | AO7: GENERAL SERVICE - INSTITUTIONAL | AP7: kW
A8: ENERGY FROM WASTE SERVICE CLASSIFICATION | I8: Electricity Rate -All Additional kWh | L8: Total Loss Factor – Secondary Metered Customer > 5,000 kW | W8: VC_Rate_Rider_ | Z8: Charge to certify cheque | AA8: Collection of account charge – no disconnection - during regular business hours | AB8: Total Loss Factor – Secondary Metered Customer > 5,000 kW | AL8: Canadian Niagara Power Inc. | AM8: Canadian Niagara Power Inc. | AO8: GENERAL SERVICE 1,000 TO 2,999 KW | AP8: kW | AT8: Total Bill on RPP (before taxes) | BB8: =AZ8-AW8 -> 0
A9: FARMS - SINGLE PHASE ENERGY-BILLED [F1] | I9: Electricity Rate First 1,000 kWh | L9: Distribution Loss Factor - Secondary Metered Customer < 5,000 kW | W9: VC_GA_Rate_Rider_kW_ | Z9: Collection of Account Charge – No Disconnection | AA9: Collection of account charge – no disconnection – during regular hours | AL9: Centre Wellington Hydro Ltd. | AM9: Centre Wellington Hydro Ltd. | AO9: GENERAL SERVICE 1,000 TO 4,999 KW | AP9: kW | AT9: HST | AW9: =AV9*AW8 -> 0 | AY9: =AV9 -> 0 | AZ9: =AY9*AZ8 -> 0 | BB9: =AZ9-AW9 -> 0 | BC9: =BB9/AW9 -> 
A10: FARMS - THREE PHASE ENERGY-BILLED [F3] | I10: Electricity Rate First 25,000 kWh | L10: Distribution Loss Factor - Secondary Metered Customer > 5,000 kW | W10: VC_LV_Rate | Z10: Credit Card Convenience Charge | AA10: Collection/Disconnection/Load Limiter/Reconnection – if in Community | AL10: Chapleau Public Utilities Corporation | AM10: Chapleau Public Utilities Corporation | AO10: GENERAL SERVICE 1,000 TO 4,999 KW - INTERVAL METERS | AP10: kW | AT10: Total Bill (including HST) | AW10: =AW9+AW8 -> 0 | AZ10: =AZ9+AZ8 -> 0 | BB10: =AZ10-AW10 -> 0 | BC10: =BB10/AW10 -> 
A11: GENERAL SERVICE - COMMERCIAL | I11: Electricity Rate First 6,000 kWh | L11: Distribution Loss Factor - Primary Metered Customer < 5,000 kW | W11: RTSR_Network | Z11: Credit check (plus credit agency costs) | AA11: Credit Card Convenience Charge | AL11: Collus PowerStream Corporation | AM11: Collus PowerStream Corporation | AO11: GENERAL SERVICE 1,000 TO 4,999 KW (CO-GENERATION) | AP11: kW | AT11: Ontario Clean Energy Benefit (OCEB) | AW11: =-0.1*AW10 -> 0 | AY11: =AV11 -> 0 | AZ11: =-0.1*AZ10 -> 0 | BB11: =AZ11-AW11 -> 0 | BC11: =BB11/AW11 -> 
A12: GENERAL SERVICE - INSTITUTIONAL | I12: Electricity Rate Next 1,500 kWh | L12: Distribution Loss Factor - Primary Metered Customer > 5,000 kW | W12: RTSR_Connection | Z12: Credit reference Letter | AA12: Disconnect/Reconnect at meter – after regular hours | AL12: Cooperative Hydro Embrun Inc. | AM12: Cooperative Hydro Embrun Inc. | AO12: GENERAL SERVICE 1,500 TO 4,999 KW | AP12: kW | AT12: Total Bill on RPP (including OCEB) | AW12: =AW10+AW11 -> 0 | AZ12: =AZ10+AZ11 -> 0 | BB12: =AZ12-AW12 -> 0 | BC12: =BB12/AW12 -> 
A13: GENERAL SERVICE 1,000 TO 2,999 KW | I13: General Service 1,500 to 4,999 kW customer | AL13: E.L.K. Energy Inc. | AM13: E.L.K. Energy Inc. | AO13: GENERAL SERVICE 2,500 TO 4,999 KW | AP13: kW
A14: GENERAL SERVICE 1,000 TO 4,999 KW | I14: General Service 50 to 1,499 kW customer | L14: Total Loss Factor - Embedded Distributor | W14: RTSR_Network_Interval | Z14: Credit reference/credit check (plus credit agency costs – General Service) | AA14: Disconnect/Reconnect at meter – during regular hours | AL14: Enersource Hydro Mississauga Inc. | AM14: Enersource Hydro Mississauga Inc. | AO14: GENERAL SERVICE 3,000 TO 4,999 KW | AP14: kW | AT14: Total Bill on TOU (before taxes) | BB14: =AZ14-AW14 -> 0
A15: GENERAL SERVICE 1,000 TO 4,999 KW - INTERVAL METERS | I15: General Service Large Use customer | L15: Total Loss Factor – Embedded Distributor – Hydro One Networks Inc. | W15: RTSR_Connection_Interval | Z15: Credit Reference/credit check (plus credit agency costs) | AA15: Disconnect/Reconnect at pole – after regular hours | AL15: Entegrus Powerlines Inc. | AM15: Entegrus Powerlines Inc. | AO15: GENERAL SERVICE 3,000 TO 4,999 KW - INTERMEDIATE USE | AP15: kW | AT15: HST | AW15: =AV15*AW14 -> 0 | AY15: =AV15 -> 0 | AZ15: =AY15*AZ14 -> 0 | BB15: =AZ15-AW15 -> 0 | BC15: =BB15/AW15 -> 
A16: GENERAL SERVICE 1,000 TO 4,999 KW (CO-GENERATION) | I16: Green Energy Act Initiatives Funding Adder - effective until the date of the next cost of service-based rate order | W16: RTSR_Network_Interval_GR1000kW | Z16: Dispute Test – Commercial self contained -- MC | AA16: Disconnect/Reconnect at pole – during regular hours | AL16: Entegrus Powerlines Inc. - Dutton Service Area | AM16: Entegrus Powerlines Inc. - Dutton Service Area | AO16: GENERAL SERVICE 3,000 TO 4,999 KW - INTERVAL METERED | AP16: kW | AT16: Total Bill (including HST) | AW16: =AW15+AW14 -> 0 | AZ16: =AZ15+AZ14 -> 0 | BB16: =AZ16-AW16 -> 0 | BC16: =BB16/AW16 -> 
A17: GENERAL SERVICE 1,000 TO 4,999 KW (CO-GENERATION) SERVICE CLASSIFICATION | I17: Green Energy Act Plan Funding Adder | W17: RTSR_Connection_Interval_GR1000kW | Z17: Dispute Test – Commercial TT -- MC | AA17: Disconnect/Reconnect Charge – At Meter – After Hours | AL17: Entegrus Powerlines Inc. - former Chatham-Kent Hydro Service Area | AM17: Entegrus Powerlines Inc. - former Chatham-Kent Hydro Service Area | AO17: GENERAL SERVICE 3,000 TO 4,999 KW - TIME OF USE | AP17: kW | AT17: Ontario Clean Energy Benefit (OCEB) | AW17: =-0.1*AW16 -> 0 | AY17: =AV17 -> 0 | AZ17: =-0.1*AZ16 -> 0 | BB17: =AZ17-AW17 -> 0 | BC17: =BB17/AW17 -> 
A18: GENERAL SERVICE 1,000 to 4,999 kW SERVICE CLASSIFICATION | I18: Green Energy Act Plan Funding Adder - effective April 1, 2013 until March 31, 2014 | W18: RTSR_Line_Connection | Z18: Dispute Test – Residential | AA18: Disconnect/Reconnect Charge – At Meter – During Regular Hours | AL18: Entegrus Powerlines Inc. - Newbury Service Area | AM18: Entegrus Powerlines Inc. - Newbury Service Area | AO18: GENERAL SERVICE 50 TO 1,000 KW | AP18: kW | AT18: Total Bill on TOU (including OCEB) | AW18: =AW16+AW17 -> 0 | AZ18: =AZ16+AZ17 -> 0 | BB18: =AZ18-AW18 -> 0 | BC18: =BB18/AW18 -> 
A19: GENERAL SERVICE 1,500 TO 4,999 KW | I19: Green Energy Act Plan Funding Adder - effective April 1, 2014 until March 31, 2015 | W19: RTSR_Transformer_Connection | Z19: Duplicate Invoices for previous billing | AA19: Disconnect/Reconnect Charge – At Pole – After Hours | AL19: Entegrus Powerlines Inc. - Strathroy, Mount Brydges and Parkhill Service Areas | AM19: Entegrus Powerlines Inc. - Strathroy, Mount Brydges and Parkhill Service Areas | AO19: GENERAL SERVICE 50 TO 1,000 KW - INTERVAL METERS | AP19: kW
A20: GENERAL SERVICE 2,500 TO 4,999 KW | I20: ICM Rate Rider (2014) - in effect until the effective date of the next cost of service rates | W20: WMSR | Z20: Easement Letter | AA20: Disconnect/Reconnect Charge – At Pole – During Regular Hours | AL20: ENWIN Utilities Ltd. | AM20: ENWIN Utilities Ltd. | AO20: GENERAL SERVICE 50 TO 1,000 KW - NON INTERVAL METERS | AP20: kW
A21: GENERAL SERVICE 3,000 TO 4,999 KW | I21: Low Voltage Service Charge | W21: RRRP | Z21: Income Tax Letter | AA21: Disconnect/Reconnect Charges for non payment of account - At Meter After Hours | AL21: Erie Thames Powerlines Corporation | AM21: Erie Thames Powerlines Corporation | AO21: GENERAL SERVICE 50 TO 1,499 KW | AP21: kW
A22: GENERAL SERVICE 3,000 TO 4,999 KW - INTERMEDIATE USE | I22: Low Voltage Service Rate | W22: SPC | Z22: Interval Meter Interrogation | AA22: Disconnect/Reconnect charges for non payment of account – at meter after regular hours | AL22: Espanola Regional Hydro Distribution Corporation | AM22: Espanola Regional Hydro Distribution Corporation | AO22: GENERAL SERVICE 50 TO 1,499 KW - INTERVAL METERED | AP22: kW
A23: GENERAL SERVICE 3,000 TO 4,999 KW - INTERMEDIATE USE SERVICE CLASSIFICATION | I23: Low Voltage Volumetric Rate | W23: DRC | Z23: Interval meter request change | AA23: Disconnect/Reconnect Charges for non payment of account - At Meter During Regular Hours | AL23: Essex Powerlines Corporation | AM23: Essex Powerlines Corporation | AO23: GENERAL SERVICE 50 TO 2,499 KW | AP23: kW
A24: GENERAL SERVICE 3,000 TO 4,999 KW - INTERVAL METERED | I24: LRAM Rate Rider - Effective Until April 30, 2015 | W24: SSS | Z24: Legal letter | AA24: Disconnect/Reconnect charges for non payment of account – at meter during regular hours | AL24: Festival Hydro Inc. | AM24: Festival Hydro Inc. | AO24: GENERAL SERVICE 50 TO 2,999 KW | AP24: kW
A25: GENERAL SERVICE 3,000 TO 4,999 KW - TIME OF USE | I25: Minimum Distribution Charge - per KW of maximum billing demand in the previous 11 months | W25: SFLF | Z25: Legal letter charge | AA25: Disconnect/Reconnect charges for non payment of account – at pole after regular hours | AL25: Fort Frances Power Corporation | AM25: Fort Frances Power Corporation | AO25: GENERAL SERVICE 50 TO 2,999 KW - INTERVAL METERED | AP25: kW
A26: GENERAL SERVICE 3,000 TO 4,999 KW SERVICE CLASSIFICATION | B26: January | I26: Monthly Distribution Wheeling Service Rate - Dedicated LV Line | W26: DLF_Secondary_LT_5000kW | Z26: Meter dispute charge plus Measurement Canada fees (if meter found correct) | AA26: Disconnect/Reconnect charges for non payment of account – at pole during regular hours | AL26: Greater Sudbury Hydro Inc. | AM26: Greater Sudbury Hydro Inc. | AO26: GENERAL SERVICE 50 TO 2,999 KW - TIME OF USE | AP26: kW
A27: GENERAL SERVICE 50 TO 1,000 KW | B27: February | I27: Monthly Distribution Wheeling Service Rate - Hydro One Networks | W27: DLF_Secondary_GT_5000kW | Z27: Notification charge | AA27: Disconnect/Reconnection for >300 volts - after regular hours | AL27: Grimsby Power Inc. | AM27: Grimsby Power Inc. | AO27: GENERAL SERVICE 50 TO 4,999 KW | AP27: kW
A28: GENERAL SERVICE 50 TO 1,000 KW - INTERVAL METERS | B28: March | I28: Monthly Distribution Wheeling Service Rate - Shared LV Line | W28: DLF_Primary_LT_5000kW | Z28: Pulling Post Dated Cheques | AA28: Disconnect/Reconnection for >300 volts - during regular hours | AL28: Guelph Hydro Electric Systems Inc. | AM28: Guelph Hydro Electric Systems Inc. | AO28: GENERAL SERVICE 50 TO 4,999 KW - INTERVAL METERED | AP28: kW
A29: GENERAL SERVICE 50 TO 1,000 KW - NON INTERVAL METERS | B29: April | I29: Monthly Distribution Wheeling Service Rate - Waterloo North Hydro | W29: DLF_Primary_GT_5000kW | Z29: Request for other billing information | AA29: Disposal of Concrete Poles | AL29: Haldimand County Hydro Inc. | AM29: Haldimand County Hydro Inc. | AO29: GENERAL SERVICE 50 TO 4,999 KW - TIME OF USE | AP29: kW
A30: GENERAL SERVICE 50 TO 1,499 KW | B30: May | I30: Rate Rider for Application of Tax Change - effective until April 30, 2015 | W30: TLF_Secondary_LT_5000kW | Z30: Returned cheque (plus bank charges) | AA30: Dispute Test – Commercial TT -- MC | AL30: Halton Hills Hydro Inc. | AM30: Halton Hills Hydro Inc. | AO30: GENERAL SERVICE 50 TO 4,999 KW (COGENERATION) | AP30: kW
A31: GENERAL SERVICE 50 TO 1,499 KW - INTERVAL METERED | B31: June | I31: Rate Rider for Application of Tax Change - effective until December 31, 2014 | W31: TLF_Secondary_GT_5000kW | Z31: Returned cheque charge (plus bank charges) | AA31: Install/Remove load control device – after regular hours | AL31: Hearst Power Distribution Company Limited | AM31: Hearst Power Distribution Company Limited | AO31: GENERAL SERVICE 50 TO 4,999 KW (FORMERLY TIME OF USE) | AP31: kW
A32: GENERAL SERVICE 50 to 1,499 kW SERVICE CLASSIFICATION | B32: July | I32: Rate Rider for Application of Tax Change (2014) - effective until April 30, 2015 | W32: TLF_Primary_LT_5000kW | Z32: Special Billing Service (aggregation) | AA32: Install/Remove load control device – during regular hours | AL32: Horizon Utilities Corporation | AM32: Horizon Utilities Corporation | AO32: GENERAL SERVICE 50 TO 499 KW | AP32: kW
A33: GENERAL SERVICE 50 TO 2,499 KW | B33: August | I33: Rate Rider for Application of Tax Change (per connection) - effective until April 30, 2015 | W33: TLF_Primary_GT_5000kW | Z33: Special Billing Service (sub-metering charge per meter) | AA33: Interval Meter Interrogation | AL33: Hydro 2000 Inc. | AM33: Hydro 2000 Inc. | AO33: GENERAL SERVICE 50 TO 699 KW | AP33: kW
A34: GENERAL SERVICE 50 TO 2,999 KW | B34: September | I34: Rate Rider for CGAAP Accounting Changes (2013) - effective until April 30, 2017 | W34: TLF_EmbeddedDistributor | Z34: Special meter reads | AA34: Interval Meter Load Management Tool Charge $/month | AL34: Hydro Hawkesbury Inc. | AM34: Hydro Hawkesbury Inc. | AO34: GENERAL SERVICE 50 TO 999 KW | AP34: kW
A35: GENERAL SERVICE 50 TO 2,999 KW - INTERVAL METERED | B35: October | I35: Rate Rider for Deferral/Variance Account (2012) - effective unitl April 30, 2016 | Z35: Statement of Account | AA35: Interval meter request change | AL35: Hydro One Brampton Networks Inc. | AM35: Hydro One Brampton Networks Inc. | AO35: GENERAL SERVICE 50 TO 999 KW - INTERVAL METERED | AP35: kW
A36: GENERAL SERVICE 50 TO 2,999 KW - TIME OF USE | B36: November | I36: Rate Rider for Deferral/Variance Account Disposition – effective until April 30, 2015 | Z36: Unprocessed Payment Charge (plus bank charges) | AA36: Late Payment – per annum | AL36: Hydro One Networks Inc. | AM36: Hydro One Networks Inc. | AO36: GENERAL SERVICE 500 TO 4,999 KW | AP36: kW
A37: GENERAL SERVICE 50 TO 2,999 KW SERVICE CLASSIFICATION | B37: December | I37: Rate Rider for Deferral/Variance Account Disposition (2012) - effective until April 30, 2016 | AA37: Late Payment – per month | AL37: Hydro Ottawa Limited | AM37: Hydro Ottawa Limited | AO37: GENERAL SERVICE 700 TO 4,999 KW | AP37: kW
A38: GENERAL SERVICE 50 TO 4,999 KW | I38: Rate Rider for Deferral/Variance Account Disposition (2013) - effective until April 30, 2014 | AA38: Layout fees | AL38: Innisfil Hydro Distribution Systems Limited | AM38: Innisfil Hydro Distribution Systems Limited | AO38: GENERAL SERVICE DEMAND BILLED (50 KW AND ABOVE) [GSD] | AP38: kW
A39: GENERAL SERVICE 50 TO 4,999 KW - INTERVAL METERED | I39: Rate Rider for Deferral/Variance Account Disposition (2014) - effective until April 28, 2016 | AA39: Meter dispute charge plus Measurement Canada fees (if meter found correct) | AL39: Kenora Hydro Electric Corporation Ltd. | AM39: Kenora Hydro Electric Corporation Ltd. | AO39: GENERAL SERVICE ENERGY BILLED (LESS THAN 50 KW) [GSE-METERED] | AP39: kWh
A40: GENERAL SERVICE 50 TO 4,999 KW - TIME OF USE | I40: Rate Rider for Deferral/Variance Account Disposition (2014) - effective until April 30, 2015 | AA40: Meter Interrogation Charge | AL40: Kingston Hydro Corporation | AM40: Kingston Hydro Corporation | AO40: GENERAL SERVICE ENERGY BILLED (LESS THAN TO 50 KW) [GSE-UNMETERED] | AP40: kWh
A41: GENERAL SERVICE 50 TO 4,999 KW (COGENERATION) | I41: Rate Rider for Deferral/Variance Account Disposition (2014) - effective until December 31, 2014 | AA41: Missed Service Appointment | AL41: Kitchener-Wilmot Hydro Inc. | AM41: Kitchener-Wilmot Hydro Inc. | AO41: GENERAL SERVICE EQUAL TO OR GREATER THAN 1,500 KW | AP41: kW
A42: GENERAL SERVICE 50 TO 4,999 KW (FORMERLY TIME OF USE) | I42: Rate Rider for Deferral/Variance Account Disposition (2014) - effective until December 31, 2015 | AA42: Norfolk Pole Rentals – Billed | AL42: Lakefront Utilities Inc. | AM42: Lakefront Utilities Inc. | AO42: GENERAL SERVICE EQUAL TO OR GREATER THAN 1,500 KW - INTERVAL METERED | AP42: kW
A43: GENERAL SERVICE 50 TO 4,999 KW SERVICE CLASSIFICATION | I43: Rate Rider for Deferral/Variance Account Dispositon (2012) - effective until April 30, 2016 | AA43: Optional Interval/TOU Meter charge $/month | AL43: Lakeland Power Distribution Ltd. | AM43: Lakeland Power Distribution Ltd. | AO43: GENERAL SERVICE GREATER THAN 1,000 KW | AP43: kW
